Body Name,Body,Service Division Label,Service Division Code,Organisational Unit,Expenditure Category,Expenditure Code,CIPFA detailed expediture type,CIPFA detailed expediture code,Narrative,Date,Transaction number,Net Amount,Capital and Revenue,Supplier Name,Supplier ID,,
Chorley Borough Council,http://statistics.data.gov.uk/id/local-authority/30UE,Capital,Capital,Commercial & Property,Other Capital Related Fees,03024,Capital Expenditure,Capital,New Entrance Canopy. Assess existing information and site check measure. Concept designs in 3D. Planning Application,09/04/2021,0155011,"2,420.00",Capital,3DG Design Ltd,80861,,
Chorley Borough Council,http://statistics.data.gov.uk/id/local-authority/30UE,Capital,Capital,Commercial & Property,Consultants Fees,03025,Capital Expenditure,Capital,Carry out works to unit 7 @ MW extension canopy,21/04/2021,0155082,"2,420.00",Capital,3DG Design Ltd,80861,,
Chorley Borough Council,http://statistics.data.gov.uk/id/local-authority/30UE,Unapportionable Central OHeads,1009,Commercial & Property,General Repairs - Reactive,20004,Repairs Maintenance & Alts,5005,Cotswold reception fire shutter works,28/04/2021,0155078,410.00,Revenue,A1 Shutters Ltd,16510,,
Chorley Borough Council,http://statistics.data.gov.uk/id/local-authority/30UE,Service Management & Support,1009,Commercial & Property,External Contractor,40198,Miscellaneous Expenses,5034,"Please supply the following: Re Astley Park Cycle Marking. Carry out road markings as quote no. 10509 at Astley Park, Chorley",21/04/2021,0155424,"1,593.55",Revenue,A1 Streamline Road Markings LTD,21544,,
Chorley Borough Council,http://statistics.data.gov.uk/id/local-authority/30UE,Parking Services,1066,Commercial & Property,Planned Maintenance,20006,Repairs Maintenance & Alts,5005,"Road marking to West Street car park, Chorley as your quote 10005/1. Work to be undertaken week commencing 7th September",21/04/2021,0155430,454.50,Revenue,A1 Streamline Road Markings LTD,21544,,
Chorley Borough Council,http://statistics.data.gov.uk/id/local-authority/30UE,Central Support Services,1009,Customer & Digital,Telephones - Other,40085,Communication and Computing,5028,Adept Telecom - March 2021,21/04/2021,0154252,"1,609.64",Revenue,Adept Telecom PLC,77452,,
Chorley Borough Council,http://statistics.data.gov.uk/id/local-authority/30UE,Corporate Management,1008,Customer & Digital,Contributions Parish Councils,40144,Grants and Subscriptions,5031,contributions parish,09/04/2021,0155146,"1,816.00",Revenue,Adlington Town Council,17626,,
Chorley Borough Council,http://statistics.data.gov.uk/id/local-authority/30UE,Payments of Precepts to Parish,1018,Customer & Digital,Parish Council Tax,04500,Revenue Account Transfers,Balance,precepts/parish council,09/04/2021,0155146,"17,184.00",Revenue,Adlington Town Council,17626,,
Chorley Borough Council,http://statistics.data.gov.uk/id/local-authority/30UE,Central Support Services,1009,Customer & Digital,Bank Charges,40151,Miscellaneous Expenses,5034,add fee,14/04/2021,0155153,10.00,Revenue,Allpay Net Ltd,17242,,
Chorley Borough Council,http://statistics.data.gov.uk/id/local-authority/30UE,Unapportionable Central OHeads,1009,Customer & Digital,Bank Charges,40151,Miscellaneous Expenses,5034,post office,14/04/2021,0155153,344.68,Revenue,Allpay Net Ltd,17242,,
Chorley Borough Council,http://statistics.data.gov.uk/id/local-authority/30UE,Central Support Services,1009,Customer & Digital,Bank Charges,40151,Miscellaneous Expenses,5034,paypoint,14/04/2021,0155153,144.40,Revenue,Allpay Net Ltd,17242,,
Chorley Borough Council,http://statistics.data.gov.uk/id/local-authority/30UE,Unapportionable Central OHeads,1009,Customer & Digital,Bank Charges,40151,Miscellaneous Expenses,5034,webconnect,14/04/2021,0155153,46.00,Revenue,Allpay Net Ltd,17242,,
Chorley Borough Council,http://statistics.data.gov.uk/id/local-authority/30UE,Central Support Services,1009,Communities,External Contractor,40198,Miscellaneous Expenses,5034,pest control contract payments,30/04/2021,0153494,"2,875.25",Revenue,ALPHA PEST CONTROL LIMITED,18208,,
Chorley Borough Council,http://statistics.data.gov.uk/id/local-authority/30UE,Central Support Services,1009,Communities,External Contractor,40198,Miscellaneous Expenses,5034,External Contractor for Pest Control services,28/04/2021,0153746,"1,446.27",Revenue,ALPHA PEST CONTROL LIMITED,18208,,
Chorley Borough Council,http://statistics.data.gov.uk/id/local-authority/30UE,Central Support Services,1009,Communities,External Contractor,40198,Miscellaneous Expenses,5034,External Contractor for Pest Control services,28/04/2021,0153982,"1,127.46",Revenue,ALPHA PEST CONTROL LIMITED,18208,,
Chorley Borough Council,http://statistics.data.gov.uk/id/local-authority/30UE,Central Support Services,1009,Communities,External Contractor,40198,Miscellaneous Expenses,5034,External Contractor for Pest Control services,28/04/2021,0154634,"1,760.92",Revenue,ALPHA PEST CONTROL LIMITED,18208,,
Chorley Borough Council,http://statistics.data.gov.uk/id/local-authority/30UE,Central Support Services,1009,Communities,External Contractor,40198,Miscellaneous Expenses,5034,External Contractor for Pest Control services,28/04/2021,0154657,"1,974.95",Revenue,ALPHA PEST CONTROL LIMITED,18208,,
Chorley Borough Council,http://statistics.data.gov.uk/id/local-authority/30UE,Central Support Services,1009,Communities,External Contractor,40198,Miscellaneous Expenses,5034,External Contractor for Pest Control services,28/04/2021,0155020,"3,396.19",Revenue,ALPHA PEST CONTROL LIMITED,18208,,
Chorley Borough Council,http://statistics.data.gov.uk/id/local-authority/30UE,Central Support Services,1009,Communities,External Contractor,40198,Miscellaneous Expenses,5034,External Contractor for Pest Control services,28/04/2021,0155074,"1,559.86",Revenue,ALPHA PEST CONTROL LIMITED,18208,,
Chorley Borough Council,http://statistics.data.gov.uk/id/local-authority/30UE,Central Support Services,1009,Communities,External Contractor,40198,Miscellaneous Expenses,5034,pest control contract payments,16/04/2021,0155368,"2,023.98",Revenue,ALPHA PEST CONTROL LIMITED,18208,,
Chorley Borough Council,http://statistics.data.gov.uk/id/local-authority/30UE,Central Support Services,1009,Communities,External Contractor,40198,Miscellaneous Expenses,5034,External Contractor for Pest Control services,28/04/2021,0155520,"2,800.57",Revenue,ALPHA PEST CONTROL LIMITED,18208,,
Chorley Borough Council,http://statistics.data.gov.uk/id/local-authority/30UE,Central Support Services,1009,Communities,External Contractor,40198,Miscellaneous Expenses,5034,pest control contract payments,30/04/2021,0155727,380.59,Revenue,ALPHA PEST CONTROL LIMITED,18208,,
Chorley Borough Council,http://statistics.data.gov.uk/id/local-authority/30UE,Central Support Services,1009,Communities,External Contractor,40198,Miscellaneous Expenses,5034,pest control contract payments,28/04/2021,0155748,"1,414.33",Revenue,ALPHA PEST CONTROL LIMITED,18208,,
Chorley Borough Council,http://statistics.data.gov.uk/id/local-authority/30UE,Unapportionable Central OHeads,1009,Commercial & Property,Burglar Alarms & Security Systems,20075,Fixtures and Fittings,5010,"Reactive blanket - intruder, access and all non fire related systems",21/04/2021,0154730,266.10,Revenue,Amalgamated Ltd,78289,,
Chorley Borough Council,http://statistics.data.gov.uk/id/local-authority/30UE,Corporate Management,1008,Customer & Digital,Contributions Parish Councils,40144,Grants and Subscriptions,5031,Parish contributions,09/04/2021,0155129,294.00,Revenue,Anderton Parish Council,18125,,
Chorley Borough Council,http://statistics.data.gov.uk/id/local-authority/30UE,Payments of Precepts to Parish,1018,Customer & Digital,Parish Council Tax,04500,Revenue Account Transfers,Balance,Parish precepts,09/04/2021,0155129,"4,806.00",Revenue,Anderton Parish Council,18125,,
Chorley Borough Council,http://statistics.data.gov.uk/id/local-authority/30UE,Central Support Services,1009,Communities,Impounded Dogs Costs,40207,Miscellaneous Expenses,5034,March retainer for Kennelling,21/04/2021,0155148,320.00,Revenue,Animal Wardens Ltd,80965,,
Chorley Borough Council,http://statistics.data.gov.uk/id/local-authority/30UE,Capital,Capital,Commercial & Property,Other Capital Related Fees,03024,Capital Expenditure,Capital,Chorley Markets sealing works for refurbishment,28/04/2021,0155813,574.35,Capital,Apollo Sealants Ltd,81976,,
Chorley Borough Council,http://statistics.data.gov.uk/id/local-authority/30UE,Planning Policy,1092,Communities,Professional Fees,40063,Services,5027,Preston City Council and Chorley Council Housing Need and Demand Assessment,21/04/2021,0155448,"11,868.10",Revenue,Arc4,60831,,
Chorley Borough Council,http://statistics.data.gov.uk/id/local-authority/30UE,Service Management & Support,1009,Customer & Digital,Protective Clothing,40040,"Clothing, Uniforms and Laundry",5025,"Arco Essentials Cargo Trousers 2 side, 2 rear & 2 thigh pockets with velcro flaps, metal rivet button fastening - Colour Black",23/04/2021,0155317,269.20,Revenue,Arco Limited,17458,,
Chorley Borough Council,http://statistics.data.gov.uk/id/local-authority/30UE,Central Support Services,1009,Policy & Governance,Car Leasing Payment,14100,Direct Employee Expenses,5001,VIN REDACTED,09/04/2021,0155238,217.96,Revenue,Arval UK Ltd,18240,,
Chorley Borough Council,http://statistics.data.gov.uk/id/local-authority/30UE,Central Support Services,1009,Policy & Governance,Car Leasing Payment,14100,Direct Employee Expenses,5001,vat,09/04/2021,0155238,18.31,Revenue,Arval UK Ltd,18240,,
Chorley Borough Council,http://statistics.data.gov.uk/id/local-authority/30UE,Control Accounts,Control,Policy & Governance,Manual Control Account,00001,Balance Sheet,Balance,-vat,09/04/2021,0155238,-18.31,Revenue,Arval UK Ltd,18240,,
Chorley Borough Council,http://statistics.data.gov.uk/id/local-authority/30UE,Central Support Services,1009,Policy & Governance,Car Leasing Payment,14100,Direct Employee Expenses,5001,VIN REDACTED,09/04/2021,0155238,"3,469.81",Revenue,Arval UK Ltd,18240,,
Chorley Borough Council,http://statistics.data.gov.uk/id/local-authority/30UE,Central Support Services,1009,Policy & Governance,Car Leasing Payment,14100,Direct Employee Expenses,5001,vat,09/04/2021,0155238,316.23,Revenue,Arval UK Ltd,18240,,
Chorley Borough Council,http://statistics.data.gov.uk/id/local-authority/30UE,Control Accounts,Control,Policy & Governance,Manual Control Account,00001,Balance Sheet,Balance,-vat,09/04/2021,0155238,-316.23,Revenue,Arval UK Ltd,18240,,
Chorley Borough Council,http://statistics.data.gov.uk/id/local-authority/30UE,Corporate Management,1008,Customer & Digital,Contributions Parish Councils,40144,Grants and Subscriptions,5031,contributions parish,09/04/2021,0155145,"3,877.00",Revenue,Astley Village Parish Council,17642,,
Chorley Borough Council,http://statistics.data.gov.uk/id/local-authority/30UE,Payments of Precepts to Parish,1018,Customer & Digital,Parish Council Tax,04500,Revenue Account Transfers,Balance,precepts/parish council,09/04/2021,0155145,"20,350.00",Revenue,Astley Village Parish Council,17642,,
Chorley Borough Council,http://statistics.data.gov.uk/id/local-authority/30UE,Public Transport,1067,Customer & Digital,Bus Shelters -Maintenance,20062,Grounds Maintenance Costs,5013,"Blackburn Road, Lower Wheelton, Chorley Replacement 610mm x 1135mm panel cost 195.00 x 1 Call out 85.00 x 1",28/04/2021,0155709,280.00,Revenue,Autocross Euroshel Ltd,77509,,
Chorley Borough Council,http://statistics.data.gov.uk/id/local-authority/30UE,Corporate Management,1008,Commercial & Property,Miscellaneous Expenses,40200,Miscellaneous Expenses,5034,To provide 32 x 10 unisex 7 bay toilet 1 @ 148.00 per week (13 weeks),21/04/2021,0155043,126.86,Revenue,AVDanzer,81970,,
Chorley Borough Council,http://statistics.data.gov.uk/id/local-authority/30UE,Corporate Management,1008,Commercial & Property,Miscellaneous Expenses,40200,Miscellaneous Expenses,5034,9 x 9 disabled toilet /shower 1 69.00 per week (13 weeks),21/04/2021,0155043,59.14,Revenue,AVDanzer,81970,,
Chorley Borough Council,http://statistics.data.gov.uk/id/local-authority/30UE,Corporate Management,1008,Commercial & Property,Miscellaneous Expenses,40200,Miscellaneous Expenses,5034,Plumber services for water & waste connections @ 35 per hour,21/04/2021,0155043,602.00,Revenue,AVDanzer,81970,,
Chorley Borough Council,http://statistics.data.gov.uk/id/local-authority/30UE,Corporate Management,1008,Commercial & Property,Miscellaneous Expenses,40200,Miscellaneous Expenses,5034,Delivery,21/04/2021,0155043,750.00,Revenue,AVDanzer,81970,,
Chorley Borough Council,http://statistics.data.gov.uk/id/local-authority/30UE,Open Spaces,1038,Communities,Urban Tree Scheme,20046,Grounds Maintenance Costs,5013,"Prunus sargentii �Columnaris� x 5, Aluns glutinosa x 2. Planted in pots and 7 stakes and ties to be delivered to Longfield Avenue",21/04/2021,0154243,"1,385.02",Revenue,Bannister Hall Ltd,22515,,
Chorley Borough Council,http://statistics.data.gov.uk/id/local-authority/30UE,Economic Development,1096,Commercial & Property,Christmas Lights,40179,Miscellaneous Expenses,5034,"Supply, erect, maintain, remove and store Christmas lights display for Chorley Town  Centre 2020/21 - Inc switch on costs",21/04/2021,0155371,"19,033.33",Revenue,Blackpool Borough Council,16518,,
Chorley Borough Council,http://statistics.data.gov.uk/id/local-authority/30UE,Central Support Services,1009,Commercial & Property,Planned Maintenance,20006,Repairs Maintenance & Alts,5005,Bengal St FOR THE PERIOD 17/12/2020 TO 16/12/2021 For the Bi-Annual Maintenance of 2 X Vehicle Barriers,30/04/2021,0155818,295.00,Revenue,Boundary Gate and Barrier Contracts Ltd,78225,,
Chorley Borough Council,http://statistics.data.gov.uk/id/local-authority/30UE,Corporate Management,1008,Commercial & Property,Miscellaneous Expenses,40200,Miscellaneous Expenses,5034,500 x packs of 5 Cat 2 masks as per quote 30/3/21 620 +VAT,30/04/2021,0155645,620.00,Revenue,Brands and bargains UK,80795,,
Chorley Borough Council,http://statistics.data.gov.uk/id/local-authority/30UE,Corporate Management,1008,Customer & Digital,Contributions Parish Councils,40144,Grants and Subscriptions,5031,contributions parish,09/04/2021,0155144,414.00,Revenue,Bretherton Parish Council,17108,,
Chorley Borough Council,http://statistics.data.gov.uk/id/local-authority/30UE,Payments of Precepts to Parish,1018,Customer & Digital,Parish Council Tax,04500,Revenue Account Transfers,Balance,precepts/parish council,09/04/2021,0155144,"14,216.00",Revenue,Bretherton Parish Council,17108,,
Chorley Borough Council,http://statistics.data.gov.uk/id/local-authority/30UE,Corporate Management,1008,Customer & Digital,Contributions Parish Councils,40144,Grants and Subscriptions,5031,Parish council precepts,09/04/2021,0154977,273.00,Revenue,Brindle Parish Council,17023,,
Chorley Borough Council,http://statistics.data.gov.uk/id/local-authority/30UE,Payments of Precepts to Parish,1018,Customer & Digital,Parish Council Tax,04500,Revenue Account Transfers,Balance,Parish council tax,09/04/2021,0154977,"6,527.00",Revenue,Brindle Parish Council,17023,,
Chorley Borough Council,http://statistics.data.gov.uk/id/local-authority/30UE,Recreation & Sport,1037,Customer & Digital,Telephones - Rentals,40083,Communication and Computing,5028,reg charge,09/04/2021,0155161,46.74,Revenue,British Telecommunications Plc,17131,,
Chorley Borough Council,http://statistics.data.gov.uk/id/local-authority/30UE,Democratic Represent and  Mgnt,1007,Customer & Digital,Telephones - Rentals,40083,Communication and Computing,5028,one off for PSTN standard connection x 3 @ 140.00,09/04/2021,0155161,420.00,Revenue,British Telecommunications Plc,17131,,
Chorley Borough Council,http://statistics.data.gov.uk/id/local-authority/30UE,Capital,Capital,Commercial & Property,Main Contractor,03007,Capital Expenditure,Capital,"Chorley Town Hall Chamber, Meet NAME REDACTED test colours, Painting works, Take out vents and block up, Plaster over",28/04/2021,0155780,"6,164.50",Capital,Bryan Lee Building Contractors Ltd,78160,,
Chorley Borough Council,http://statistics.data.gov.uk/id/local-authority/30UE,Unapportionable Central OHeads,1009,Commercial & Property,Planned Maintenance,20006,Repairs Maintenance & Alts,5005,"Cotswold House, Fire RA Works, Replace fire resistant glass, Glass 681.34, Putty, beads, miscellaneous: 54, Labour: 345",28/04/2021,0155797,"1,080.34",Revenue,Bryan Lee Building Contractors Ltd,78160,,
Chorley Borough Council,http://statistics.data.gov.uk/id/local-authority/30UE,Central Support Services,1009,Customer & Digital,Telephones - Rentals,40083,Communication and Computing,5028,CCTV rental - Yearly charge,09/04/2021,0155132,"1,768.36",Revenue,BT Redcare,21115,,
Chorley Borough Council,http://statistics.data.gov.uk/id/local-authority/30UE,Capital,Capital,Commercial & Property,Main Contractor,03007,Capital Expenditure,Capital,Astley Hall Renovation / Conservation Project,09/04/2021,0154326,"39,468.04",Capital,Bullen Conservation Ltd,68424,,
Chorley Borough Council,http://statistics.data.gov.uk/id/local-authority/30UE,Capital,Capital,Commercial & Property,Main Contractor,03007,Capital Expenditure,Capital,Astley Hall Renovation / Conservation Project,09/04/2021,0154531,"37,704.14",Capital,Bullen Conservation Ltd,68424,,
Chorley Borough Council,http://statistics.data.gov.uk/id/local-authority/30UE,Capital,Capital,Commercial & Property,Main Contractor,03007,Capital Expenditure,Capital,Astley Hall Renovation / Conservation Project,28/04/2021,0155001,"80,641.01",Capital,Bullen Conservation Ltd,68424,,
Chorley Borough Council,http://statistics.data.gov.uk/id/local-authority/30UE,Service Management & Support,1009,Customer & Digital,Supplies-Grounds Maintenance,40025,"Equipment, Furniture & Materia",5023,"Bengal Street Depot, Chorley � Empty 3 interceptors and clear aco drains 12 visits at 450.00",21/04/2021,0155096,375.00,Revenue,C J Lyon,16579,,
Chorley Borough Council,http://statistics.data.gov.uk/id/local-authority/30UE,Service Management & Support,1009,Customer & Digital,Supplies-Grounds Maintenance,40025,"Equipment, Furniture & Materia",5023,"Bengal Street Depot, Chorley � Empty 3 interceptors and clear aco drains 12 visits at 450.00",21/04/2021,0155343,375.00,Revenue,C J Lyon,16579,,
Chorley Borough Council,http://statistics.data.gov.uk/id/local-authority/30UE,Service Management & Support,1009,Customer & Digital,Supplies-Grounds Maintenance,40025,"Equipment, Furniture & Materia",5023,"As per invoice 31535, 06/10/2020, EMPTY INTERCEPTORS, TANKER DISPOSAL, SUPPLY COMBI UNIT TO CLEAN GULLIES",21/04/2021,0155558,"1,279.00",Revenue,C J Lyon,16579,,
Chorley Borough Council,http://statistics.data.gov.uk/id/local-authority/30UE,Homelessness,1075,Communities,External Contractor,40198,Miscellaneous Expenses,5034,Provision of Accommodation Finding Service (24 hours) & Resettlement Service (6 hours) from 1/1/2021 to 31/3/2021,16/04/2021,0155163,"7,286.50",Revenue,Calico Enterprise,73338,,
Chorley Borough Council,http://statistics.data.gov.uk/id/local-authority/30UE,Unapportionable Central OHeads,1009,Customer & Digital,Emergency Call Out System,40096,Communication and Computing,5028,Out of Hours call charges 20/21,16/04/2021,0155370,165.52,Revenue,CallCare Ltd,20257,,
Chorley Borough Council,http://statistics.data.gov.uk/id/local-authority/30UE,Central Support Services,1009,Customer & Digital,Emergency Call Out System,40096,Communication and Computing,5028,Out of hours standing charge 20/21,16/04/2021,0155370,120.00,Revenue,CallCare Ltd,20257,,
Chorley Borough Council,http://statistics.data.gov.uk/id/local-authority/30UE,Central Support Services,1009,Customer & Digital,Miscellaneous Expenses,40200,Miscellaneous Expenses,5034,31-03-21,09/04/2021,0155169,992.29,Revenue,Canon (UK) Ltd,17492,,
Chorley Borough Council,http://statistics.data.gov.uk/id/local-authority/30UE,Unapportionable Central OHeads,1009,Customer & Digital,Service Fees,40056,Services,5027,CTS Hardship Increases Script One Technical Consultancy,21/04/2021,0155071,"1,050.00",Revenue,Capita Business Services Ltd,17151,,
Chorley Borough Council,http://statistics.data.gov.uk/id/local-authority/30UE,Corporate Management,1008,Policy & Governance,Agency Staff,13000,Direct Employee Expenses,5001,Covid Grants Agency Staff NAME REDACTED,21/04/2021,0154241,850.00,Revenue,Castlefield Recruitment Limited,80454,,
Chorley Borough Council,http://statistics.data.gov.uk/id/local-authority/30UE,Corporate Management,1008,Policy & Governance,Agency Staff,13000,Direct Employee Expenses,5001,Covid Grants Agency Staff NAME REDACTED,21/04/2021,0154314,"1,112.50",Revenue,Castlefield Recruitment Limited,80454,,
Chorley Borough Council,http://statistics.data.gov.uk/id/local-authority/30UE,Corporate Management,1008,Policy & Governance,Agency Staff,13000,Direct Employee Expenses,5001,Covid Grants Agency Staff NAME REDACTED,21/04/2021,0154679,875.00,Revenue,Castlefield Recruitment Limited,80454,,
Chorley Borough Council,http://statistics.data.gov.uk/id/local-authority/30UE,Central Support Services,1009,Policy & Governance,Agency Staff,13000,Direct Employee Expenses,5001,Interim Director CFO - NAME REDACTED 4 x days per week ( 5 weeks) to end of March 2021,07/04/2021,0155006,"2,200.00",Revenue,Castlefield Recruitment Limited,80454,,
Chorley Borough Council,http://statistics.data.gov.uk/id/local-authority/30UE,Corporate Management,1008,Policy & Governance,Agency Staff,13000,Direct Employee Expenses,5001,Temporary employment of NAME REDACTED,09/04/2021,0155035,600.00,Revenue,Castlefield Recruitment Limited,80454,,
Chorley Borough Council,http://statistics.data.gov.uk/id/local-authority/30UE,Corporate Management,1008,Policy & Governance,Agency Staff,13000,Direct Employee Expenses,5001,Covid Grants Agency Staff NAME REDACTED,09/04/2021,0155075,975.00,Revenue,Castlefield Recruitment Limited,80454,,
Chorley Borough Council,http://statistics.data.gov.uk/id/local-authority/30UE,Corporate Management,1008,Policy & Governance,Agency Staff,13000,Direct Employee Expenses,5001,Covid Grants Agency Staff NAME REDACTED,09/04/2021,0155076,825.00,Revenue,Castlefield Recruitment Limited,80454,,
Chorley Borough Council,http://statistics.data.gov.uk/id/local-authority/30UE,Corporate Management,1008,Policy & Governance,Agency Staff,13000,Direct Employee Expenses,5001,Covid Grants Agency Staff NAME REDACTED,21/04/2021,0155339,800.00,Revenue,Castlefield Recruitment Limited,80454,,
Chorley Borough Council,http://statistics.data.gov.uk/id/local-authority/30UE,Corporate Management,1008,Policy & Governance,Agency Staff,13000,Direct Employee Expenses,5001,Temporary employment of NAME REDACTED,23/04/2021,0155344,480.00,Revenue,Castlefield Recruitment Limited,80454,,
Chorley Borough Council,http://statistics.data.gov.uk/id/local-authority/30UE,Corporate Management,1008,Policy & Governance,Agency Staff,13000,Direct Employee Expenses,5001,Covid Grants Agency Staff NAME REDACTED,21/04/2021,0155533,675.00,Revenue,Castlefield Recruitment Limited,80454,,
Chorley Borough Council,http://statistics.data.gov.uk/id/local-authority/30UE,Corporate Management,1008,Policy & Governance,Agency Staff,13000,Direct Employee Expenses,5001,Temporary employment of NAME REDACTED,23/04/2021,0155534,600.00,Revenue,Castlefield Recruitment Limited,80454,,
Chorley Borough Council,http://statistics.data.gov.uk/id/local-authority/30UE,Central Support Services,1009,Policy & Governance,Agency Staff,13000,Direct Employee Expenses,5001,Interim Director CFO - NAME REDACTED 4 x days per week ( 5 weeks) to end of March 2021,21/04/2021,0155542,"2,200.00",Revenue,Castlefield Recruitment Limited,80454,,
Chorley Borough Council,http://statistics.data.gov.uk/id/local-authority/30UE,Corporate Management,1008,Policy & Governance,Agency Staff,13000,Direct Employee Expenses,5001,Covid Grants Agency Staff NAME REDACTED,28/04/2021,0155724,825.00,Revenue,Castlefield Recruitment Limited,80454,,
Chorley Borough Council,http://statistics.data.gov.uk/id/local-authority/30UE,Corporate Management,1008,Policy & Governance,Agency Staff,13000,Direct Employee Expenses,5001,Temporary employment of NAME REDACTED,28/04/2021,0155726,600.00,Revenue,Castlefield Recruitment Limited,80454,,
Chorley Borough Council,http://statistics.data.gov.uk/id/local-authority/30UE,Central Support Services,1009,Policy & Governance,Agency Staff,13000,Direct Employee Expenses,5001,NAME REDACTED - 4 days per week x 8 weeks,28/04/2021,0155808,"1,650.00",Revenue,Castlefield Recruitment Limited,80454,,
Chorley Borough Council,http://statistics.data.gov.uk/id/local-authority/30UE,Corporate Management,1008,Commercial & Property,Miscellaneous Expenses,40200,Miscellaneous Expenses,5034,Covid spraying of council buildings and vans,07/04/2021,0154910,"5,650.00",Revenue,Castus Solutions Limited,78812,,
Chorley Borough Council,http://statistics.data.gov.uk/id/local-authority/30UE,Recreation & Sport,1037,Communities,Miscellaneous Expenses,40200,Miscellaneous Expenses,5034,Removal of grout from poolside filter grids with enhanced acidic rust mark clean 975.00,16/04/2021,0155410,975.00,Revenue,Castus Solutions Limited,78812,,
Chorley Borough Council,http://statistics.data.gov.uk/id/local-authority/30UE,Democratic Represent and  Mgnt,1007,Commercial & Property,General Repairs - Reactive,20004,Repairs Maintenance & Alts,5005,"All Seasons Leisure Centre, Chorley, PR7 1EX QU-0378 Main Entrance Inner Door Repair 1x Activation/safety sensor",30/04/2021,0155923,300.00,Revenue,CC Door Systems Ltd,81624,,
Chorley Borough Council,http://statistics.data.gov.uk/id/local-authority/30UE,Recreation & Sport,1037,Communities,Miscellaneous Expenses,40200,Miscellaneous Expenses,5034,Installation of Multi Media Equipment at ASLC & CGSC,16/04/2021,0155025,"5,345.00",Revenue,CDS Events,81168,,
Chorley Borough Council,http://statistics.data.gov.uk/id/local-authority/30UE,Democratic Represent and  Mgnt,1007,Communities,Miscellaneous Expenses,40200,Miscellaneous Expenses,5034,Installation of Multi Media Equipment at ASLC & CGSC,16/04/2021,0155025,"4,235.00",Revenue,CDS Events,81168,,
Chorley Borough Council,http://statistics.data.gov.uk/id/local-authority/30UE,Business Support,1095,Commercial & Property,Salting & Gritting,20059,Grounds Maintenance Costs,5013,"Seasonal Winter Gritting service for Market Walk Shopping Centre, service yards, public walkways and car park as discussed",30/04/2021,0154502,"1,760.10",Revenue,Chameleon Facilities Limited,78464,,
Chorley Borough Council,http://statistics.data.gov.uk/id/local-authority/30UE,Democratic Represent and  Mgnt,1007,Commercial & Property,Salting & Gritting,20059,Grounds Maintenance Costs,5013,Seasonal Winter Gritting service for Clayton Green Leisure centre. Quote per visit 53.20 (PO based on 40 visits),21/04/2021,0154509,532.00,Revenue,Chameleon Facilities Limited,78464,,
Chorley Borough Council,http://statistics.data.gov.uk/id/local-authority/30UE,Corporate Management,1008,Customer & Digital,Contributions Parish Councils,40144,Grants and Subscriptions,5031,Parish contributions,09/04/2021,0155118,345.00,Revenue,Charnock Richard Parish Cncl,16206,,
Chorley Borough Council,http://statistics.data.gov.uk/id/local-authority/30UE,Payments of Precepts to Parish,1018,Customer & Digital,Parish Council Tax,04500,Revenue Account Transfers,Balance,Parish precepts,09/04/2021,0155118,"29,655.00",Revenue,Charnock Richard Parish Cncl,16206,,
Chorley Borough Council,http://statistics.data.gov.uk/id/local-authority/30UE,Parking Services,1066,Commercial & Property,External Contractors,50008,Private Contractors,5042,"MIPERMIT FEES, MIPERMIT CHARGE, ELECPAYBANKFEE",23/04/2021,0154845,269.32,Revenue,Chipside Ltd,22063,,
Chorley Borough Council,http://statistics.data.gov.uk/id/local-authority/30UE,Economic Development,1096,Commercial & Property,Publicity - Advertising,40157,Miscellaneous Expenses,5034,Annual sponsorship of scooter to promote Chorley Markets 01.04.21 - 31.03.22,30/04/2021,0155959,250.00,Revenue,Chorley & South Ribble Shopmobility,18403,,
Chorley Borough Council,http://statistics.data.gov.uk/id/local-authority/30UE,Economic Development,1096,Commercial & Property,Grants To Other Organisations,40127,Grants and Subscriptions,5031,Large core funding contract to supply Shopmobility service 01.04.21 - 31.03.22,30/04/2021,0155960,"17,000.00",Revenue,Chorley & South Ribble Shopmobility,18403,,
Chorley Borough Council,http://statistics.data.gov.uk/id/local-authority/30UE,Corporate Management,1008,Customer & Digital,Taxi Testing & Vehicle Safety Report,40234,Services,5027,mot,14/04/2021,0155311,"1,097.00",Revenue,Chorley Autocare Ltd,17110,,
Chorley Borough Council,http://statistics.data.gov.uk/id/local-authority/30UE,Regulatory Services,1048,Customer & Digital,Taxi Testing & Vehicle Safety Report,40234,Services,5027,taxi test,14/04/2021,0155311,171.00,Revenue,Chorley Autocare Ltd,17110,,
Chorley Borough Council,http://statistics.data.gov.uk/id/local-authority/30UE,Service Management & Support,1009,Customer & Digital,Vehicles and Plant Maintenance,30045,Direct Transport Costs,5016,PN15 YWB 4 x New tyres Disposal,16/04/2021,0155210,263.34,Revenue,Chorley Tyres,53719,,
Chorley Borough Council,http://statistics.data.gov.uk/id/local-authority/30UE,Economic Development,1096,Commercial & Property,Fixtures & Fittings - Repair/Mtnce,20028,Fixtures and Fittings,5010,"Chorley Town Centre Anchor test, inspection and certification (summer bunting and xmas wire catenary eye bolts)",28/04/2021,0155630,"1,865.00",Revenue,City Illuminations Ltd,77388,,
Chorley Borough Council,http://statistics.data.gov.uk/id/local-authority/30UE,Economic Development,1096,Commercial & Property,Fixtures & Fittings - Repair/Mtnce,20028,Fixtures and Fittings,5010,Installation and removal of summer bunting as per quote 25/3/21 Install 2000 Removal 1500  (Date TBC) Total 3500,28/04/2021,0155631,"2,000.00",Revenue,City Illuminations Ltd,77388,,
Chorley Borough Council,http://statistics.data.gov.uk/id/local-authority/30UE,Central Support Services,1009,Commercial & Property,General Repairs - Reactive,20004,Repairs Maintenance & Alts,5005,Blanket reactive to end of March 20,23/04/2021,0154668,690.45,Revenue,Classic Lifts Limited,20897,,
Chorley Borough Council,http://statistics.data.gov.uk/id/local-authority/30UE,Unapportionable Central OHeads,1009,Commercial & Property,Planned Maintenance,20006,Repairs Maintenance & Alts,5005,PPM Blanket,23/04/2021,0154737,368.00,Revenue,Classic Lifts Limited,20897,,
Chorley Borough Council,http://statistics.data.gov.uk/id/local-authority/30UE,Recreation & Sport,1037,Commercial & Property,General Repairs - Reactive,20004,Repairs Maintenance & Alts,5005,"ASLC LA202046304-CLM08305-SQ2020-46304 Instructed by NAME REDACTED, Quote - Recent attendance to site engineer",23/04/2021,0154909,967.24,Revenue,Classic Lifts Limited,20897,,
Chorley Borough Council,http://statistics.data.gov.uk/id/local-authority/30UE,Corporate Management,1008,Customer & Digital,Contributions Parish Councils,40144,Grants and Subscriptions,5031,Parish council contributions,09/04/2021,0154978,"11,458.00",Revenue,Clayton-Le-Woods Parish Coun.,17024,,
Chorley Borough Council,http://statistics.data.gov.uk/id/local-authority/30UE,Payments of Precepts to Parish,1018,Customer & Digital,Parish Council Tax,04500,Revenue Account Transfers,Balance,Parish council tax,09/04/2021,0154978,"110,592.00",Revenue,Clayton-Le-Woods Parish Coun.,17024,,
Chorley Borough Council,http://statistics.data.gov.uk/id/local-authority/30UE,Recognised Cap Grants & Conts,,Customer & Digital,Contributions Parish Councils,40144,Grants and Subscriptions,5031,CIL receipt for period 1/10/20 - 31/03/21,23/04/2021,0155490,"12,207.86",Revenue,Clayton-Le-Woods Parish Coun.,17024,,
Chorley Borough Council,http://statistics.data.gov.uk/id/local-authority/30UE,Central Support Services,1009,Commercial & Property,Professional Fees,40063,Services,5027,Component Level LCC for BREEAM NC 2014; targeting up to 1 credit,30/04/2021,0155820,"2,400.00",Revenue,Complete Sustainability Solutions,80558,,
Chorley Borough Council,http://statistics.data.gov.uk/id/local-authority/30UE,Open Spaces,1038,Communities,Grounds Maintenance Contractor,20043,Grounds Maintenance Costs,5013,Coppicing and woodland management of willow and hazel for future green engineering river enhancement works,30/04/2021,0155849,730.00,Revenue,Conservation Contracts North West,20520,,
Chorley Borough Council,http://statistics.data.gov.uk/id/local-authority/30UE,Democratic Represent and  Mgnt,1007,Policy & Governance,Grants To Other Organisations,40127,Grants and Subscriptions,5031,councillor grant,16/04/2021,0155312,300.00,Revenue,Coppull Football Club,82025,,
Chorley Borough Council,http://statistics.data.gov.uk/id/local-authority/30UE,Democratic Represent and  Mgnt,1007,Policy & Governance,Grants To Other Organisations,40127,Grants and Subscriptions,5031,councillor community grant,09/04/2021,0155200,300.00,Revenue,Coppull in Bloom,59973,,
Chorley Borough Council,http://statistics.data.gov.uk/id/local-authority/30UE,Corporate Management,1008,Customer & Digital,Contributions Parish Councils,40144,Grants and Subscriptions,5031,Contributions parish council,09/04/2021,0154979,"10,576.00",Revenue,Coppull Parish Council,17025,,
Chorley Borough Council,http://statistics.data.gov.uk/id/local-authority/30UE,Payments of Precepts to Parish,1018,Customer & Digital,Parish Council Tax,04500,Revenue Account Transfers,Balance,Parish coucil tax,09/04/2021,0154979,"91,424.00",Revenue,Coppull Parish Council,17025,,
Chorley Borough Council,http://statistics.data.gov.uk/id/local-authority/30UE,Recognised Cap Grants & Conts,,Customer & Digital,Contributions Parish Councils,40144,Grants and Subscriptions,5031,CIL receipt for period 01/10/2020 - 30/03/2021,23/04/2021,0155491,"2,157.05",Revenue,Coppull Parish Council,17025,,
Chorley Borough Council,http://statistics.data.gov.uk/id/local-authority/30UE,Central Support Services,1009,Customer & Digital,Computer Equipment-Purchase,40098,Communication and Computing,5028,Primrose Gardens and Market Street Column  - civil works from 2019/20 Inv 3603,23/04/2021,0152908,"15,092.17",Revenue,Core Integrated Solutions,77043,,
Chorley Borough Council,http://statistics.data.gov.uk/id/local-authority/30UE,Parking Services,1066,Commercial & Property,Fixtures & Fittings - Repair/Mtnce,20028,Fixtures and Fittings,5010,Friday st car park lighting repairs,21/04/2021,0153046,900.00,Revenue,Corlett Electrical Eng Co Ltd,16271,,
Chorley Borough Council,http://statistics.data.gov.uk/id/local-authority/30UE,Democratic Represent and  Mgnt,1007,Commercial & Property,General Repairs - Reactive,20004,Repairs Maintenance & Alts,5005,"ASLC HLP0013358, order 12511, DDA wetside and electrical cupboard opposite AS upstairs",07/04/2021,0154920,372.27,Revenue,Corlett Electrical Eng Co Ltd,16271,,
Chorley Borough Council,http://statistics.data.gov.uk/id/local-authority/30UE,Central Support Services,1009,Commercial & Property,General Repairs - Reactive,20004,Repairs Maintenance & Alts,5005,Primrose Gardens  - reactive repair works,30/04/2021,0155885,272.20,Revenue,Corlett Electrical Eng Co Ltd,16271,,
Chorley Borough Council,http://statistics.data.gov.uk/id/local-authority/30UE,Recreation & Sport,1037,Commercial & Property,Gas,20014,Energy Costs,5006,Centre Drive - Utility,09/04/2021,0155217,"1,083.87",Revenue,Corona Energy Retail 2 Ltd,67249,,
Chorley Borough Council,http://statistics.data.gov.uk/id/local-authority/30UE,Democratic Represent and  Mgnt,1007,Commercial & Property,Gas,20014,Energy Costs,5006,Brinscall Baths - utility bill,09/04/2021,0155218,"1,219.08",Revenue,Corona Energy Retail 2 Ltd,67249,,
Chorley Borough Council,http://statistics.data.gov.uk/id/local-authority/30UE,Homelessness,1075,Commercial & Property,Gas,20014,Energy Costs,5006,feb - mar 21,09/04/2021,0155220,978.74,Revenue,Corona Energy Retail 2 Ltd,67249,,
Chorley Borough Council,http://statistics.data.gov.uk/id/local-authority/30UE,Recreation & Sport,1037,Commercial & Property,Gas,20014,Energy Costs,5006,feb - mar 21,09/04/2021,0155225,"1,388.38",Revenue,Corona Energy Retail 2 Ltd,67249,,
Chorley Borough Council,http://statistics.data.gov.uk/id/local-authority/30UE,Democratic Represent and  Mgnt,1007,Commercial & Property,Gas,20014,Energy Costs,5006,feb - mar 21,09/04/2021,0155227,899.04,Revenue,Corona Energy Retail 2 Ltd,67249,,
Chorley Borough Council,http://statistics.data.gov.uk/id/local-authority/30UE,Unapportionable Central OHeads,1009,Commercial & Property,Gas,20014,Energy Costs,5006,feb - mar 21,09/04/2021,0155228,789.96,Revenue,Corona Energy Retail 2 Ltd,67249,,
Chorley Borough Council,http://statistics.data.gov.uk/id/local-authority/30UE,Central Support Services,1009,Commercial & Property,Gas,20014,Energy Costs,5006,feb - mar 21,09/04/2021,0155229,"1,217.59",Revenue,Corona Energy Retail 2 Ltd,67249,,
Chorley Borough Council,http://statistics.data.gov.uk/id/local-authority/30UE,Business Support,1095,Commercial & Property,Gas,20014,Energy Costs,5006,feb - mar 21,09/04/2021,0155232,"2,318.61",Revenue,Corona Energy Retail 2 Ltd,67249,,
Chorley Borough Council,http://statistics.data.gov.uk/id/local-authority/30UE,Democratic Represent and  Mgnt,1007,Commercial & Property,Gas,20014,Energy Costs,5006,feb - mar 21,09/04/2021,0155234,"3,644.11",Revenue,Corona Energy Retail 2 Ltd,67249,,
Chorley Borough Council,http://statistics.data.gov.uk/id/local-authority/30UE,Recreation & Sport,1037,Commercial & Property,Gas,20014,Energy Costs,5006,Centra drive utilities,28/04/2021,0155754,"1,137.96",Revenue,Corona Energy Retail 2 Ltd,67249,,
Chorley Borough Council,http://statistics.data.gov.uk/id/local-authority/30UE,Democratic Represent and  Mgnt,1007,Commercial & Property,Gas,20014,Energy Costs,5006,Lodge Bank utilites,28/04/2021,0155755,"1,633.39",Revenue,Corona Energy Retail 2 Ltd,67249,,
Chorley Borough Council,http://statistics.data.gov.uk/id/local-authority/30UE,Homelessness,1075,Commercial & Property,Gas,20014,Energy Costs,5006,Cotswold House Utilities,28/04/2021,0155765,962.57,Revenue,Corona Energy Retail 2 Ltd,67249,,
Chorley Borough Council,http://statistics.data.gov.uk/id/local-authority/30UE,Recreation & Sport,1037,Commercial & Property,Gas,20014,Energy Costs,5006,Astley Village Comm centre utilities,28/04/2021,0155767,271.31,Revenue,Corona Energy Retail 2 Ltd,67249,,
Chorley Borough Council,http://statistics.data.gov.uk/id/local-authority/30UE,Democratic Represent and  Mgnt,1007,Commercial & Property,Gas,20014,Energy Costs,5006,Astley Hall utilities,28/04/2021,0155770,"1,165.18",Revenue,Corona Energy Retail 2 Ltd,67249,,
Chorley Borough Council,http://statistics.data.gov.uk/id/local-authority/30UE,Open Spaces,1038,Commercial & Property,Gas,20014,Energy Costs,5006,Astley coach house utilities,28/04/2021,0155772,740.68,Revenue,Corona Energy Retail 2 Ltd,67249,,
Chorley Borough Council,http://statistics.data.gov.uk/id/local-authority/30UE,Unapportionable Central OHeads,1009,Commercial & Property,Gas,20014,Energy Costs,5006,Town Hall utilities,28/04/2021,0155773,840.64,Revenue,Corona Energy Retail 2 Ltd,67249,,
Chorley Borough Council,http://statistics.data.gov.uk/id/local-authority/30UE,Central Support Services,1009,Commercial & Property,Gas,20014,Energy Costs,5006,union Street utilities,28/04/2021,0155774,"1,205.14",Revenue,Corona Energy Retail 2 Ltd,67249,,
Chorley Borough Council,http://statistics.data.gov.uk/id/local-authority/30UE,Central Support Services,1009,Communities,Miscellaneous Expenses,40200,Miscellaneous Expenses,5034,GRT support for All Seasons leisure Centre GRT and Arley Street car park. Inclusive of officer time/travel and Notice served,21/04/2021,0155162,"2,825.00",Revenue,COURT ENFORCEMENT SPECIALISTS LTD,77924,,
Chorley Borough Council,http://statistics.data.gov.uk/id/local-authority/30UE,Central Support Services,1009,Communities,Miscellaneous Expenses,40200,Miscellaneous Expenses,5034,Second part of invoice - All seasons Leisure centre GRT/Arley Street,28/04/2021,0155164,"1,125.00",Revenue,COURT ENFORCEMENT SPECIALISTS LTD,77924,,
Chorley Borough Council,http://statistics.data.gov.uk/id/local-authority/30UE,Corporate Management,1008,Customer & Digital,Items For Resale,40027,"Equipment, Furniture & Materia",5023,240 L Neo plastic wheeled bin (BLUE) Quantity = 300 with Chorley logo,14/04/2021,0155010,"5,268.00",Revenue,Craemer UK Ltd,64712,,
Chorley Borough Council,http://statistics.data.gov.uk/id/local-authority/30UE,Central Support Services,1009,Customer & Digital,Items For Resale,40027,"Equipment, Furniture & Materia",5023,240 L Neo plastic wheeled bin (BROWN) Quantity = 300 with Chorley logo,21/04/2021,0155069,"5,085.00",Revenue,Craemer UK Ltd,64712,,
Chorley Borough Council,http://statistics.data.gov.uk/id/local-authority/30UE,Corporate Management,1008,Customer & Digital,Items For Resale,40027,"Equipment, Furniture & Materia",5023,240 L Neo plastic wheeled bin (GREEN) Quantity = 300 with Chorley logo,21/04/2021,0155070,"5,085.00",Revenue,Craemer UK Ltd,64712,,
Chorley Borough Council,http://statistics.data.gov.uk/id/local-authority/30UE,Corporate Management,1008,Customer & Digital,Contributions Parish Councils,40144,Grants and Subscriptions,5031,Contributions parish council,09/04/2021,0154980,"1,440.00",Revenue,Croston Parish Council,17026,,
Chorley Borough Council,http://statistics.data.gov.uk/id/local-authority/30UE,Payments of Precepts to Parish,1018,Customer & Digital,Parish Council Tax,04500,Revenue Account Transfers,Balance,Parish council tax,09/04/2021,0154980,"24,050.00",Revenue,Croston Parish Council,17026,,
Chorley Borough Council,http://statistics.data.gov.uk/id/local-authority/30UE,Corporate Management,1008,Customer & Digital,Contributions Parish Councils,40144,Grants and Subscriptions,5031,Parish contributions,09/04/2021,0155119,2.00,Revenue,Cuerden Parish Council,16207,,
Chorley Borough Council,http://statistics.data.gov.uk/id/local-authority/30UE,Payments of Precepts to Parish,1018,Customer & Digital,Parish Council Tax,04500,Revenue Account Transfers,Balance,Parish precepts,09/04/2021,0155119,"1,288.00",Revenue,Cuerden Parish Council,16207,,
Chorley Borough Council,http://statistics.data.gov.uk/id/local-authority/30UE,Corporate Management,1008,Policy & Governance,Miscellaneous Expenses,40200,Miscellaneous Expenses,5034,Hire of 8 portable hand wash stations from 8th February to 7th March 2021 (4 weeks). Invoice number: 3126.,07/04/2021,0153895,"1,440.00",Revenue,Cyril Unsworth Ltd,78887,,
Chorley Borough Council,http://statistics.data.gov.uk/id/local-authority/30UE,Corporate Management,1008,Policy & Governance,Miscellaneous Expenses,40200,Miscellaneous Expenses,5034,Hire of 8 portable hand wash stations from 8th March to 4th April 2021 (4 weeks). Invoice: 3130,09/04/2021,0155282,"1,440.00",Revenue,Cyril Unsworth Ltd,78887,,
Chorley Borough Council,http://statistics.data.gov.uk/id/local-authority/30UE,Capital,Capital,Communities,Grants,03002,Capital Expenditure,Capital,ADDRESS REDACTED,28/04/2021,0155702,"3,153.00",Capital,NAME REDACTED,78482,,
Chorley Borough Council,http://statistics.data.gov.uk/id/local-authority/30UE,Corporate Management,1008,Policy & Governance,Miscellaneous Expenses,40200,Miscellaneous Expenses,5034,filming and editing of 11 pages of the Chorley Council website.,21/04/2021,0155120,450.00,Revenue,Deafway,81321,,
Chorley Borough Council,http://statistics.data.gov.uk/id/local-authority/30UE,Building Control,1090,Customer & Digital,Agency Staff,13000,Direct Employee Expenses,5001,Agency Fees for NAME REDACTED Building Control Officer ends 02.04.2021 21.75hrs per week plus travel costs,16/04/2021,0154663,"1,328.40",Revenue,Deekay Technical Recruit Ltd,17160,,
Chorley Borough Council,http://statistics.data.gov.uk/id/local-authority/30UE,Building Control,1090,Customer & Digital,Agency Staff,13000,Direct Employee Expenses,5001,"Agency Fees for NAME REDACTED Building Control Officer ends 02.04.2021, 21.75hrs per week plus travel costs",16/04/2021,0154665,"1,157.25",Revenue,Deekay Technical Recruit Ltd,17160,,
Chorley Borough Council,http://statistics.data.gov.uk/id/local-authority/30UE,Building Control,1090,Customer & Digital,Agency Staff,13000,Direct Employee Expenses,5001,Agency Fees for NAME REDACTED Building Control Officer plus travel costs - ongoing,21/04/2021,0155440,"1,586.49",Revenue,Deekay Technical Recruit Ltd,17160,,
Chorley Borough Council,http://statistics.data.gov.uk/id/local-authority/30UE,Building Control,1090,Customer & Digital,Agency Staff,13000,Direct Employee Expenses,5001,Agency Fees for NAME REDACTED Building Control Officer plus travel costs - ongoing,21/04/2021,0155462,"1,778.70",Revenue,Deekay Technical Recruit Ltd,17160,,
Chorley Borough Council,http://statistics.data.gov.uk/id/local-authority/30UE,Building Control,1090,Customer & Digital,Agency Staff,13000,Direct Employee Expenses,5001,Agency Fees for NAME REDACTED Building Control Officer plus travel costs - ongoing,23/04/2021,0155650,"1,367.94",Revenue,Deekay Technical Recruit Ltd,17160,,
Chorley Borough Council,http://statistics.data.gov.uk/id/local-authority/30UE,Building Control,1090,Customer & Digital,Agency Staff,13000,Direct Employee Expenses,5001,Agency Fees for NAME REDACTED Building Control Officer plus travel costs - ongoing,23/04/2021,0155656,"1,457.49",Revenue,Deekay Technical Recruit Ltd,17160,,
Chorley Borough Council,http://statistics.data.gov.uk/id/local-authority/30UE,Regulatory Services,1048,Customer & Digital,Professional Fees,14011,Direct Employee Expenses,5001,Consultation Fees for Taxi Group 2 Medicals December 2020 ongoing,23/04/2021,0155318,460.00,Revenue,Dr Simon Jones,81046,,
Chorley Borough Council,http://statistics.data.gov.uk/id/local-authority/30UE,Corporate Management,1008,Customer & Digital,Professional Fees,14011,Direct Employee Expenses,5001,INV105 to match off against credit CN101,28/04/2021,0155814,260.00,Revenue,Dr Simon Jones,81046,,
Chorley Borough Council,http://statistics.data.gov.uk/id/local-authority/30UE,Service Management & Support,1009,Customer & Digital,External Contractor,40198,Miscellaneous Expenses,5034,"Testing (35 HAV/5 WBV), detailed reporting and supply of colour coded safety tags, to be carried out 01/03/2021 and 02/03/2021",23/04/2021,0155382,902.00,Revenue,Earlsmere Ltd,77775,,
Chorley Borough Council,http://statistics.data.gov.uk/id/local-authority/30UE,Corporate Management,1008,Customer & Digital,Contributions Parish Councils,40144,Grants and Subscriptions,5031,contributions parish,09/04/2021,0155281,"1,636.00",Revenue,Eccleston Parish Council,17027,,
Chorley Borough Council,http://statistics.data.gov.uk/id/local-authority/30UE,Payments of Precepts to Parish,1018,Customer & Digital,Parish Council Tax,04500,Revenue Account Transfers,Balance,precepts/parish council,09/04/2021,0155281,"45,194.00",Revenue,Eccleston Parish Council,17027,,
Chorley Borough Council,http://statistics.data.gov.uk/id/local-authority/30UE,Recognised Cap Grants & Conts,,Customer & Digital,Contributions Parish Councils,40144,Grants and Subscriptions,5031,CIL Receipt for period 01/10/2020 - 31/03/2021,23/04/2021,0155492,"30,929.87",Revenue,Eccleston Parish Council,17027,,
Chorley Borough Council,http://statistics.data.gov.uk/id/local-authority/30UE,Capital,Capital,Commercial & Property,Other Expenses,03030,Capital Expenditure,Capital,"Friday Street car park under ramp cages. To supply & fit the mesh, posts 60x60 x3 box section with top brackets, gates, padlock",21/04/2021,0155087,"7,860.00",Capital,Edwards Wrought Iron Ltd,77654,,
Chorley Borough Council,http://statistics.data.gov.uk/id/local-authority/30UE,Unapportionable Central OHeads,1009,Commercial & Property,General Repairs - Reactive,20004,Repairs Maintenance & Alts,5005,General building reactive repairs blanket,28/04/2021,0154794,287.90,Revenue,EFT Construction,78195,,
Chorley Borough Council,http://statistics.data.gov.uk/id/local-authority/30UE,Central Support Services,1009,Commercial & Property,General Repairs - Reactive,20004,Repairs Maintenance & Alts,5005,General building reactive repairs blanket,28/04/2021,0154937,357.50,Revenue,EFT Construction,78195,,
Chorley Borough Council,http://statistics.data.gov.uk/id/local-authority/30UE,Unapportionable Central OHeads,1009,Commercial & Property,General Repairs - Reactive,20004,Repairs Maintenance & Alts,5005,"ASLC Inv100148, TF Order12268, HLP13052 Staff Room: External fire exit. Push release bar. Inv100277, TF Order12123",28/04/2021,0155734,281.60,Revenue,EFT Construction,78195,,
Chorley Borough Council,http://statistics.data.gov.uk/id/local-authority/30UE,Homelessness,1075,Commercial & Property,Laundry,40042,"Clothing, Uniforms and Laundry",5025,"Bedding Cleaning and delivery services; 10/2020-31/03/2021 Cotswold Supported Housing, Cotswold Road, Chorley, PR7 3HW",21/04/2021,0155488,691.18,Revenue,Elis UK Ltd,20799,,
Chorley Borough Council,http://statistics.data.gov.uk/id/local-authority/30UE,Homelessness,1075,Commercial & Property,Laundry,40042,"Clothing, Uniforms and Laundry",5025,"Bedding Cleaning and delivery services; 10/2020-31/03/2021 Cotswold Supported Housing, Cotswold Road, Chorley, PR7 3HW",21/04/2021,0155497,691.18,Revenue,Elis UK Ltd,20799,,
Chorley Borough Council,http://statistics.data.gov.uk/id/local-authority/30UE,Homelessness,1075,Commercial & Property,Laundry,40042,"Clothing, Uniforms and Laundry",5025,"Bedding Cleaning and delivery services; 10/2020-31/03/2021 Cotswold Supported Housing, Cotswold Road, Chorley, PR7 3HW",21/04/2021,0155498,552.80,Revenue,Elis UK Ltd,20799,,
Chorley Borough Council,http://statistics.data.gov.uk/id/local-authority/30UE,Homelessness,1075,Commercial & Property,Laundry,40042,"Clothing, Uniforms and Laundry",5025,"Bedding Cleaning and delivery services; 10/2020-31/03/2021 Cotswold Supported Housing, Cotswold Road, Chorley, PR7 3HW",21/04/2021,0155501,691.18,Revenue,Elis UK Ltd,20799,,
Chorley Borough Council,http://statistics.data.gov.uk/id/local-authority/30UE,Homelessness,1075,Commercial & Property,Laundry,40042,"Clothing, Uniforms and Laundry",5025,"Bedding Cleaning and delivery services; 10/2020-31/03/2021 Cotswold Supported Housing, Cotswold Road, Chorley, PR7 3HW",21/04/2021,0155502,691.18,Revenue,Elis UK Ltd,20799,,
Chorley Borough Council,http://statistics.data.gov.uk/id/local-authority/30UE,Homelessness,1075,Commercial & Property,Laundry,40042,"Clothing, Uniforms and Laundry",5025,12 month laundry for Cotswold Supported House,30/04/2021,0155883,691.18,Revenue,Elis UK Ltd,20799,,
Chorley Borough Council,http://statistics.data.gov.uk/id/local-authority/30UE,Unapportionable Central OHeads,1009,Customer & Digital,Depot Licences,40236,Miscellaneous Expenses,5034,FY 2021.2022 payment for Permit EPR Ref: REDACTED Bengal Street Depot. For invoice no.N00004866T,21/04/2021,0155585,"1,424.50",Revenue,Environment Agency,18256,,
Chorley Borough Council,http://statistics.data.gov.uk/id/local-authority/30UE,Business Support,1095,Commercial & Property,Internet Charges,40104,Communication and Computing,5028,"For all regular, monthly invoices to cover Operate Growth, Connect Growth and Public IP & Call Charges for the year 21-22",21/04/2021,0155569,"3,810.00",Revenue,Essensys Ltd,77836,,
Chorley Borough Council,http://statistics.data.gov.uk/id/local-authority/30UE,Unapportionable Central OHeads,1009,Commercial & Property,Planned Maintenance,20006,Repairs Maintenance & Alts,5005,Test and inspection of the fall arrest equipment at the Town Hall as per agreement with NAME REDACTED,28/04/2021,0155061,285.00,Revenue,Eurosafe Solutions Limited,66302,,
Chorley Borough Council,http://statistics.data.gov.uk/id/local-authority/30UE,Central Support Services,1009,Commercial & Property,Planned Maintenance,20006,Repairs Maintenance & Alts,5005,"Fall arrest system test and inspection at Civic office, union st",28/04/2021,0155062,300.00,Revenue,Eurosafe Solutions Limited,66302,,
Chorley Borough Council,http://statistics.data.gov.uk/id/local-authority/30UE,Unapportionable Central OHeads,1009,Commercial & Property,Planned Maintenance,20006,Repairs Maintenance & Alts,5005,Fall arrest Retest of All Seasons Leisure Centre,28/04/2021,0155777,250.00,Revenue,Eurosafe Solutions Limited,66302,,
Chorley Borough Council,http://statistics.data.gov.uk/id/local-authority/30UE,Corporate Management,1008,Customer & Digital,Contributions Parish Councils,40144,Grants and Subscriptions,5031,contributions parish,09/04/2021,0155143,"1,709.00",Revenue,Euxton Parish Council,16838,,
Chorley Borough Council,http://statistics.data.gov.uk/id/local-authority/30UE,Payments of Precepts to Parish,1018,Customer & Digital,Parish Council Tax,04500,Revenue Account Transfers,Balance,precepts/parish council,09/04/2021,0155143,"165,411.00",Revenue,Euxton Parish Council,16838,,
Chorley Borough Council,http://statistics.data.gov.uk/id/local-authority/30UE,Recognised Cap Grants & Conts,,Customer & Digital,Contributions Parish Councils,40144,Grants and Subscriptions,5031,CIL Receipt for period 01/10/2020 - 31/03/2021,23/04/2021,0155506,"11,718.62",Revenue,Euxton Parish Council,16838,,
Chorley Borough Council,http://statistics.data.gov.uk/id/local-authority/30UE,Capital,Capital,Communities,Main Contractor,03007,Capital Expenditure,Capital,"Various trees, transplants, shrubs and sundries as set in order 163433. For open space tree planting Feb/March 21",21/04/2021,0154972,"3,997.30",Capital,Everglades Nurseries Ltd,20202,,
Chorley Borough Council,http://statistics.data.gov.uk/id/local-authority/30UE,Capital,Capital,Communities,Main Contractor,03007,Capital Expenditure,Capital,"Various trees, transplants, shrubs and sundries as set in order 163433. For open space tree planting Feb/March 21",21/04/2021,0154972,325.00,Capital,Everglades Nurseries Ltd,20202,,
Chorley Borough Council,http://statistics.data.gov.uk/id/local-authority/30UE,Service Management & Support,1009,Customer & Digital,Supplies-Grounds Maintenance,40025,"Equipment, Furniture & Materia",5023,20 Peony �Shin Jitsugeteu Nishiki�  5 litre  close variety 17.00 30 Dianthus 'Babarini Red' 10 Grass 'Stipa Tenuissima' 2 litre,28/04/2021,0155647,475.00,Revenue,Everglades Nurseries Ltd,20202,,
Chorley Borough Council,http://statistics.data.gov.uk/id/local-authority/30UE,Corporate Management,1008,Customer & Digital,Unitary Payment(S),50009,Private Contractors,5042,Provision of waste and recycling collection services 2020-2021,23/04/2021,0153609,"180,828.38",Revenue,FCC Environment Services (UK) Limited,77903,,
Chorley Borough Council,http://statistics.data.gov.uk/id/local-authority/30UE,Central Support Services,1009,Customer & Digital,Unitary Payment(S),50009,Private Contractors,5042,Provision of waste and recycling collection services 2020-2021,23/04/2021,0154505,"184,426.76",Revenue,FCC Environment Services (UK) Limited,77903,,
Chorley Borough Council,http://statistics.data.gov.uk/id/local-authority/30UE,Central Support Services,1009,Commercial & Property,Professional Fees,40063,Services,5027,Preparation of planning submission for the inclusion of Scorpion Automotive on the Alker Lane scheme,16/04/2021,0154356,"25,000.00",Revenue,Fletcher Rae (UK) Limited,80432,,
Chorley Borough Council,http://statistics.data.gov.uk/id/local-authority/30UE,Business Support,1095,Commercial & Property,Legal Fees,40171,Miscellaneous Expenses,5034,Professional fees,23/04/2021,0155551,"1,786.00",Revenue,Forbes Solicitors,17527,,
Chorley Borough Council,http://statistics.data.gov.uk/id/local-authority/30UE,Business Support,1095,Commercial & Property,Legal Fees,40171,Miscellaneous Expenses,5034,disbursments,23/04/2021,0155551,910.00,Revenue,Forbes Solicitors,17527,,
Chorley Borough Council,http://statistics.data.gov.uk/id/local-authority/30UE,Capital,Capital,Commercial & Property,Other Capital Related Fees,03024,Capital Expenditure,Capital,"Chorley Covered Market Improvement works, Work to installing feature lighting at Chorley Covered Market as per quotation",28/04/2021,0155812,"12,016.77",Capital,Fox Contractors Limited,81125,,
Chorley Borough Council,http://statistics.data.gov.uk/id/local-authority/30UE,Capital,Capital,Commercial & Property,Other Capital Related Fees,03024,Capital Expenditure,Capital,Work to installing additional feature lighting,28/04/2021,0155812,"1,502.19",Capital,Fox Contractors Limited,81125,,
Chorley Borough Council,http://statistics.data.gov.uk/id/local-authority/30UE,Capital,Capital,Commercial & Property,Other Capital Related Fees,03024,Capital Expenditure,Capital,Work to installing 2x 63A supplies and a disabled alarm,28/04/2021,0155812,"1,895.88",Capital,Fox Contractors Limited,81125,,
Chorley Borough Council,http://statistics.data.gov.uk/id/local-authority/30UE,Capital,Capital,Commercial & Property,Other Capital Related Fees,03024,Capital Expenditure,Capital,Work to installing sign supplies for poppy signs,28/04/2021,0155812,"1,082.40",Capital,Fox Contractors Limited,81125,,
Chorley Borough Council,http://statistics.data.gov.uk/id/local-authority/30UE,Recreation & Sport,1037,Commercial & Property,Tools & Equipment - Hire,40004,"Equipment, Furniture & Materia",5023,"All seasons hyproliser  rental monthly fee 420.14, 12 months contract",30/04/2021,0155857,420.14,Revenue,Gaffey Technical Services Ltd,18844,,
Chorley Borough Council,http://statistics.data.gov.uk/id/local-authority/30UE,Service Management & Support,1009,Customer & Digital,Supplies-Grounds Maintenance,40025,"Equipment, Furniture & Materia",5023,"12 x mixed Poly/wire Schmidt brushes, 10X Johnston VT652 CB650 - 16�(410mm) channel brush- 42.21 each, Carriage 48.30",23/04/2021,0154968,951.28,Revenue,Go Plant Fleet Services Ltd,80857,,
Chorley Borough Council,http://statistics.data.gov.uk/id/local-authority/30UE,Service Management & Support,1009,Customer & Digital,Vehicles and Plant Maintenance,30045,Direct Transport Costs,5016,Lifting ram supplied for AJ19 GGZ,07/04/2021,0154974,279.31,Revenue,Go Plant Fleet Services Ltd,80857,,
Chorley Borough Council,http://statistics.data.gov.uk/id/local-authority/30UE,Service Management & Support,1009,Customer & Digital,Hire Of Vehicles and Plant,30028,Contrct Hire & Operating Lease,5018,3 Year Contract hire 1x Schmidt Swingo 200+ as per ITT including servicing and Maintenance,30/04/2021,0155690,"2,019.85",Revenue,Go Plant Fleet Services Ltd,80857,,
Chorley Borough Council,http://statistics.data.gov.uk/id/local-authority/30UE,Service Management & Support,1009,Customer & Digital,Hire Of Vehicles and Plant,30028,Contrct Hire & Operating Lease,5018,3 Year Contract hire 1x Schmidt Swingo 200+ as per ITT including servicing and Maintenance,30/04/2021,0155694,"2,019.85",Revenue,Go Plant Fleet Services Ltd,80857,,
Chorley Borough Council,http://statistics.data.gov.uk/id/local-authority/30UE,Service Management & Support,1009,Customer & Digital,Hire Of Vehicles and Plant,30028,Contrct Hire & Operating Lease,5018,3 Year Contract Hire Chassis mounted sweeper as per ITT. Including servicing and Maintenance. to be paid monthly in arrears,28/04/2021,0155695,"2,772.31",Revenue,Go Plant Fleet Services Ltd,80857,,
Chorley Borough Council,http://statistics.data.gov.uk/id/local-authority/30UE,Economic Development,1096,Commercial & Property,Professional Fees,40063,Services,5027,"Market Refurbishment & Upgrade Works (Delivery Fee Proposal) Cost & progress reporting, Weekly monitoring of progress",21/04/2021,0154899,149.99,Revenue,Gosling Construction Services,78380,,
Chorley Borough Council,http://statistics.data.gov.uk/id/local-authority/30UE,Economic Development,1096,Commercial & Property,Professional Fees,40063,Services,5027,"Detailed Planning & Logistics, Development of a detailed works programme including all necessary updates as works proceed",21/04/2021,0154899,599.95,Revenue,Gosling Construction Services,78380,,
Chorley Borough Council,http://statistics.data.gov.uk/id/local-authority/30UE,Economic Development,1096,Commercial & Property,Professional Fees,40063,Services,5027,"Visiting Supervision Provision: Check and respond to RAMS, Project Manage the works in accordance with the programme",21/04/2021,0154899,"1,949.83",Revenue,Gosling Construction Services,78380,,
Chorley Borough Council,http://statistics.data.gov.uk/id/local-authority/30UE,Economic Development,1096,Commercial & Property,Professional Fees,40063,Services,5027,"Design Management, Develop the design, meet the Client brief, Support the Architect, Identify opportunities for engineering",21/04/2021,0154899,299.98,Revenue,Gosling Construction Services,78380,,
Chorley Borough Council,http://statistics.data.gov.uk/id/local-authority/30UE,Central Support Services,1009,Commercial & Property,Consultants` Fees,40077,Services,5027,Client Side Project Management Services,28/04/2021,0155452,"4,143.75",Revenue,Gosling Construction Services,78380,,
Chorley Borough Council,http://statistics.data.gov.uk/id/local-authority/30UE,Central Support Services,1009,Customer & Digital,Computer - Support Services,40111,Communication and Computing,5028,"Goss: Content Live & Test Environment (Lite), Development Licence, Forms (Lite), Content Bundle, Forms Level 1, 2",23/04/2021,0155324,"42,852.00",Revenue,GOSS Interactive Limited,20316,,
Chorley Borough Council,http://statistics.data.gov.uk/id/local-authority/30UE,Central Support Services,1009,Customer & Digital,Computer - Support Services,40111,Communication and Computing,5028,CREDIT - 19461 rec`d and taken need to pay inv,30/04/2021,0155819,"4,140.00",Revenue,GOSS Interactive Limited,20316,,
Chorley Borough Council,http://statistics.data.gov.uk/id/local-authority/30UE,Central Support Services,1009,Customer & Digital,Vandalism Repairs,20005,Repairs Maintenance & Alts,5005,Graffiti removal contract December 2020 ongoing,16/04/2021,0154270,265.00,Revenue,Graffiti Away Ltd,78340,,
Chorley Borough Council,http://statistics.data.gov.uk/id/local-authority/30UE,Central Support Services,1009,Customer & Digital,Vandalism Repairs,20005,Repairs Maintenance & Alts,5005,Graffiti removal contract December 2020 ongoing,28/04/2021,0154976,665.00,Revenue,Graffiti Away Ltd,78340,,
Chorley Borough Council,http://statistics.data.gov.uk/id/local-authority/30UE,Central Support Services,1009,Customer & Digital,Vandalism Repairs,20005,Repairs Maintenance & Alts,5005,Graffiti removal contract December 2020 ongoing,23/04/2021,0155507,"1,025.00",Revenue,Graffiti Away Ltd,78340,,
Chorley Borough Council,http://statistics.data.gov.uk/id/local-authority/30UE,Corporate Management,1008,Commercial & Property,Publicity - Advertising,40157,Miscellaneous Expenses,5034,"3 months social media April to June 2021, Total 1500",21/04/2021,0155055,500.00,Revenue,Gravity,77837,,
Chorley Borough Council,http://statistics.data.gov.uk/id/local-authority/30UE,Business Support,1095,Policy & Governance,Miscellaneous Expenses,40200,Miscellaneous Expenses,5034,half page marketing ad in each edition for 12 months for Market Walk Shopping Centre - as agreed with NAME REDACTED,28/04/2021,0155090,625.00,Revenue,Green Man Marketing,73050,,
Chorley Borough Council,http://statistics.data.gov.uk/id/local-authority/30UE,Central Support Services,1009,Policy & Governance,Publicity - Advertising,40157,Miscellaneous Expenses,5034,12 month full page advert in the Buckshaw Village Magazine.,28/04/2021,0155090,"1,175.00",Revenue,Green Man Marketing,73050,,
Chorley Borough Council,http://statistics.data.gov.uk/id/local-authority/30UE,Service Management & Support,1009,Customer & Digital,External Contractor,40198,Miscellaneous Expenses,5034,"As per Quote Number QU-0134 Removal of Fly tipped Asbestos Waste at A675 Abbey Village, Chorley",07/04/2021,0155049,650.00,Revenue,Greenfield Removals Limited,78440,,
Chorley Borough Council,http://statistics.data.gov.uk/id/local-authority/30UE,Service Management & Support,1009,Customer & Digital,External Contractor,40198,Miscellaneous Expenses,5034,"As per Quote Number QU-0133, Asbestos Fly Tipped at Hic Bibi Lane Coppull - as per pictures provided",07/04/2021,0155057,500.00,Revenue,Greenfield Removals Limited,78440,,
Chorley Borough Council,http://statistics.data.gov.uk/id/local-authority/30UE,Capital,Capital,Commercial & Property,Main Contractor,03007,Capital Expenditure,Capital,"Site Specific RAMS, logistics plans: Segregation, Protection, Signage, Asbestos specific enclosures, regular air monitoring",21/04/2021,0155552,"19,269.06",Capital,Greenfield Removals Limited,78440,,
Chorley Borough Council,http://statistics.data.gov.uk/id/local-authority/30UE,Corporate Management,1008,Policy & Governance,Miscellaneous Expenses,40200,Miscellaneous Expenses,5034,Hire of 8 mobile hand wash stations from 1st to 31st March 2021. Contract Number: 0023377,07/04/2021,0155013,"1,440.00",Revenue,Hallmark Catering,78575,,
Chorley Borough Council,http://statistics.data.gov.uk/id/local-authority/30UE,Corporate Management,1008,Customer & Digital,Contributions Parish Councils,40144,Grants and Subscriptions,5031,Parish council contributions,09/04/2021,0155114,327.00,Revenue,Heapey Parish Council,17028,,
Chorley Borough Council,http://statistics.data.gov.uk/id/local-authority/30UE,Payments of Precepts to Parish,1018,Customer & Digital,Parish Council Tax,04500,Revenue Account Transfers,Balance,Parish Precepts,09/04/2021,0155114,"8,783.00",Revenue,Heapey Parish Council,17028,,
Chorley Borough Council,http://statistics.data.gov.uk/id/local-authority/30UE,Corporate Management,1008,Customer & Digital,Contributions Parish Councils,40144,Grants and Subscriptions,5031,Parish contributions,09/04/2021,0155125,335.00,Revenue,Heath Charnock Parish Council,16208,,
Chorley Borough Council,http://statistics.data.gov.uk/id/local-authority/30UE,Payments of Precepts to Parish,1018,Customer & Digital,Parish Council Tax,04500,Revenue Account Transfers,Balance,Parish precepts,09/04/2021,0155125,"7,465.00",Revenue,Heath Charnock Parish Council,16208,,
Chorley Borough Council,http://statistics.data.gov.uk/id/local-authority/30UE,Recognised Cap Grants & Conts,,Customer & Digital,Contributions Parish Councils,40144,Grants and Subscriptions,5031,CIL receipt for period 01/10/2020 - 31/03/2021,23/04/2021,0155494,"4,565.38",Revenue,Heath Charnock Parish Council,16208,,
Chorley Borough Council,http://statistics.data.gov.uk/id/local-authority/30UE,Community Development,1097,Communities,Core Funding Grants,40133,Grants and Subscriptions,5031,"Provision of homeless prevention and support to assist the Housing Solutions team, as per the SLA 01/04/2020-31/03/2021",14/04/2021,0155346,"5,000.00",Revenue,Help The Homeless (Chorley),16716,,
Chorley Borough Council,http://statistics.data.gov.uk/id/local-authority/30UE,Unapportionable Central OHeads,1009,Commercial & Property,General Repairs - Reactive,20004,Repairs Maintenance & Alts,5005,ADDRESS REDACTED decoration following tenant vacating,30/04/2021,0155946,285.00,Revenue,Henry Nightingale & Son,17923,,
Chorley Borough Council,http://statistics.data.gov.uk/id/local-authority/30UE,Central Support Services,1009,Commercial & Property,General Repairs - Reactive,20004,Repairs Maintenance & Alts,5005,Chorley North Fence painting,30/04/2021,0155947,580.00,Revenue,Henry Nightingale & Son,17923,,
Chorley Borough Council,http://statistics.data.gov.uk/id/local-authority/30UE,Corporate Management,1008,Customer & Digital,Contributions Parish Councils,40144,Grants and Subscriptions,5031,Parish contributions,09/04/2021,0155115,544.00,Revenue,Heskin Parish Council,17029,,
Chorley Borough Council,http://statistics.data.gov.uk/id/local-authority/30UE,Payments of Precepts to Parish,1018,Customer & Digital,Parish Council Tax,04500,Revenue Account Transfers,Balance,Parish precepts,09/04/2021,0155115,"13,652.00",Revenue,Heskin Parish Council,17029,,
Chorley Borough Council,http://statistics.data.gov.uk/id/local-authority/30UE,Recognised Cap Grants & Conts,,Customer & Digital,Contributions Parish Councils,40144,Grants and Subscriptions,5031,CIL receipt for period 01/10/2020 - 31/03/2021,23/04/2021,0155493,"4,894.14",Revenue,Heskin Parish Council,17029,,
Chorley Borough Council,http://statistics.data.gov.uk/id/local-authority/30UE,Democratic Represent and  Mgnt,1007,Policy & Governance,Grants To Other Organisations,40127,Grants and Subscriptions,5031,cllr grant,07/04/2021,0154960,300.00,Revenue,Hillside Methodist Church,18468,,
Chorley Borough Council,http://statistics.data.gov.uk/id/local-authority/30UE,Capital,Capital,Policy & Governance,Main Contractor,03007,Capital Expenditure,Capital,SDLT on ADDRESS REDACTED,09/04/2021,0155157,"4,650.00",Capital,HM Revenue & Customs,56499,,
Chorley Borough Council,http://statistics.data.gov.uk/id/local-authority/30UE,Capital,Capital,Policy & Governance,Main Contractor,03007,Capital Expenditure,Capital,SDLT ADDRESS REDACTED,09/04/2021,0155299,"4,500.00",Capital,HM Revenue & Customs,56499,,
Chorley Borough Council,http://statistics.data.gov.uk/id/local-authority/30UE,Capital,Capital,Policy & Governance,Main Contractor,03007,Capital Expenditure,Capital,SDLT ADDRESS REDACTED,21/04/2021,0155342,"5,017.00",Capital,HM Revenue & Customs,56499,,
Chorley Borough Council,http://statistics.data.gov.uk/id/local-authority/30UE,Central Support Services,1009,Communities,Training Course Fees,17010,Indirect Employee Expenses,5002,Hoarding Training for Link Workers and Communities Team,30/04/2021,0155868,"1,122.75",Revenue,Hoarding Disorders UK CIC,81917,,
Chorley Borough Council,http://statistics.data.gov.uk/id/local-authority/30UE,Unapportionable Central OHeads,1009,Policy & Governance,Processional Routes,40177,Miscellaneous Expenses,5034,"2 x Union Jack 3.2sqm Flag. 2 x Union Jack 1.6sqm Flag. 2 x BE AWARE 1m x 1,6m. Mirror imaged design. Anti Fray on all",30/04/2021,0153628,221.70,Revenue,HoF Display Solutions,49100,,
Chorley Borough Council,http://statistics.data.gov.uk/id/local-authority/30UE,Central Support Services,1009,Policy & Governance,Miscellaneous Expenses,40200,Miscellaneous Expenses,5034,"2 x Union Jack 3.2sqm Flag. 2 x Union Jack 1.6sqm Flag. 2 x BE AWARE 1m x 1,6m. Mirror imaged design. Anti Fray on all",30/04/2021,0153628,221.70,Revenue,HoF Display Solutions,49100,,
Chorley Borough Council,http://statistics.data.gov.uk/id/local-authority/30UE,Corporate Management,1008,Customer & Digital,Contributions Parish Councils,40144,Grants and Subscriptions,5031,Parish contributions,09/04/2021,0155116,167.00,Revenue,Hoghton Parish Council,16188,,
Chorley Borough Council,http://statistics.data.gov.uk/id/local-authority/30UE,Payments of Precepts to Parish,1018,Customer & Digital,Parish Council Tax,04500,Revenue Account Transfers,Balance,Parish precepts,09/04/2021,0155116,"5,833.00",Revenue,Hoghton Parish Council,16188,,
Chorley Borough Council,http://statistics.data.gov.uk/id/local-authority/30UE,Central Support Services,1009,Customer & Digital,Computer Equipment-Purchase,40098,Communication and Computing,5028,"iPhone SE black x 10  329.20, apple lightening cable x 10 13, delivery 15",21/04/2021,0154721,"3,437.00",Revenue,Hybrit LLP,77925,,
Chorley Borough Council,http://statistics.data.gov.uk/id/local-authority/30UE,Central Support Services,1009,Customer & Digital,Telephones - Other,40085,Communication and Computing,5028,Hybrit SIP charges March 21,14/04/2021,0154940,585.00,Revenue,Hybrit LLP,77925,,
Chorley Borough Council,http://statistics.data.gov.uk/id/local-authority/30UE,Unapportionable Central OHeads,1009,Communities,Exhibitions & Special Events,40158,Miscellaneous Expenses,5034,replaces inv 1456,23/04/2021,0154649,"1,080.00",Revenue,Iced Graphics,77424,,
Chorley Borough Council,http://statistics.data.gov.uk/id/local-authority/30UE,Central Support Services,1009,Policy & Governance,Exhibitions & Special Events,40158,Miscellaneous Expenses,5034,replaces inv 1473,23/04/2021,0154650,425.00,Revenue,Iced Graphics,77424,,
Chorley Borough Council,http://statistics.data.gov.uk/id/local-authority/30UE,Planning Policy,1092,Communities,Miscellaneous Expenses,40200,Miscellaneous Expenses,5034,replaces inv 1496,23/04/2021,0154652,735.00,Revenue,Iced Graphics,77424,,
Chorley Borough Council,http://statistics.data.gov.uk/id/local-authority/30UE,Planning Policy,1092,Communities,Publicity - Advertising,40157,Miscellaneous Expenses,5034,replaces inv 1508,23/04/2021,0154653,"2,310.00",Revenue,Iced Graphics,77424,,
Chorley Borough Council,http://statistics.data.gov.uk/id/local-authority/30UE,Elections,1012,Policy & Governance,Printing,40043,"Printing, Stationery & General",5026,canvass 2020 - print and send 905 letters,16/04/2021,0155363,864.95,Revenue,IDOX Software Limited,17542,,
Chorley Borough Council,http://statistics.data.gov.uk/id/local-authority/30UE,Unapportionable Central OHeads,1009,Policy & Governance,Tools & Equipment - Purchase,40003,"Equipment, Furniture & Materia",5023,SKU#: XBTAED001A Cardiac Science Powerheart G5 Battery 255.00,30/04/2021,0155967,255.00,Revenue,Imperative Training Limited T/A Defibshop,78355,,
Chorley Borough Council,http://statistics.data.gov.uk/id/local-authority/30UE,Unapportionable Central OHeads,1009,Customer & Digital,Professional Fees,14011,Direct Employee Expenses,5001,NAFN Subscription 2021/2022,14/04/2021,0154373,"1,600.00",Revenue,iNetwork (Tameside Council),19554,,
Chorley Borough Council,http://statistics.data.gov.uk/id/local-authority/30UE,Development Control,1091,Customer & Digital,Professional Fees,40063,Services,5027,"Ecology advice on planning applications. Chorley, provided advice on 103 applications",21/04/2021,0155550,"4,841.00",Revenue,iNetwork (Tameside Council),19554,,
Chorley Borough Council,http://statistics.data.gov.uk/id/local-authority/30UE,Capital,Capital,Commercial & Property,Main Contractor,03007,Capital Expenditure,Capital,"Market Street Redevelopment, Demolition of Former Buzz Bingo and Units 7  11",09/04/2021,0154934,960.00,Capital,Inglenorth (Contracting) Limited,81123,,
Chorley Borough Council,http://statistics.data.gov.uk/id/local-authority/30UE,Corporate Management,1008,Customer & Digital,Clinical Waste Collection,50007,Private Contractors,5042,Provision of service for the collection and disposal of Clinical Waste from domestic properties in the Chorley area. Apr&May 2021,21/04/2021,0155511,"1,056.04",Revenue,Initial,78488,,
Chorley Borough Council,http://statistics.data.gov.uk/id/local-authority/30UE,Control Accounts,Control,System,Manual Control Account,00001,Balance Sheet,Balance,,14/04/2021,0154119,"2,575.84",Revenue,Inland Revenue 065py00102078,17445,,
Chorley Borough Council,http://statistics.data.gov.uk/id/local-authority/30UE,Control Accounts,Control,System,Manual Control Account,00001,Balance Sheet,Balance,,14/04/2021,0154496,605.05,Revenue,Inland Revenue 065py00102078,17445,,
Chorley Borough Council,http://statistics.data.gov.uk/id/local-authority/30UE,Control Accounts,Control,System,Manual Control Account,00001,Balance Sheet,Balance,,14/04/2021,0154674,966.38,Revenue,Inland Revenue 065py00102078,17445,,
Chorley Borough Council,http://statistics.data.gov.uk/id/local-authority/30UE,Control Accounts,Control,System,Manual Control Account,00001,Balance Sheet,Balance,,14/04/2021,0154912,"1,247.00",Revenue,Inland Revenue 065py00102078,17445,,
Chorley Borough Council,http://statistics.data.gov.uk/id/local-authority/30UE,Central Support Services,1009,Customer & Digital,Computer Equipment-Purchase,40098,Communication and Computing,5028,pc for council chamber,21/04/2021,0155012,"1,222.12",Revenue,Insight Direct (UK) LTD,21768,,
Chorley Borough Council,http://statistics.data.gov.uk/id/local-authority/30UE,Central Support Services,1009,Customer & Digital,Computer Equipment-Purchase,40098,Communication and Computing,5028,ipad mini wifi + 4g,21/04/2021,0155045,538.99,Revenue,Insight Direct (UK) LTD,21768,,
Chorley Borough Council,http://statistics.data.gov.uk/id/local-authority/30UE,Central Support Services,1009,Customer & Digital,Computer Software-Purchase,40100,Communication and Computing,5028,Office 365 professional services to support delivery of phase two of shared services. Contract via Chest.,23/04/2021,0155362,"22,300.00",Revenue,Insight Direct (UK) LTD,21768,,
Chorley Borough Council,http://statistics.data.gov.uk/id/local-authority/30UE,Community Development,1097,Commercial & Property,Rent/Hire Of Premises,20017,Premises Rents,5007,One quarters rent for ADDRESS REDACTED march - may,30/04/2021,0155882,"7,218.75",Revenue,J R Keys,17124,,
Chorley Borough Council,http://statistics.data.gov.uk/id/local-authority/30UE,Service Management & Support,1009,Customer & Digital,Supplies-Grounds Maintenance,40025,"Equipment, Furniture & Materia",5023,Supply one pallet of street name plate posts (1200mm x 76mm) fully galvanised. Deliver to Bengal St depot,28/04/2021,0155742,"1,075.00",Revenue,Jewsons Limited,17844,,
Chorley Borough Council,http://statistics.data.gov.uk/id/local-authority/30UE,Service Management & Support,1009,Customer & Digital,Supplies-Grounds Maintenance,40025,"Equipment, Furniture & Materia",5023,carriage,28/04/2021,0155742,65.00,Revenue,Jewsons Limited,17844,,
Chorley Borough Council,http://statistics.data.gov.uk/id/local-authority/30UE,Business Support,1095,Commercial & Property,Tools & Equipment - Purchase,40003,"Equipment, Furniture & Materia",5023,Washing machine and tumble dryer servicing for 12 months,23/04/2021,0155627,317.22,Revenue,JLA Total Care LTD,78420,,
Chorley Borough Council,http://statistics.data.gov.uk/id/local-authority/30UE,Service Management & Support,1009,Customer & Digital,Grounds Maintenance Contractor,20043,Grounds Maintenance Costs,5013,20 @ 3.6m x 150mm x 75mm green timber,23/04/2021,0155404,299.80,Revenue,John H Mayor & Sons Ltd,16635,,
Chorley Borough Council,http://statistics.data.gov.uk/id/local-authority/30UE,Service Management & Support,1009,Customer & Digital,Supplies-Grounds Maintenance,40025,"Equipment, Furniture & Materia",5023,Supply 20 wooden sleepers,16/04/2021,0155405,473.40,Revenue,John H Mayor & Sons Ltd,16635,,
Chorley Borough Council,http://statistics.data.gov.uk/id/local-authority/30UE,Democratic Represent and  Mgnt,1007,Customer & Digital,Maintenance/Nature Reserves,20045,Grounds Maintenance Costs,5013,20 @ 3.6m x 150mm x 75mm green timber,16/04/2021,0155406,299.80,Revenue,John H Mayor & Sons Ltd,16635,,
Chorley Borough Council,http://statistics.data.gov.uk/id/local-authority/30UE,Open Spaces,1038,Customer & Digital,Maintenance/Nature Reserves,20045,Grounds Maintenance Costs,5013,10 @ 3.6m x 150mm x 50mm green timber,16/04/2021,0155406,99.90,Revenue,John H Mayor & Sons Ltd,16635,,
Chorley Borough Council,http://statistics.data.gov.uk/id/local-authority/30UE,Service Management & Support,1009,Customer & Digital,Supplies-Grounds Maintenance,40025,"Equipment, Furniture & Materia",5023,25 of 3.6m 100 x 38mm green timber,16/04/2021,0155407,123.00,Revenue,John H Mayor & Sons Ltd,16635,,
Chorley Borough Council,http://statistics.data.gov.uk/id/local-authority/30UE,Service Management & Support,1009,Customer & Digital,Supplies-Grounds Maintenance,40025,"Equipment, Furniture & Materia",5023,20 of 1.8m x 150mm x 75mm green timber,16/04/2021,0155407,145.80,Revenue,John H Mayor & Sons Ltd,16635,,
Chorley Borough Council,http://statistics.data.gov.uk/id/local-authority/30UE,Service Management & Support,1009,Customer & Digital,Supplies-Grounds Maintenance,40025,"Equipment, Furniture & Materia",5023,2 of 2.4m x 150mm x 150 mm weathered top posts,16/04/2021,0155407,70.00,Revenue,John H Mayor & Sons Ltd,16635,,
Chorley Borough Council,http://statistics.data.gov.uk/id/local-authority/30UE,Democratic Represent and  Mgnt,1007,Customer & Digital,Supplies-Grounds Maintenance,40025,"Equipment, Furniture & Materia",5023,"supply 8 ton of 10mm golden gravel,  rolls of membrane",16/04/2021,0155425,758.87,Revenue,John H Mayor & Sons Ltd,16635,,
Chorley Borough Council,http://statistics.data.gov.uk/id/local-authority/30UE,Capital,Capital,Commercial & Property,Main Contractor,03007,Capital Expenditure,Capital,To provide the minor works 2 package as per email with NAME REDACTED,21/04/2021,0155098,983.88,Capital,John Wade Groundworks Ltd,76676,,
Chorley Borough Council,http://statistics.data.gov.uk/id/local-authority/30UE,Development Control,1091,Customer & Digital,Statutory Notices,40160,Miscellaneous Expenses,5034,Planning Public Notices to appear in the Chorley Guardian April 2020 to March 2021,14/04/2021,0154130,393.30,Revenue,JPI Media - Johnston Publishing Ltd,20072,,
Chorley Borough Council,http://statistics.data.gov.uk/id/local-authority/30UE,Elections,1012,Policy & Governance,Statutory Notices,40160,Miscellaneous Expenses,5034,Notice of Election - Borough - ref NMC6080109,07/04/2021,0155004,"1,679.94",Revenue,JPI Media - Johnston Publishing Ltd,20072,,
Chorley Borough Council,http://statistics.data.gov.uk/id/local-authority/30UE,Elections,1012,Policy & Governance,Statutory Notices,40160,Miscellaneous Expenses,5034,Notice of Election PCC - NMC6081412,07/04/2021,0155005,"1,102.08",Revenue,JPI Media - Johnston Publishing Ltd,20072,,
Chorley Borough Council,http://statistics.data.gov.uk/id/local-authority/30UE,Elections,1012,Policy & Governance,Statutory Notices,40160,Miscellaneous Expenses,5034,Notice of Election Parish - NMC6080110,21/04/2021,0155028,"1,399.95",Revenue,JPI Media - Johnston Publishing Ltd,20072,,
Chorley Borough Council,http://statistics.data.gov.uk/id/local-authority/30UE,Development Control,1091,Customer & Digital,Statutory Notices,40160,Miscellaneous Expenses,5034,Planning Public Notices to appear in the Chorley Guardian April 2021 to March 2022,23/04/2021,0155628,324.48,Revenue,JPI Media - Johnston Publishing Ltd,20072,,
Chorley Borough Council,http://statistics.data.gov.uk/id/local-authority/30UE,Capital,Capital,Commercial & Property,Consultants Fees,03025,Capital Expenditure,Capital,MEP Consultancy Services RIBA Stages 1  3 for proposed development of Alker Lane,23/04/2021,0154891,"5,250.00",Capital,JRB Environmental Design Limited,80610,,
Chorley Borough Council,http://statistics.data.gov.uk/id/local-authority/30UE,Capital,Capital,Communities,Grants,03002,Capital Expenditure,Capital,ADDRESS REDACTED,14/04/2021,0155357,"4,965.00",Capital,K Berry Ltd,16421,,
Chorley Borough Council,http://statistics.data.gov.uk/id/local-authority/30UE,Capital,Capital,Communities,Grants,03002,Capital Expenditure,Capital,21/00009/CAG,21/04/2021,0155503,"4,793.00",Capital,K Berry Ltd,16421,,
Chorley Borough Council,http://statistics.data.gov.uk/id/local-authority/30UE,Capital,Capital,Communities,Grants,03002,Capital Expenditure,Capital,20/00194/CAG,21/04/2021,0155504,"4,806.50",Capital,K Berry Ltd,16421,,
Chorley Borough Council,http://statistics.data.gov.uk/id/local-authority/30UE,Capital,Capital,Communities,Grants,03002,Capital Expenditure,Capital,20/00167/DFG,30/04/2021,0155505,"10,305.00",Capital,K Berry Ltd,16421,,
Chorley Borough Council,http://statistics.data.gov.uk/id/local-authority/30UE,Service Management & Support,1009,Customer & Digital,Protective Clothing,40040,"Clothing, Uniforms and Laundry",5025,"15xBlack Baseball Cap, embroidered Chorley Council logo, 2xSize 10 Goliath Safety Boot, 2xSize 7 Goliath SDR10CSI",07/04/2021,0154495,337.47,Revenue,Key Engineering & Hygene Supplies,51615,,
Chorley Borough Council,http://statistics.data.gov.uk/id/local-authority/30UE,Service Management & Support,1009,Customer & Digital,Protective Clothing,40040,"Clothing, Uniforms and Laundry",5025,vatable items,07/04/2021,0154495,32.89,Revenue,Key Engineering & Hygene Supplies,51615,,
Chorley Borough Council,http://statistics.data.gov.uk/id/local-authority/30UE,Central Support Services,1009,Commercial & Property,Legal Fees,40171,Miscellaneous Expenses,5034,"Tatton Stopping Up Inquiry, Counsel�s fees for the Inquiry, Pre meet and review of Curtins",30/04/2021,0155909,"2,750.00",Revenue,Killian Garvey,81544,,
Chorley Borough Council,http://statistics.data.gov.uk/id/local-authority/30UE,Open Spaces,1038,Communities,Supplies-Grounds Maintenance,40025,"Equipment, Furniture & Materia",5023,Supply and delivery of quote SQ259498 CSaw to Landscape Engineering. For Hurst Brook Play Area,23/04/2021,0155568,"1,874.60",Revenue,Kompan,61460,,
Chorley Borough Council,http://statistics.data.gov.uk/id/local-authority/30UE,Control Accounts,Control,Policy & Governance,General Balances,00100,Balance Sheet,Balance,Monthly deductions from expenses,21/04/2021,0155622,"1,422.47",Revenue,Labour Councillors Association,17577,,
Chorley Borough Council,http://statistics.data.gov.uk/id/local-authority/30UE,Unapportionable Central OHeads,1009,Commercial & Property,General Repairs - Reactive,20004,Repairs Maintenance & Alts,5005,"Clearance and Clean of ADDRESS REDACTED Clear flat of contents, clean faeces Mattresses Disposal J. Dickinson and Sons",30/04/2021,0155881,"1,075.00",Revenue,Lancashire Clearance Services Ltd,79462,,
Chorley Borough Council,http://statistics.data.gov.uk/id/local-authority/30UE,Capital,Capital,Communities,Grants,03002,Capital Expenditure,Capital,ADDRESS REDACTED,07/04/2021,0154958,"3,105.00",Capital,Lancashire County Council,17758,,
Chorley Borough Council,http://statistics.data.gov.uk/id/local-authority/30UE,Capital,Capital,Communities,Grants,03002,Capital Expenditure,Capital,20/00101/DFG,14/04/2021,0155204,"7,346.00",Capital,Lancashire County Council,17758,,
Chorley Borough Council,http://statistics.data.gov.uk/id/local-authority/30UE,Capital,Capital,Communities,Grants,03002,Capital Expenditure,Capital,20/00157/CAG,14/04/2021,0155205,"6,681.00",Capital,Lancashire County Council,17758,,
Chorley Borough Council,http://statistics.data.gov.uk/id/local-authority/30UE,Capital,Capital,Communities,Grants,03002,Capital Expenditure,Capital,20/00178/CAG,14/04/2021,0155206,"6,273.00",Capital,Lancashire County Council,17758,,
Chorley Borough Council,http://statistics.data.gov.uk/id/local-authority/30UE,Capital,Capital,Communities,Grants,03002,Capital Expenditure,Capital,20/00148/CAG,14/04/2021,0155207,"3,747.00",Capital,Lancashire County Council,17758,,
Chorley Borough Council,http://statistics.data.gov.uk/id/local-authority/30UE,Open Spaces,1038,Communities,Maintenance/Nature Reserves,20045,Grounds Maintenance Costs,5013,Chorley Council contribution towards the Ancient Woodland Inventory for Lancashire. FAO NAME REDACTED.,21/04/2021,0155422,"1,725.00",Revenue,Lancashire County Council,17758,,
Chorley Borough Council,http://statistics.data.gov.uk/id/local-authority/30UE,Corporate Management,1008,Communities,Miscellaneous Government Grants,60241,Government Grants,5062,Food and essential supplies,30/04/2021,0155611,"3,060.32",Revenue,Lancashire County Council,17758,,
Chorley Borough Council,http://statistics.data.gov.uk/id/local-authority/30UE,Service Management & Support,1009,Customer & Digital,Training Course Fees,17010,Indirect Employee Expenses,5002,Driver cpc commencing Tuesday 30th March over Microsoft teams 8 delegates @ 60pp,16/04/2021,0155421,480.00,Revenue,Lancashire County Council Highways,18845,,
Chorley Borough Council,http://statistics.data.gov.uk/id/local-authority/30UE,Business Support,1095,Commercial & Property,Fixtures & Fittings - Purchase,20027,Fixtures and Fittings,5010," supply of glass, labour and plant hire for Reel cinema replacement unit",30/04/2021,0155785,"4,070.00",Revenue,Lancashire Double Glazing Group,20188,,
Chorley Borough Council,http://statistics.data.gov.uk/id/local-authority/30UE,Central Support Services,1009,Commercial & Property,General Repairs - Reactive,20004,Repairs Maintenance & Alts,5005,Reactive blanket,21/04/2021,0154265,"1,140.28",Revenue,Lancashire Gas Services Ltd,78192,,
Chorley Borough Council,http://statistics.data.gov.uk/id/local-authority/30UE,Recreation & Sport,1037,Commercial & Property,General Repairs - Reactive,20004,Repairs Maintenance & Alts,5005,"CGLC inv 18508 HLP0013416, order 12566 Leak above ceiling tiles - seal on pump needs replacing - Toilet not flushing",07/04/2021,0154915,475.40,Revenue,Lancashire Gas Services Ltd,78192,,
Chorley Borough Council,http://statistics.data.gov.uk/id/local-authority/30UE,Central Support Services,1009,Commercial & Property,General Repairs - Reactive,20004,Repairs Maintenance & Alts,5005,Reactive blanket,21/04/2021,0154941,410.25,Revenue,Lancashire Gas Services Ltd,78192,,
Chorley Borough Council,http://statistics.data.gov.uk/id/local-authority/30UE,Unapportionable Central OHeads,1009,Commercial & Property,General Repairs - Reactive,20004,Repairs Maintenance & Alts,5005,All Seasons Inv 018449 Wired up new pump to 3 phase on the ct circuit,28/04/2021,0155719,954.32,Revenue,Lancashire Gas Services Ltd,78192,,
Chorley Borough Council,http://statistics.data.gov.uk/id/local-authority/30UE,Corporate Management,1008,Commercial & Property,Miscellaneous Expenses,40200,Miscellaneous Expenses,5034,West St Car Park / Chorley surgery Disconnect services at covid testing cabins,28/04/2021,0155795,715.86,Revenue,Lancashire Gas Services Ltd,78192,,
Chorley Borough Council,http://statistics.data.gov.uk/id/local-authority/30UE,Recreation & Sport,1037,Commercial & Property,General Repairs - Reactive,20004,Repairs Maintenance & Alts,5005,"Brinscall Baths Quotation: QUO00926 At recent call out to leaking boiler, engineer found the joints in the concentric flue failed",30/04/2021,0155968,924.51,Revenue,Lancashire Gas Services Ltd,78192,,
Chorley Borough Council,http://statistics.data.gov.uk/id/local-authority/30UE,Unapportionable Central OHeads,1009,Policy & Governance,Operational Salaries Superannuation,12000,Direct Employee Expenses,5001,Ers Pens Contr 21-22,21/04/2021,0155487,"1,381,700.00",Revenue,Lancashire Pensions Service BACS ONLY,78212,,
Chorley Borough Council,http://statistics.data.gov.uk/id/local-authority/30UE,Central Support Services,1009,Commercial & Property,Consultants` Fees,40077,Services,5027,Asset Valuation for the 2020-21 Statement of Accounts as per tender,16/04/2021,0155347,"23,160.00",Revenue,Lea Hough & Co LLP,76318,,
Chorley Borough Council,http://statistics.data.gov.uk/id/local-authority/30UE,Business Support,1095,Commercial & Property,Cleaning/Attendants' Services,20041,Cleaning and Domestic Supplies,5012,per your invoice 15301. To cleaning ADDRESS REDACTED carpet on Monday 29/03/21,14/04/2021,0155385,450.00,Revenue,Leyland Cleaning Services Limited,21612,,
Chorley Borough Council,http://statistics.data.gov.uk/id/local-authority/30UE,Capital,Capital,Commercial & Property,Main Contractor,03007,Capital Expenditure,Capital,Project management services for Astley Hall Restoration project,30/04/2021,0155660,"3,235.00",Capital,Linchpin Ltd,80779,,
Chorley Borough Council,http://statistics.data.gov.uk/id/local-authority/30UE,Open Spaces,1038,Communities,Grounds Maintenance Contractor,20043,Grounds Maintenance Costs,5013,Tree work at Windsor allotments to self seeded trees as identified.,07/04/2021,0155059,300.00,Revenue,M J Walker,62044,,
Chorley Borough Council,http://statistics.data.gov.uk/id/local-authority/30UE,Service Management & Support,1009,Customer & Digital,Grounds Maintenance Contractor,20043,Grounds Maintenance Costs,5013,Walkers Tree Services Invoice 56,16/04/2021,0155420,"5,360.00",Revenue,M J Walker,62044,,
Chorley Borough Council,http://statistics.data.gov.uk/id/local-authority/30UE,Central Support Services,1009,Policy & Governance,Agency Staff,13000,Direct Employee Expenses,5001,NAME REDACTED,21/04/2021,0154664,471.25,Revenue,Matrix SCM Ltd,22128,,
Chorley Borough Council,http://statistics.data.gov.uk/id/local-authority/30UE,Unapportionable Central OHeads,1009,Policy & Governance,Agency Staff,13000,Direct Employee Expenses,5001,NAME REDACTED,21/04/2021,0154664,471.25,Revenue,Matrix SCM Ltd,22128,,
Chorley Borough Council,http://statistics.data.gov.uk/id/local-authority/30UE,Unapportionable Central OHeads,1009,Policy & Governance,Agency Staff,13000,Direct Employee Expenses,5001,NAME REDACTED,21/04/2021,0154664,454.89,Revenue,Matrix SCM Ltd,22128,,
Chorley Borough Council,http://statistics.data.gov.uk/id/local-authority/30UE,Unapportionable Central OHeads,1009,Policy & Governance,Agency Staff,13000,Direct Employee Expenses,5001,NAME REDACTED,21/04/2021,0154664,457.92,Revenue,Matrix SCM Ltd,22128,,
Chorley Borough Council,http://statistics.data.gov.uk/id/local-authority/30UE,Unapportionable Central OHeads,1009,Policy & Governance,Agency Staff,13000,Direct Employee Expenses,5001,NAME REDACTED,21/04/2021,0154664,439.70,Revenue,Matrix SCM Ltd,22128,,
Chorley Borough Council,http://statistics.data.gov.uk/id/local-authority/30UE,Central Support Services,1009,Policy & Governance,Agency Staff,13000,Direct Employee Expenses,5001,NAME REDACTED,21/04/2021,0154664,439.70,Revenue,Matrix SCM Ltd,22128,,
Chorley Borough Council,http://statistics.data.gov.uk/id/local-authority/30UE,Economic Development,1096,Policy & Governance,Agency Staff,13000,Direct Employee Expenses,5001,NAME REDACTED,21/04/2021,0154664,298.28,Revenue,Matrix SCM Ltd,22128,,
Chorley Borough Council,http://statistics.data.gov.uk/id/local-authority/30UE,Economic Development,1096,Policy & Governance,Agency Staff,13000,Direct Employee Expenses,5001,NAME REDACTED,21/04/2021,0154664,234.36,Revenue,Matrix SCM Ltd,22128,,
Chorley Borough Council,http://statistics.data.gov.uk/id/local-authority/30UE,Economic Development,1096,Policy & Governance,Agency Staff,13000,Direct Employee Expenses,5001,NAME REDACTED,21/04/2021,0154664,516.54,Revenue,Matrix SCM Ltd,22128,,
Chorley Borough Council,http://statistics.data.gov.uk/id/local-authority/30UE,Central Support Services,1009,Policy & Governance,Agency Staff,13000,Direct Employee Expenses,5001,NAME REDACTED,21/04/2021,0154957,471.25,Revenue,Matrix SCM Ltd,22128,,
Chorley Borough Council,http://statistics.data.gov.uk/id/local-authority/30UE,Unapportionable Central OHeads,1009,Policy & Governance,Agency Staff,13000,Direct Employee Expenses,5001,NAME REDACTED,21/04/2021,0154957,457.91,Revenue,Matrix SCM Ltd,22128,,
Chorley Borough Council,http://statistics.data.gov.uk/id/local-authority/30UE,Central Support Services,1009,Policy & Governance,Agency Staff,13000,Direct Employee Expenses,5001,NAME REDACTED,21/04/2021,0154957,439.70,Revenue,Matrix SCM Ltd,22128,,
Chorley Borough Council,http://statistics.data.gov.uk/id/local-authority/30UE,Economic Development,1096,Policy & Governance,Agency Staff,13000,Direct Employee Expenses,5001,NAME REDACTED,21/04/2021,0154957,531.10,Revenue,Matrix SCM Ltd,22128,,
Chorley Borough Council,http://statistics.data.gov.uk/id/local-authority/30UE,Economic Development,1096,Policy & Governance,Agency Staff,13000,Direct Employee Expenses,5001,NAME REDACTED,21/04/2021,0154957,580.32,Revenue,Matrix SCM Ltd,22128,,
Chorley Borough Council,http://statistics.data.gov.uk/id/local-authority/30UE,Central Support Services,1009,Policy & Governance,Agency Staff,13000,Direct Employee Expenses,5001,Services procurement timesheet detail,21/04/2021,0155194,"2,482.99",Revenue,Matrix SCM Ltd,22128,,
Chorley Borough Council,http://statistics.data.gov.uk/id/local-authority/30UE,Central Support Services,1009,Policy & Governance,Agency Staff,13000,Direct Employee Expenses,5001,agency staff,14/04/2021,0155199,"2,189.20",Revenue,Matrix SCM Ltd,22128,,
Chorley Borough Council,http://statistics.data.gov.uk/id/local-authority/30UE,Central Support Services,1009,Policy & Governance,Agency Staff,13000,Direct Employee Expenses,5001,inv 14/4/2021,21/04/2021,0155544,"2,399.31",Revenue,Matrix SCM Ltd,22128,,
Chorley Borough Council,http://statistics.data.gov.uk/id/local-authority/30UE,Corporate Management,1008,Customer & Digital,Contributions Parish Councils,40144,Grants and Subscriptions,5031,contributions parish,09/04/2021,0155142,794.00,Revenue,Mawdesley Parish Council,17570,,
Chorley Borough Council,http://statistics.data.gov.uk/id/local-authority/30UE,Payments of Precepts to Parish,1018,Customer & Digital,Parish Council Tax,04500,Revenue Account Transfers,Balance,precepts parish council,09/04/2021,0155142,"31,409.00",Revenue,Mawdesley Parish Council,17570,,
Chorley Borough Council,http://statistics.data.gov.uk/id/local-authority/30UE,Recognised Cap Grants & Conts,,Customer & Digital,Contributions Parish Councils,40144,Grants and Subscriptions,5031,CIL receipt 20/21,23/04/2021,0155540,"2,147.44",Revenue,Mawdesley Parish Council,17570,,
Chorley Borough Council,http://statistics.data.gov.uk/id/local-authority/30UE,Unapportionable Central OHeads,1009,Commercial & Property,Planned Maintenance,20006,Repairs Maintenance & Alts,5005,Statutory water testing through to end of March 2021,21/04/2021,0154559,791.24,Revenue,Maxigiene Environmental Services Ltd,67160,,
Chorley Borough Council,http://statistics.data.gov.uk/id/local-authority/30UE,Unapportionable Central OHeads,1009,Policy & Governance,Service Fees,40056,Services,5027,Mock Employment Tribunal for NAME REDACTED,21/04/2021,0154900,560.00,Revenue,MBL (Seminars) Ltd,71773,,
Chorley Borough Council,http://statistics.data.gov.uk/id/local-authority/30UE,Open Spaces,1038,Customer & Digital,Playground Equipment,40008,"Equipment, Furniture & Materia",5023,Supply 90 cubic metres of play bark. deliver to Yarrow depot,21/04/2021,0155077,"3,150.00",Revenue,Mc & Ma Stewart (Haulage Ltd),16627,,
Chorley Borough Council,http://statistics.data.gov.uk/id/local-authority/30UE,Democratic Represent and  Mgnt,1007,Policy & Governance,Tools & Equipment - Maintenance,40005,"Equipment, Furniture & Materia",5023,"Annual Meaco Radio Warranty Service Plan from 1/5/2021 - 860, umidifier Service - 255",16/04/2021,0155418,"1,115.00",Revenue,Meaco Measurement & Control Ltd,16527,,
Chorley Borough Council,http://statistics.data.gov.uk/id/local-authority/30UE,Central Support Services,1009,Customer & Digital,Items For Resale,40027,"Equipment, Furniture & Materia",5023,200x BLUE 240-litre wheeled bin lids and pins,21/04/2021,0155366,"1,190.00",Revenue,MGB Plastics Ltd,18624,,
Chorley Borough Council,http://statistics.data.gov.uk/id/local-authority/30UE,Corporate Management,1008,Customer & Digital,Items For Resale,40027,"Equipment, Furniture & Materia",5023,200x GREEN 240-litre wheeled bin lids and pins,21/04/2021,0155367,"1,190.00",Revenue,MGB Plastics Ltd,18624,,
Chorley Borough Council,http://statistics.data.gov.uk/id/local-authority/30UE,Central Support Services,1009,Commercial & Property,General Repairs - Reactive,20004,Repairs Maintenance & Alts,5005,Drain clearance works - blanket order,21/04/2021,0154259,560.00,Revenue,Michael Roe,78294,,
Chorley Borough Council,http://statistics.data.gov.uk/id/local-authority/30UE,Unapportionable Central OHeads,1009,Commercial & Property,General Repairs - Reactive,20004,Repairs Maintenance & Alts,5005,Blanket drainage works order,21/04/2021,0154366,560.00,Revenue,Michael Roe,78294,,
Chorley Borough Council,http://statistics.data.gov.uk/id/local-authority/30UE,Central Support Services,1009,Commercial & Property,General Repairs - Reactive,20004,Repairs Maintenance & Alts,5005,reactive blanket to end of march 2021,21/04/2021,0154577,560.00,Revenue,Michael Roe,78294,,
Chorley Borough Council,http://statistics.data.gov.uk/id/local-authority/30UE,Capital,Capital,Communities,Grants,03002,Capital Expenditure,Capital,,07/04/2021,0154752,"4,514.88",Capital,Mint Northwest Ltd,65607,,
Chorley Borough Council,http://statistics.data.gov.uk/id/local-authority/30UE,Capital,Capital,Communities,Grants,03002,Capital Expenditure,Capital,ADDRESS REDACTED,09/04/2021,0155147,"4,507.32",Capital,Mint Northwest Ltd,65607,,
Chorley Borough Council,http://statistics.data.gov.uk/id/local-authority/30UE,Capital,Capital,Communities,Grants,03002,Capital Expenditure,Capital,20/00215/CAG,14/04/2021,0155201,"2,904.11",Capital,Mint Northwest Ltd,65607,,
Chorley Borough Council,http://statistics.data.gov.uk/id/local-authority/30UE,Capital,Capital,Communities,Grants,03002,Capital Expenditure,Capital,21/00001/CAG,14/04/2021,0155202,"4,938.46",Capital,Mint Northwest Ltd,65607,,
Chorley Borough Council,http://statistics.data.gov.uk/id/local-authority/30UE,Capital,Capital,Communities,Grants,03002,Capital Expenditure,Capital,21/00011/CAG,14/04/2021,0155203,"3,574.23",Capital,Mint Northwest Ltd,65607,,
Chorley Borough Council,http://statistics.data.gov.uk/id/local-authority/30UE,Capital,Capital,Communities,Grants,03002,Capital Expenditure,Capital,ADDRESS REDACTED,14/04/2021,0155358,"4,048.37",Capital,Mint Northwest Ltd,65607,,
Chorley Borough Council,http://statistics.data.gov.uk/id/local-authority/30UE,Private Sector HSG Renewal,1073,Communities,External Contractor,40198,Miscellaneous Expenses,5034,Ref 4341,16/04/2021,0155444,256.00,Revenue,Mobility Care Services,70841,,
Chorley Borough Council,http://statistics.data.gov.uk/id/local-authority/30UE,Private Sector HSG Renewal,1073,Communities,External Contractor,40198,Miscellaneous Expenses,5034,Ref 4358,16/04/2021,0155444,120.00,Revenue,Mobility Care Services,70841,,
Chorley Borough Council,http://statistics.data.gov.uk/id/local-authority/30UE,Private Sector HSG Renewal,1073,Communities,External Contractor,40198,Miscellaneous Expenses,5034,Ref 4359,16/04/2021,0155444,66.00,Revenue,Mobility Care Services,70841,,
Chorley Borough Council,http://statistics.data.gov.uk/id/local-authority/30UE,Private Sector HSG Renewal,1073,Communities,External Contractor,40198,Miscellaneous Expenses,5034,Ref 4360,16/04/2021,0155444,66.00,Revenue,Mobility Care Services,70841,,
Chorley Borough Council,http://statistics.data.gov.uk/id/local-authority/30UE,Private Sector HSG Renewal,1073,Communities,External Contractor,40198,Miscellaneous Expenses,5034,Ref 4361,16/04/2021,0155444,66.00,Revenue,Mobility Care Services,70841,,
Chorley Borough Council,http://statistics.data.gov.uk/id/local-authority/30UE,Private Sector HSG Renewal,1073,Communities,External Contractor,40198,Miscellaneous Expenses,5034,Ref 4364,16/04/2021,0155444,111.00,Revenue,Mobility Care Services,70841,,
Chorley Borough Council,http://statistics.data.gov.uk/id/local-authority/30UE,Private Sector HSG Renewal,1073,Communities,External Contractor,40198,Miscellaneous Expenses,5034,Ref 4365,16/04/2021,0155444,350.00,Revenue,Mobility Care Services,70841,,
Chorley Borough Council,http://statistics.data.gov.uk/id/local-authority/30UE,Private Sector HSG Renewal,1073,Communities,External Contractor,40198,Miscellaneous Expenses,5034,Ref 4366,16/04/2021,0155444,111.00,Revenue,Mobility Care Services,70841,,
Chorley Borough Council,http://statistics.data.gov.uk/id/local-authority/30UE,Private Sector HSG Renewal,1073,Communities,External Contractor,40198,Miscellaneous Expenses,5034,Ref 4367,16/04/2021,0155444,260.00,Revenue,Mobility Care Services,70841,,
Chorley Borough Council,http://statistics.data.gov.uk/id/local-authority/30UE,Private Sector HSG Renewal,1073,Communities,External Contractor,40198,Miscellaneous Expenses,5034,Ref 4368,16/04/2021,0155444,380.00,Revenue,Mobility Care Services,70841,,
Chorley Borough Council,http://statistics.data.gov.uk/id/local-authority/30UE,Private Sector HSG Renewal,1073,Communities,External Contractor,40198,Miscellaneous Expenses,5034,Ref 4372,16/04/2021,0155444,620.00,Revenue,Mobility Care Services,70841,,
Chorley Borough Council,http://statistics.data.gov.uk/id/local-authority/30UE,Private Sector HSG Renewal,1073,Communities,External Contractor,40198,Miscellaneous Expenses,5034,Ref 4380,16/04/2021,0155444,82.50,Revenue,Mobility Care Services,70841,,
Chorley Borough Council,http://statistics.data.gov.uk/id/local-authority/30UE,Private Sector HSG Renewal,1073,Communities,External Contractor,40198,Miscellaneous Expenses,5034,Ref 4381,16/04/2021,0155444,49.50,Revenue,Mobility Care Services,70841,,
Chorley Borough Council,http://statistics.data.gov.uk/id/local-authority/30UE,Private Sector HSG Renewal,1073,Communities,External Contractor,40198,Miscellaneous Expenses,5034,Ref 4382,16/04/2021,0155444,66.00,Revenue,Mobility Care Services,70841,,
Chorley Borough Council,http://statistics.data.gov.uk/id/local-authority/30UE,Private Sector HSG Renewal,1073,Communities,External Contractor,40198,Miscellaneous Expenses,5034,Ref 4383,16/04/2021,0155444,82.50,Revenue,Mobility Care Services,70841,,
Chorley Borough Council,http://statistics.data.gov.uk/id/local-authority/30UE,Private Sector HSG Renewal,1073,Communities,External Contractor,40198,Miscellaneous Expenses,5034,Ref 4384,16/04/2021,0155444,85.00,Revenue,Mobility Care Services,70841,,
Chorley Borough Council,http://statistics.data.gov.uk/id/local-authority/30UE,Private Sector HSG Renewal,1073,Communities,External Contractor,40198,Miscellaneous Expenses,5034,Ref 4385,16/04/2021,0155444,220.00,Revenue,Mobility Care Services,70841,,
Chorley Borough Council,http://statistics.data.gov.uk/id/local-authority/30UE,Private Sector HSG Renewal,1073,Communities,External Contractor,40198,Miscellaneous Expenses,5034,Ref 4386,16/04/2021,0155444,260.00,Revenue,Mobility Care Services,70841,,
Chorley Borough Council,http://statistics.data.gov.uk/id/local-authority/30UE,Private Sector HSG Renewal,1073,Communities,External Contractor,40198,Miscellaneous Expenses,5034,Ref 4398,16/04/2021,0155444,49.50,Revenue,Mobility Care Services,70841,,
Chorley Borough Council,http://statistics.data.gov.uk/id/local-authority/30UE,Private Sector HSG Renewal,1073,Communities,External Contractor,40198,Miscellaneous Expenses,5034,Ref 4400,16/04/2021,0155444,69.30,Revenue,Mobility Care Services,70841,,
Chorley Borough Council,http://statistics.data.gov.uk/id/local-authority/30UE,Private Sector HSG Renewal,1073,Communities,External Contractor,40198,Miscellaneous Expenses,5034,Ref 4401,16/04/2021,0155444,160.00,Revenue,Mobility Care Services,70841,,
Chorley Borough Council,http://statistics.data.gov.uk/id/local-authority/30UE,Private Sector HSG Renewal,1073,Communities,External Contractor,40198,Miscellaneous Expenses,5034,Ref 4416,16/04/2021,0155444,66.00,Revenue,Mobility Care Services,70841,,
Chorley Borough Council,http://statistics.data.gov.uk/id/local-authority/30UE,Private Sector HSG Renewal,1073,Communities,External Contractor,40198,Miscellaneous Expenses,5034,Ref 4417,16/04/2021,0155444,49.50,Revenue,Mobility Care Services,70841,,
Chorley Borough Council,http://statistics.data.gov.uk/id/local-authority/30UE,Private Sector HSG Renewal,1073,Communities,External Contractor,40198,Miscellaneous Expenses,5034,Ref 4428,16/04/2021,0155444,66.00,Revenue,Mobility Care Services,70841,,
Chorley Borough Council,http://statistics.data.gov.uk/id/local-authority/30UE,Private Sector HSG Renewal,1073,Communities,External Contractor,40198,Miscellaneous Expenses,5034,Ref 4434,16/04/2021,0155444,239.00,Revenue,Mobility Care Services,70841,,
Chorley Borough Council,http://statistics.data.gov.uk/id/local-authority/30UE,Private Sector HSG Renewal,1073,Communities,External Contractor,40198,Miscellaneous Expenses,5034,Ref 4436,16/04/2021,0155444,128.00,Revenue,Mobility Care Services,70841,,
Chorley Borough Council,http://statistics.data.gov.uk/id/local-authority/30UE,Private Sector HSG Renewal,1073,Communities,External Contractor,40198,Miscellaneous Expenses,5034,Ref 4437,16/04/2021,0155444,111.00,Revenue,Mobility Care Services,70841,,
Chorley Borough Council,http://statistics.data.gov.uk/id/local-authority/30UE,Private Sector HSG Renewal,1073,Communities,External Contractor,40198,Miscellaneous Expenses,5034,Ref 4438,16/04/2021,0155444,160.00,Revenue,Mobility Care Services,70841,,
Chorley Borough Council,http://statistics.data.gov.uk/id/local-authority/30UE,Private Sector HSG Renewal,1073,Communities,External Contractor,40198,Miscellaneous Expenses,5034,Ref 4455,16/04/2021,0155444,16.50,Revenue,Mobility Care Services,70841,,
Chorley Borough Council,http://statistics.data.gov.uk/id/local-authority/30UE,Private Sector HSG Renewal,1073,Communities,External Contractor,40198,Miscellaneous Expenses,5034,Ref 4454,16/04/2021,0155444,82.50,Revenue,Mobility Care Services,70841,,
Chorley Borough Council,http://statistics.data.gov.uk/id/local-authority/30UE,Private Sector HSG Renewal,1073,Communities,External Contractor,40198,Miscellaneous Expenses,5034,Ref 4453,16/04/2021,0155444,82.50,Revenue,Mobility Care Services,70841,,
Chorley Borough Council,http://statistics.data.gov.uk/id/local-authority/30UE,Private Sector HSG Renewal,1073,Communities,External Contractor,40198,Miscellaneous Expenses,5034,Ref 4465,16/04/2021,0155444,128.00,Revenue,Mobility Care Services,70841,,
Chorley Borough Council,http://statistics.data.gov.uk/id/local-authority/30UE,Private Sector HSG Renewal,1073,Communities,External Contractor,40198,Miscellaneous Expenses,5034,Ref 4464,16/04/2021,0155444,256.00,Revenue,Mobility Care Services,70841,,
Chorley Borough Council,http://statistics.data.gov.uk/id/local-authority/30UE,Private Sector HSG Renewal,1073,Communities,External Contractor,40198,Miscellaneous Expenses,5034,Ref 4463,16/04/2021,0155444,128.00,Revenue,Mobility Care Services,70841,,
Chorley Borough Council,http://statistics.data.gov.uk/id/local-authority/30UE,Private Sector HSG Renewal,1073,Communities,External Contractor,40198,Miscellaneous Expenses,5034,Ref 4462,16/04/2021,0155444,220.00,Revenue,Mobility Care Services,70841,,
Chorley Borough Council,http://statistics.data.gov.uk/id/local-authority/30UE,Private Sector HSG Renewal,1073,Communities,External Contractor,40198,Miscellaneous Expenses,5034,Ref 4470,16/04/2021,0155444,66.00,Revenue,Mobility Care Services,70841,,
Chorley Borough Council,http://statistics.data.gov.uk/id/local-authority/30UE,Private Sector HSG Renewal,1073,Communities,External Contractor,40198,Miscellaneous Expenses,5034,Ref 4471,16/04/2021,0155444,41.25,Revenue,Mobility Care Services,70841,,
Chorley Borough Council,http://statistics.data.gov.uk/id/local-authority/30UE,Private Sector HSG Renewal,1073,Communities,External Contractor,40198,Miscellaneous Expenses,5034,Ref 4484,16/04/2021,0155444,111.00,Revenue,Mobility Care Services,70841,,
Chorley Borough Council,http://statistics.data.gov.uk/id/local-authority/30UE,Private Sector HSG Renewal,1073,Communities,External Contractor,40198,Miscellaneous Expenses,5034,Ref 4483,16/04/2021,0155444,111.00,Revenue,Mobility Care Services,70841,,
Chorley Borough Council,http://statistics.data.gov.uk/id/local-authority/30UE,Private Sector HSG Renewal,1073,Communities,External Contractor,40198,Miscellaneous Expenses,5034,Ref 4482,16/04/2021,0155444,111.00,Revenue,Mobility Care Services,70841,,
Chorley Borough Council,http://statistics.data.gov.uk/id/local-authority/30UE,Private Sector HSG Renewal,1073,Communities,External Contractor,40198,Miscellaneous Expenses,5034,Ref 4481,16/04/2021,0155444,128.00,Revenue,Mobility Care Services,70841,,
Chorley Borough Council,http://statistics.data.gov.uk/id/local-authority/30UE,Private Sector HSG Renewal,1073,Communities,External Contractor,40198,Miscellaneous Expenses,5034,Ref 4480,16/04/2021,0155444,220.00,Revenue,Mobility Care Services,70841,,
Chorley Borough Council,http://statistics.data.gov.uk/id/local-authority/30UE,Private Sector HSG Renewal,1073,Communities,External Contractor,40198,Miscellaneous Expenses,5034,Ref 4488,16/04/2021,0155444,420.00,Revenue,Mobility Care Services,70841,,
Chorley Borough Council,http://statistics.data.gov.uk/id/local-authority/30UE,Culture & Heritage,1036,Policy & Governance,Conservation Of Exhibits,40059,Services,5027,"Astley Hall Museum and Art Gallery, Modes Client Training for two people - 250, Modes Admin Training for one person - 100",28/04/2021,0154131,350.00,Revenue,MODES Users Association,18818,,
Chorley Borough Council,http://statistics.data.gov.uk/id/local-authority/30UE,Capital,Capital,Commercial & Property,Other Capital Related Fees,03024,Capital Expenditure,Capital,"Covered Market Improvement works: Secondary Steel & Cladding: manufacture, supply and installation of powder coated sections",30/04/2021,0155809,"10,000.00",Capital,Morgan Brothers Metalwork Solutions,76663,,
Chorley Borough Council,http://statistics.data.gov.uk/id/local-authority/30UE,Central Support Services,1009,Policy & Governance,Other Licence Fees,40231,Miscellaneous Expenses,5034,Invoice number 566951 Umbrella Licence for Chorley Council Motion Picture Licence Company 11/06/2021 to 11/06/2022,30/04/2021,0155794,"3,568.60",Revenue,Motion Picture Licensing Company Limited,65600,,
Chorley Borough Council,http://statistics.data.gov.uk/id/local-authority/30UE,Central Support Services,1009,Communities,Refunds,40220,Miscellaneous Expenses,5034,refund surrender street trading consent,14/04/2021,0154748,305.00,Revenue,NAME REDACTED,81918,,
Chorley Borough Council,http://statistics.data.gov.uk/id/local-authority/30UE,Economic Development,1096,Commercial & Property,General Subscriptions,40146,Grants and Subscriptions,5031,Annual subscription 2021/22,21/04/2021,0155508,738.00,Revenue,Nabma,16257,,
Chorley Borough Council,http://statistics.data.gov.uk/id/local-authority/30UE,Central Support Services,1009,Policy & Governance,Exhibitions & Special Events,40158,Miscellaneous Expenses,5034,Filming and editing for WYSC,14/04/2021,0155301,400.00,Revenue,Nathan Morris,80970,,
Chorley Borough Council,http://statistics.data.gov.uk/id/local-authority/30UE,Central Support Services,1009,Commercial & Property,Professional Fees,40063,Services,5027,Great crested newt district level licensing impact assessment & conservation payment for Alker Lane,23/04/2021,0155590,"26,945.00",Revenue,Natural England,78180,,
Chorley Borough Council,http://statistics.data.gov.uk/id/local-authority/30UE,Elections,1012,Policy & Governance,Petrol,30005,Direct Transport Costs,5016,Franking machine top up,09/04/2021,0155131,500.00,Revenue,Neopost Ltd RCB Credifon A/C,20009,,
Chorley Borough Council,http://statistics.data.gov.uk/id/local-authority/30UE,Elections,1012,Chief Executive,Petrol,30005,Direct Transport Costs,5016,Franking machine top up,21/04/2021,0155484,"1,000.00",Revenue,Neopost Ltd RCB Credifon A/C,20009,,
Chorley Borough Council,http://statistics.data.gov.uk/id/local-authority/30UE,Business Support,1095,Commercial & Property,Security Service,40062,Services,5027,Evening Site Security Services at Market Walk Shopping Centre 5pm-midnight 7 days a week. W/C 3/8/2020 to 31/03/2021,28/04/2021,0154258,526.75,Revenue,New Concept Security NW Ltd T/A New Concept Goup,80488,,
Chorley Borough Council,http://statistics.data.gov.uk/id/local-authority/30UE,Business Support,1095,Commercial & Property,Security Service,40062,Services,5027,Evening Site Security Services at Market Walk Shopping Centre 5pm-midnight 7 days a week. W/C 3/8/2020 to 31/03/2021,28/04/2021,0155092,575.75,Revenue,New Concept Security NW Ltd T/A New Concept Goup,80488,,
Chorley Borough Council,http://statistics.data.gov.uk/id/local-authority/30UE,Business Support,1095,Commercial & Property,Security Service,40062,Services,5027,Evening Site Security Services at Market Walk Shopping Centre 5pm-midnight 7 days a week. W/C 3/8/2020 to 31/03/2021,28/04/2021,0155093,575.75,Revenue,New Concept Security NW Ltd T/A New Concept Goup,80488,,
Chorley Borough Council,http://statistics.data.gov.uk/id/local-authority/30UE,Business Support,1095,Commercial & Property,Security Service,40062,Services,5027,Evening Site Security Services at Market Walk Shopping Centre 5pm-midnight 7 days a week. From 1/4/2021 to March 2022,30/04/2021,0155781,575.75,Revenue,New Concept Security NW Ltd T/A New Concept Goup,80488,,
Chorley Borough Council,http://statistics.data.gov.uk/id/local-authority/30UE,Corporate Management,1008,Customer & Digital,"Hackney Badges, Plates Etc.",40023,"Equipment, Furniture & Materia",5023,Private Hire door signs to include tamper evident hologram and cover x 40 @ 6.88 each,23/04/2021,0154642,275.20,Revenue,NewAuto Ltd t/a MOGO UK,17187,,
Chorley Borough Council,http://statistics.data.gov.uk/id/local-authority/30UE,Regulatory Services,1048,Customer & Digital,"Hackney Badges, Plates Etc.",40023,"Equipment, Furniture & Materia",5023,post & packing,23/04/2021,0154642,14.90,Revenue,NewAuto Ltd t/a MOGO UK,17187,,
Chorley Borough Council,http://statistics.data.gov.uk/id/local-authority/30UE,Central Support Services,1009,Customer & Digital,Computer Equipment - Security,40106,Communication and Computing,5028,Repeat PO due to financial year end. job 8635 Supply and install CCTV cameras in underpass with LPR,21/04/2021,0154052,"2,650.00",Revenue,North VS Limited,78379,,
Chorley Borough Council,http://statistics.data.gov.uk/id/local-authority/30UE,Capital,Capital,Customer & Digital,Main Contractor,03007,Capital Expenditure,Capital,4 additional licenses for CCTV recorder for Moss Lane,21/04/2021,0154058,361.73,Capital,North VS Limited,78379,,
Chorley Borough Council,http://statistics.data.gov.uk/id/local-authority/30UE,Culture & Heritage,1036,Policy & Governance,General Subscriptions,40146,Grants and Subscriptions,5031,Support on GPOS till system and cloud access for 21/22 year. 50 p/month +VAT for 12 months,28/04/2021,0155587,600.00,Revenue,North West Business Machines Limited,80971,,
Chorley Borough Council,http://statistics.data.gov.uk/id/local-authority/30UE,Planning Policy,1092,Communities,General Subscriptions,40146,Grants and Subscriptions,5031,Full Membership to Northern Housing Consortium (01 April 2021 - 31 March 2022),14/04/2021,0155133,950.00,Revenue,Northern Housing Consortium Ltd,17220,,
Chorley Borough Council,http://statistics.data.gov.uk/id/local-authority/30UE,Central Support Services,1009,Customer & Digital,Service Fees,40056,Services,5027,Docs On Line Managed Service - Service Charges 1 April 2021 to 31 March 2022,21/04/2021,0155384,"2,700.00",Revenue,Northgate Public Services (UK) Limited,18285,,
Chorley Borough Council,http://statistics.data.gov.uk/id/local-authority/30UE,Central Support Services,1009,Customer & Digital,Computer Software-Purchase,40100,Communication and Computing,5028,"Support & Maintenance: GDPR Connect, 400 Core Licences, COLD, Graphical Workflow, Case Manager/VF, ETD",23/04/2021,0155446,"8,728.72",Revenue,Northgate Public Services (UK) Limited,18285,,
Chorley Borough Council,http://statistics.data.gov.uk/id/local-authority/30UE,Corporate Management,1008,Commercial & Property,Miscellaneous Expenses,40200,Miscellaneous Expenses,5034,Portable toilet units as agreed with NAME REDACTED for Heskin Hall and Botany Bay,21/04/2021,0154308,400.00,Revenue,Northwest Portable Toilet Company Limited,81866,,
Chorley Borough Council,http://statistics.data.gov.uk/id/local-authority/30UE,Corporate Management,1008,Commercial & Property,Miscellaneous Expenses,40200,Miscellaneous Expenses,5034,Portable toilet units as agreed with NAME REDACTED for Heskin Hall and Botany Bay,21/04/2021,0154368,400.00,Revenue,Northwest Portable Toilet Company Limited,81866,,
Chorley Borough Council,http://statistics.data.gov.uk/id/local-authority/30UE,Unapportionable Central OHeads,1009,Commercial & Property,Electricity,20013,Energy Costs,5006,"CIVIC OFFICES, UNION STREET",14/04/2021,0155319,"3,285.44",Revenue,Npower Commercial Gas,16814,,
Chorley Borough Council,http://statistics.data.gov.uk/id/local-authority/30UE,Central Support Services,1009,Commercial & Property,Electricity,20013,Energy Costs,5006,BENGAL STREET DEPOT,14/04/2021,0155319,"1,466.72",Revenue,Npower Commercial Gas,16814,,
Chorley Borough Council,http://statistics.data.gov.uk/id/local-authority/30UE,Unapportionable Central OHeads,1009,Commercial & Property,Electricity,20013,Energy Costs,5006,TOWN HALL,14/04/2021,0155319,"2,115.88",Revenue,Npower Commercial Gas,16814,,
Chorley Borough Council,http://statistics.data.gov.uk/id/local-authority/30UE,Recreation & Sport,1037,Commercial & Property,Electricity,20013,Energy Costs,5006,CLAYTON BROOK VILLAGE HALL,14/04/2021,0155319,140.70,Revenue,Npower Commercial Gas,16814,,
Chorley Borough Council,http://statistics.data.gov.uk/id/local-authority/30UE,Business Support,1095,Commercial & Property,Electricity,20013,Energy Costs,5006,"LANDLORD, PRIMROSE GARDENS",14/04/2021,0155319,"1,313.95",Revenue,Npower Commercial Gas,16814,,
Chorley Borough Council,http://statistics.data.gov.uk/id/local-authority/30UE,Business Support,1095,Commercial & Property,Electricity,20013,Energy Costs,5006,"STRAWBERRY FIELDS, DIGITAL HUB",14/04/2021,0155319,"4,306.20",Revenue,Npower Commercial Gas,16814,,
Chorley Borough Council,http://statistics.data.gov.uk/id/local-authority/30UE,Business Support,1095,Commercial & Property,Electricity,20013,Energy Costs,5006,MARKET WALK EXTENSION,14/04/2021,0155319,439.00,Revenue,Npower Commercial Gas,16814,,
Chorley Borough Council,http://statistics.data.gov.uk/id/local-authority/30UE,Democratic Represent and  Mgnt,1007,Commercial & Property,Electricity,20013,Energy Costs,5006,ALL SEASONS LEISURE CENTRE,14/04/2021,0155319,768.34,Revenue,Npower Commercial Gas,16814,,
Chorley Borough Council,http://statistics.data.gov.uk/id/local-authority/30UE,Recreation & Sport,1037,Commercial & Property,Electricity,20013,Energy Costs,5006,ALL SEASONS LEISURE CENTRE,14/04/2021,0155319,"3,181.47",Revenue,Npower Commercial Gas,16814,,
Chorley Borough Council,http://statistics.data.gov.uk/id/local-authority/30UE,Democratic Represent and  Mgnt,1007,Commercial & Property,Electricity,20013,Energy Costs,5006,BRINSCALL BATHS,14/04/2021,0155319,"1,001.70",Revenue,Npower Commercial Gas,16814,,
Chorley Borough Council,http://statistics.data.gov.uk/id/local-authority/30UE,Recreation & Sport,1037,Commercial & Property,Electricity,20013,Energy Costs,5006,BRINSCALL BATHS,14/04/2021,0155319,225.93,Revenue,Npower Commercial Gas,16814,,
Chorley Borough Council,http://statistics.data.gov.uk/id/local-authority/30UE,Democratic Represent and  Mgnt,1007,Commercial & Property,Electricity,20013,Energy Costs,5006,CLAYTON GREEN SPORTS CENTRE,14/04/2021,0155319,144.21,Revenue,Npower Commercial Gas,16814,,
Chorley Borough Council,http://statistics.data.gov.uk/id/local-authority/30UE,Recreation & Sport,1037,Commercial & Property,Electricity,20013,Energy Costs,5006,CLAYTON GREEN SPORTS CENTRE,14/04/2021,0155319,521.72,Revenue,Npower Commercial Gas,16814,,
Chorley Borough Council,http://statistics.data.gov.uk/id/local-authority/30UE,Parking Services,1066,Commercial & Property,Electricity,20013,Energy Costs,5006,UN-METERED CAR PARK LIGHTING,14/04/2021,0155340,3.98,Revenue,Npower Commercial Gas,16814,,
Chorley Borough Council,http://statistics.data.gov.uk/id/local-authority/30UE,Parking Services,1066,Commercial & Property,Electricity,20013,Energy Costs,5006,UN-METERED - PAY & DISPLAY MAC,14/04/2021,0155340,401.41,Revenue,Npower Commercial Gas,16814,,
Chorley Borough Council,http://statistics.data.gov.uk/id/local-authority/30UE,Central Support Services,1009,Commercial & Property,Electricity,20013,Energy Costs,5006,UN-METERED CCTV CAMERAS,14/04/2021,0155340,992.98,Revenue,Npower Commercial Gas,16814,,
Chorley Borough Council,http://statistics.data.gov.uk/id/local-authority/30UE,Democratic Represent and  Mgnt,1007,Commercial & Property,Electricity,20013,Energy Costs,5006,HARPERS LANE RECREAT,23/04/2021,0155378,17.74,Revenue,Npower Commercial Gas,16814,,
Chorley Borough Council,http://statistics.data.gov.uk/id/local-authority/30UE,Service Management & Support,1009,Commercial & Property,Electricity,20013,Energy Costs,5006,GILLETT PLAYING FIEL,23/04/2021,0155378,7.33,Revenue,Npower Commercial Gas,16814,,
Chorley Borough Council,http://statistics.data.gov.uk/id/local-authority/30UE,Open Spaces,1038,Commercial & Property,Electricity,20013,Energy Costs,5006,KING GEORGE V PLAYING FIELDS,23/04/2021,0155378,7.47,Revenue,Npower Commercial Gas,16814,,
Chorley Borough Council,http://statistics.data.gov.uk/id/local-authority/30UE,Democratic Represent and  Mgnt,1007,Commercial & Property,Electricity,20013,Energy Costs,5006,ASTLEY HALL FARM HOUSE,23/04/2021,0155378,137.75,Revenue,Npower Commercial Gas,16814,,
Chorley Borough Council,http://statistics.data.gov.uk/id/local-authority/30UE,Culture & Heritage,1036,Commercial & Property,Electricity,20013,Energy Costs,5006,ASTLEY HALL,23/04/2021,0155378,273.94,Revenue,Npower Commercial Gas,16814,,
Chorley Borough Council,http://statistics.data.gov.uk/id/local-authority/30UE,Democratic Represent and  Mgnt,1007,Commercial & Property,Electricity,20013,Energy Costs,5006,EAVES GREEN COMMUNITY,23/04/2021,0155378,121.56,Revenue,Npower Commercial Gas,16814,,
Chorley Borough Council,http://statistics.data.gov.uk/id/local-authority/30UE,Community Development,1097,Commercial & Property,Electricity,20013,Energy Costs,5006,FIRST FLOOR INFORMATION,23/04/2021,0155378,96.56,Revenue,Npower Commercial Gas,16814,,
Chorley Borough Council,http://statistics.data.gov.uk/id/local-authority/30UE,Community Development,1097,Commercial & Property,Electricity,20013,Energy Costs,5006,TOP FLOOR INFORMATION,23/04/2021,0155378,34.66,Revenue,Npower Commercial Gas,16814,,
Chorley Borough Council,http://statistics.data.gov.uk/id/local-authority/30UE,Community Development,1097,Commercial & Property,Electricity,20013,Energy Costs,5006,GROUND FLOOR INFORMATION,23/04/2021,0155378,60.83,Revenue,Npower Commercial Gas,16814,,
Chorley Borough Council,http://statistics.data.gov.uk/id/local-authority/30UE,Democratic Represent and  Mgnt,1007,Commercial & Property,Electricity,20013,Energy Costs,5006,CORONATION RECREATION,23/04/2021,0155378,25.98,Revenue,Npower Commercial Gas,16814,,
Chorley Borough Council,http://statistics.data.gov.uk/id/local-authority/30UE,Recreation & Sport,1037,Commercial & Property,Electricity,20013,Energy Costs,5006,ASTLEY VILLAGE COMMUNITY,23/04/2021,0155378,111.72,Revenue,Npower Commercial Gas,16814,,
Chorley Borough Council,http://statistics.data.gov.uk/id/local-authority/30UE,Democratic Represent and  Mgnt,1007,Commercial & Property,Electricity,20013,Energy Costs,5006,ASTLEY HALL COACH HOUSE,23/04/2021,0155378,932.69,Revenue,Npower Commercial Gas,16814,,
Chorley Borough Council,http://statistics.data.gov.uk/id/local-authority/30UE,Culture & Heritage,1036,Commercial & Property,Electricity,20013,Energy Costs,5006,ASTLEY HALL COTTAGE,23/04/2021,0155378,62.27,Revenue,Npower Commercial Gas,16814,,
Chorley Borough Council,http://statistics.data.gov.uk/id/local-authority/30UE,Corporate Management,1008,Commercial & Property,Electricity,20013,Energy Costs,5006,CEMETERIES OFFICE,23/04/2021,0155378,80.93,Revenue,Npower Commercial Gas,16814,,
Chorley Borough Council,http://statistics.data.gov.uk/id/local-authority/30UE,Open Spaces,1038,Commercial & Property,Electricity,20013,Energy Costs,5006,ASTLEY PARK PAVILION/CHANGING,23/04/2021,0155378,339.75,Revenue,Npower Commercial Gas,16814,,
Chorley Borough Council,http://statistics.data.gov.uk/id/local-authority/30UE,Economic Development,1096,Commercial & Property,Electricity,20013,Energy Costs,5006,MARKET COMPACTOR,23/04/2021,0155378,12.97,Revenue,Npower Commercial Gas,16814,,
Chorley Borough Council,http://statistics.data.gov.uk/id/local-authority/30UE,Democratic Represent and  Mgnt,1007,Commercial & Property,Electricity,20013,Energy Costs,5006,KING GEORGE V CHANGING ROOMS,23/04/2021,0155378,7.33,Revenue,Npower Commercial Gas,16814,,
Chorley Borough Council,http://statistics.data.gov.uk/id/local-authority/30UE,Homelessness,1075,Commercial & Property,Electricity,20013,Energy Costs,5006,COTSWOLD HOUSE COMMUNAL ROOMS,23/04/2021,0155378,571.10,Revenue,Npower Commercial Gas,16814,,
Chorley Borough Council,http://statistics.data.gov.uk/id/local-authority/30UE,Homelessness,1075,Commercial & Property,Electricity,20013,Energy Costs,5006,COTSWOLD HOUSE TWO STORY WING,23/04/2021,0155378,235.00,Revenue,Npower Commercial Gas,16814,,
Chorley Borough Council,http://statistics.data.gov.uk/id/local-authority/30UE,Homelessness,1075,Commercial & Property,Electricity,20013,Energy Costs,5006,COTSWOLD HOUSE SINGL,23/04/2021,0155378,79.19,Revenue,Npower Commercial Gas,16814,,
Chorley Borough Council,http://statistics.data.gov.uk/id/local-authority/30UE,Business Support,1095,Commercial & Property,Electricity,20013,Energy Costs,5006,LANDLORDS COMMUNAL AREA,23/04/2021,0155378,921.39,Revenue,Npower Commercial Gas,16814,,
Chorley Borough Council,http://statistics.data.gov.uk/id/local-authority/30UE,Recreation & Sport,1037,Commercial & Property,Electricity,20013,Energy Costs,5006,BUTTERMERE COMMUNITY,23/04/2021,0155378,106.37,Revenue,Npower Commercial Gas,16814,,
Chorley Borough Council,http://statistics.data.gov.uk/id/local-authority/30UE,Recreation & Sport,1037,Commercial & Property,Electricity,20013,Energy Costs,5006,LANCASTER WAY COMMUNITY,23/04/2021,0155378,143.68,Revenue,Npower Commercial Gas,16814,,
Chorley Borough Council,http://statistics.data.gov.uk/id/local-authority/30UE,Parking Services,1066,Commercial & Property,Electricity,20013,Energy Costs,5006,CAR PARK UNION ST,23/04/2021,0155378,416.25,Revenue,Npower Commercial Gas,16814,,
Chorley Borough Council,http://statistics.data.gov.uk/id/local-authority/30UE,Parking Services,1066,Commercial & Property,Electricity,20013,Energy Costs,5006,ARLEY STREET CAR PARK,23/04/2021,0155378,7.48,Revenue,Npower Commercial Gas,16814,,
Chorley Borough Council,http://statistics.data.gov.uk/id/local-authority/30UE,Parking Services,1066,Commercial & Property,Electricity,20013,Energy Costs,5006,OAK HOUSE CAR PARK,23/04/2021,0155378,202.85,Revenue,Npower Commercial Gas,16814,,
Chorley Borough Council,http://statistics.data.gov.uk/id/local-authority/30UE,Parking Services,1066,Commercial & Property,Electricity,20013,Energy Costs,5006,FRIDAY STREET,23/04/2021,0155378,283.42,Revenue,Npower Commercial Gas,16814,,
Chorley Borough Council,http://statistics.data.gov.uk/id/local-authority/30UE,Central Support Services,1009,Commercial & Property,Electricity,20013,Energy Costs,5006,CCTV FEEDER PILLAR STEELEY LANE,23/04/2021,0155378,11.81,Revenue,Npower Commercial Gas,16814,,
Chorley Borough Council,http://statistics.data.gov.uk/id/local-authority/30UE,Central Support Services,1009,Commercial & Property,Electricity,20013,Energy Costs,5006,CCTV FEEDER PILLAR MOSS LANE,23/04/2021,0155378,13.82,Revenue,Npower Commercial Gas,16814,,
Chorley Borough Council,http://statistics.data.gov.uk/id/local-authority/30UE,Democratic Represent and  Mgnt,1007,Commercial & Property,Electricity,20013,Energy Costs,5006,RANGLETTS RECREATION,23/04/2021,0155378,23.23,Revenue,Npower Commercial Gas,16814,,
Chorley Borough Council,http://statistics.data.gov.uk/id/local-authority/30UE,Community Development,1097,Commercial & Property,Electricity,20013,Energy Costs,5006,UNIT 2 MARKET WALK EXTENSION,23/04/2021,0155378,"1,542.79",Revenue,Npower Commercial Gas,16814,,
Chorley Borough Council,http://statistics.data.gov.uk/id/local-authority/30UE,Central Support Services,1009,Commercial & Property,Electricity,20013,Energy Costs,5006,"CCTV SPENDMORE LANE, BAKER ST JNCT",23/04/2021,0155378,13.95,Revenue,Npower Commercial Gas,16814,,
Chorley Borough Council,http://statistics.data.gov.uk/id/local-authority/30UE,Central Support Services,1009,Commercial & Property,Electricity,20013,Energy Costs,5006,"CIVIC OFFICES, UNION STREET",23/04/2021,0155556,"3,311.17",Revenue,Npower Commercial Gas,16814,,
Chorley Borough Council,http://statistics.data.gov.uk/id/local-authority/30UE,Unapportionable Central OHeads,1009,Commercial & Property,Electricity,20013,Energy Costs,5006,BENGAL STREET DEPOT,23/04/2021,0155556,"1,518.31",Revenue,Npower Commercial Gas,16814,,
Chorley Borough Council,http://statistics.data.gov.uk/id/local-authority/30UE,Central Support Services,1009,Commercial & Property,Electricity,20013,Energy Costs,5006,TOWN HALL,23/04/2021,0155556,"2,139.29",Revenue,Npower Commercial Gas,16814,,
Chorley Borough Council,http://statistics.data.gov.uk/id/local-authority/30UE,Recreation & Sport,1037,Commercial & Property,Electricity,20013,Energy Costs,5006,CLAYTON BROOK VILLAGE HALL,23/04/2021,0155556,129.43,Revenue,Npower Commercial Gas,16814,,
Chorley Borough Council,http://statistics.data.gov.uk/id/local-authority/30UE,Business Support,1095,Commercial & Property,Electricity,20013,Energy Costs,5006,"LANDLORD, PRIMROSE GARDENS",23/04/2021,0155556,"1,164.51",Revenue,Npower Commercial Gas,16814,,
Chorley Borough Council,http://statistics.data.gov.uk/id/local-authority/30UE,Business Support,1095,Commercial & Property,Electricity,20013,Energy Costs,5006,"STRAWBERRY FIELDS, DIGITAL HUB",23/04/2021,0155556,"3,914.94",Revenue,Npower Commercial Gas,16814,,
Chorley Borough Council,http://statistics.data.gov.uk/id/local-authority/30UE,Business Support,1095,Commercial & Property,Electricity,20013,Energy Costs,5006,MARKET WALK EXTENSION,23/04/2021,0155556,459.79,Revenue,Npower Commercial Gas,16814,,
Chorley Borough Council,http://statistics.data.gov.uk/id/local-authority/30UE,Democratic Represent and  Mgnt,1007,Commercial & Property,Electricity,20013,Energy Costs,5006,ALL SEASONS LEISURE CENTRE,23/04/2021,0155556,"3,197.82",Revenue,Npower Commercial Gas,16814,,
Chorley Borough Council,http://statistics.data.gov.uk/id/local-authority/30UE,Recreation & Sport,1037,Commercial & Property,Electricity,20013,Energy Costs,5006,BRINSCALL BATHS,23/04/2021,0155556,"1,104.93",Revenue,Npower Commercial Gas,16814,,
Chorley Borough Council,http://statistics.data.gov.uk/id/local-authority/30UE,Democratic Represent and  Mgnt,1007,Commercial & Property,Electricity,20013,Energy Costs,5006,CLAYTON GREEN SPORTS CENTRE,23/04/2021,0155556,668.53,Revenue,Npower Commercial Gas,16814,,
Chorley Borough Council,http://statistics.data.gov.uk/id/local-authority/30UE,Parking Services,1066,Commercial & Property,External Contractors,50008,Private Contractors,5042,"Provision of off street car park enforcement, cash collection, cash counting facilities and third party bulk cash collections",21/04/2021,0155046,"5,252.97",Revenue,NSL Limited,67253,,
Chorley Borough Council,http://statistics.data.gov.uk/id/local-authority/30UE,Business Support,1095,Commercial & Property,Miscellaneous Expenses,40200,Miscellaneous Expenses,5034,"Town Centre Calico Benches Maintenance, Sand 9xbenches with 3 coats of Osmo Oil Base and protective wood treatment.",21/04/2021,0155479,510.00,Revenue,Nuchoice Limited,75454,,
Chorley Borough Council,http://statistics.data.gov.uk/id/local-authority/30UE,Democratic Represent and  Mgnt,1007,Chief Executive,General Subscriptions,40146,Grants and Subscriptions,5031,NAME REDACTED - Full Members Subscription April 2021 - March 2022,16/04/2021,0155416,"4,146.86",Revenue,Nwlaeo,17571,,
Chorley Borough Council,http://statistics.data.gov.uk/id/local-authority/30UE,Central Support Services,1009,Customer & Digital,Professional Fees,14011,Direct Employee Expenses,5001,Web Benefits Calculator (software licence annual subscription 21st February 2021  20th Feb 2022).,21/04/2021,0155141,815.00,Revenue,Otech Limited,17667,,
Chorley Borough Council,http://statistics.data.gov.uk/id/local-authority/30UE,Business Support,1095,Commercial & Property,Cleaning Materials,40019,"Equipment, Furniture & Materia",5023,6 x item no 2974920 Toilet rolls @ 26.93 per case,21/04/2021,0155054,161.58,Revenue,Pattersons Holdings (Bristol),77537,,
Chorley Borough Council,http://statistics.data.gov.uk/id/local-authority/30UE,Business Support,1095,Commercial & Property,Cleaning Materials,40019,"Equipment, Furniture & Materia",5023,6 x item no AE208 Hand Towels @ 17.8 per case,21/04/2021,0155054,106.80,Revenue,Pattersons Holdings (Bristol),77537,,
Chorley Borough Council,http://statistics.data.gov.uk/id/local-authority/30UE,Business Support,1095,Commercial & Property,Cleaning Materials,40019,"Equipment, Furniture & Materia",5023,6 x AA301 Mini Jumbo toilet rolls,30/04/2021,0155874,168.72,Revenue,Pattersons Holdings (Bristol),77537,,
Chorley Borough Council,http://statistics.data.gov.uk/id/local-authority/30UE,Business Support,1095,Commercial & Property,Cleaning Materials,40019,"Equipment, Furniture & Materia",5023,6 x AE208 Hand towels,30/04/2021,0155874,106.80,Revenue,Pattersons Holdings (Bristol),77537,,
Chorley Borough Council,http://statistics.data.gov.uk/id/local-authority/30UE,Business Support,1095,Commercial & Property,Cleaning Materials,40019,"Equipment, Furniture & Materia",5023,12 x BB028-1 Premium washing up liquid,30/04/2021,0155874,13.20,Revenue,Pattersons Holdings (Bristol),77537,,
Chorley Borough Council,http://statistics.data.gov.uk/id/local-authority/30UE,Business Support,1095,Commercial & Property,Cleaning Materials,40019,"Equipment, Furniture & Materia",5023,2 x BB103 Dishwasher capsules,30/04/2021,0155874,24.74,Revenue,Pattersons Holdings (Bristol),77537,,
Chorley Borough Council,http://statistics.data.gov.uk/id/local-authority/30UE,Business Support,1095,Commercial & Property,Cleaning Materials,40019,"Equipment, Furniture & Materia",5023,2 x Katrin handwash (12),30/04/2021,0155874,62.86,Revenue,Pattersons Holdings (Bristol),77537,,
Chorley Borough Council,http://statistics.data.gov.uk/id/local-authority/30UE,Business Support,1095,Commercial & Property,Cleaning Materials,40019,"Equipment, Furniture & Materia",5023,10 x HA001-16 kentucky mop head,30/04/2021,0155874,11.80,Revenue,Pattersons Holdings (Bristol),77537,,
Chorley Borough Council,http://statistics.data.gov.uk/id/local-authority/30UE,Business Support,1095,Commercial & Property,Cleaning Materials,40019,"Equipment, Furniture & Materia",5023,2 x HL005-B blue/white sponges,30/04/2021,0155874,2.88,Revenue,Pattersons Holdings (Bristol),77537,,
Chorley Borough Council,http://statistics.data.gov.uk/id/local-authority/30UE,Business Support,1095,Commercial & Property,Cleaning Materials,40019,"Equipment, Furniture & Materia",5023,12 x BC060-1 toilet cleaner/descaler,30/04/2021,0155874,18.36,Revenue,Pattersons Holdings (Bristol),77537,,
Chorley Borough Council,http://statistics.data.gov.uk/id/local-authority/30UE,Business Support,1095,Commercial & Property,Cleaning Materials,40019,"Equipment, Furniture & Materia",5023,2 x BA036-5 Medical sanitiser 5litre,30/04/2021,0155874,9.68,Revenue,Pattersons Holdings (Bristol),77537,,
Chorley Borough Council,http://statistics.data.gov.uk/id/local-authority/30UE,Unapportionable Central OHeads,1009,Commercial & Property,General Repairs - Reactive,20004,Repairs Maintenance & Alts,5005,Barrier works at Ackhurst lodge car park as agreed with NAME REDACTED,30/04/2021,0155853,667.70,Revenue,Peerless Fencing Limited,78148,,
Chorley Borough Council,http://statistics.data.gov.uk/id/local-authority/30UE,Central Support Services,1009,Commercial & Property,Professional Fees,40063,Services,5027,Extension to professional services,23/04/2021,0155088,"5,200.02",Revenue,Perfect Circle JV Ltd,76438,,
Chorley Borough Council,http://statistics.data.gov.uk/id/local-authority/30UE,Central Support Services,1009,Communities,Alleygate Repair,40240,"Equipment, Furniture & Materia",5023,Alley Gate Repair Service,14/04/2021,0153241,310.00,Revenue,PHG,21730,,
Chorley Borough Council,http://statistics.data.gov.uk/id/local-authority/30UE,Service Management & Support,1009,Customer & Digital,Diesel/Derv,30007,Direct Transport Costs,5016,"4,600litres of Road diesel 1,700litres gas oil Delivery Monday 29/03/21 As procured via the chest",16/04/2021,0155014,"4,554.00",Revenue,Pilkington Oils,18075,,
Chorley Borough Council,http://statistics.data.gov.uk/id/local-authority/30UE,Service Management & Support,1009,Customer & Digital,Diesel/Derv,30007,Direct Transport Costs,5016,"4,600litres of Road diesel 1,700litres gas oil Delivery Monday 29/03/21 As procured via the chest",16/04/2021,0155034,867.00,Revenue,Pilkington Oils,18075,,
Chorley Borough Council,http://statistics.data.gov.uk/id/local-authority/30UE,Service Management & Support,1009,Customer & Digital,Diesel/Derv,30007,Direct Transport Costs,5016,Diesel BS EN590,23/04/2021,0155635,"5,158.50",Revenue,Pilkington Oils,18075,,
Chorley Borough Council,http://statistics.data.gov.uk/id/local-authority/30UE,Development Control,1091,Customer & Digital,Professional Fees,40063,Services,5027,Planning Enforcement Services 5/3/21 to 26/3/21 @ 38 per hour Site visit Mileage March 2021 54 miles @ .45p per mile,21/04/2021,0155538,"1,221.30",Revenue,Planning and PACE Solutions Ltd,82083,,
Chorley Borough Council,http://statistics.data.gov.uk/id/local-authority/30UE,Development Control,1091,Customer & Digital,Professional Fees,40063,Services,5027,35:00 Hours Planning Enforcement Services 2/4/21 to16/4/21,23/04/2021,0155655,"1,330.00",Revenue,Planning and PACE Solutions Ltd,82083,,
Chorley Borough Council,http://statistics.data.gov.uk/id/local-authority/30UE,Capital,Capital,Commercial & Property,Main Contractor,03007,Capital Expenditure,Capital,All Seasons QU1153 Remove and renew pool floor tile edging and repair floor tiles to steps. Approved by NAME REDACTED,30/04/2021,0155855,"26,312.28",Capital,Pool Technical Services Ltd,81000,,
Chorley Borough Council,http://statistics.data.gov.uk/id/local-authority/30UE,Capital,Capital,Communities,Main Contractor,03007,Capital Expenditure,Capital,"West Way Pavilion Illuminated signage fabrication incl. survey, design, manufacture and finishing. Quote REF14788/2.",21/04/2021,0154688,"3,470.83",Capital,Poppy Signs Ltd,21898,,
Chorley Borough Council,http://statistics.data.gov.uk/id/local-authority/30UE,Corporate Management,1008,Policy & Governance,Miscellaneous Expenses,40200,Miscellaneous Expenses,5034,15 x A2 Correx outdoor signs for social distancing in the parks,21/04/2021,0155060,253.75,Revenue,Poppy Signs Ltd,21898,,
Chorley Borough Council,http://statistics.data.gov.uk/id/local-authority/30UE,Central Support Services,1009,Policy & Governance,Exhibitions & Special Events,40158,Miscellaneous Expenses,5034,1500off - 140x94mm (Just shy of A6) -Self-Adhesive vinyl stickers with full digital print.,21/04/2021,0155565,285.00,Revenue,Poppy Signs Ltd,21898,,
Chorley Borough Council,http://statistics.data.gov.uk/id/local-authority/30UE,Elections,1012,Policy & Governance,Rent/Hire Of Premises,20017,Premises Rents,5007,"Supply of Polling Station signs - 20xPolling Station, 4xPolling Station &arrow right, 4xPolling Station & arrow left",30/04/2021,0155716,412.97,Revenue,Poppy Signs Ltd,21898,,
Chorley Borough Council,http://statistics.data.gov.uk/id/local-authority/30UE,Unapportionable Central OHeads,1009,Chief Executive,Photocopier Consumables,40049,"Printing, Stationery & General",5026,"Evolution Everyday A4 80gsm, Box 2500",21/04/2021,0155403,580.00,Revenue,Premier Paper Group,54451,,
Chorley Borough Council,http://statistics.data.gov.uk/id/local-authority/30UE,Central Support Services,1009,Chief Executive,Photocopier Consumables,40049,"Printing, Stationery & General",5026,Evolution Everyday A3 80gsm box 2500,21/04/2021,0155403,29.28,Revenue,Premier Paper Group,54451,,
Chorley Borough Council,http://statistics.data.gov.uk/id/local-authority/30UE,Private Sector HSG Renewal,1073,Communities,External Contractor,40198,Miscellaneous Expenses,5034,Affordable Warmth Assistance during winter 2020-21,21/04/2021,0155582,820.00,Revenue,Preston Care and Repair,50018,,
Chorley Borough Council,http://statistics.data.gov.uk/id/local-authority/30UE,Capital,Capital,Communities,Grants,03002,Capital Expenditure,Capital,provision of Handyperson service funded by DFG for Q1 2021-22,21/04/2021,0155583,"6,250.00",Capital,Preston Care and Repair,50018,,
Chorley Borough Council,http://statistics.data.gov.uk/id/local-authority/30UE,Homelessness,1075,Communities,Service Fees,40056,Services,5027,Sanctuary works - Survey and replacement door - ADDRESS REDACTED,28/04/2021,0155616,523.50,Revenue,Preston Care and Repair,50018,,
Chorley Borough Council,http://statistics.data.gov.uk/id/local-authority/30UE,Corporate Management,1008,Communities,Miscellaneous Expenses,40200,Miscellaneous Expenses,5034,"Provision of Accommodation, Food and Security in response to COVID-19, 25/03-30/09, Purple Roomz, Food, Security plus VAT",16/04/2021,0153279,"49,225.64",Revenue,Preston City Council,16657,,
Chorley Borough Council,http://statistics.data.gov.uk/id/local-authority/30UE,Central Support Services,1009,Commercial & Property,Professional Fees,40063,Services,5027,Removal of spoil from Digital office Park / Strawberry Fields site,23/04/2021,0155478,"4,400.00",Revenue,Primrose Holdings 1995 Ltd,17786,,
Chorley Borough Council,http://statistics.data.gov.uk/id/local-authority/30UE,Elections,1012,Policy & Governance,Tools & Equipment - Purchase,40003,"Equipment, Furniture & Materia",5023,"As per your quote ref PSG7309/1, 8 screens 1500 x 1000 x 3mm screen with legs no hatch with white border",30/04/2021,0155824,768.00,Revenue,Principle Signs & Graphics Ltd,82100,,
Chorley Borough Council,http://statistics.data.gov.uk/id/local-authority/30UE,Elections,1012,Policy & Governance,Printing,40043,"Printing, Stationery & General",5026,combined poll cards for 2021 elections,23/04/2021,0155648,"7,044.20",Revenue,Print Image Network,21171,,
Chorley Borough Council,http://statistics.data.gov.uk/id/local-authority/30UE,Elections,1012,Policy & Governance,Printing,40043,"Printing, Stationery & General",5026,PI printing January 2021 - three mailings,23/04/2021,0155649,"2,643.00",Revenue,Print Image Network,21171,,
Chorley Borough Council,http://statistics.data.gov.uk/id/local-authority/30UE,Capital,Capital,Commercial & Property,Main Contractor,03007,Capital Expenditure,Capital,Construction of Whittle GP surgery,21/04/2021,0155476,"172,219.56",Capital,Rayner Rowen Construction Limited,80915,,
Chorley Borough Council,http://statistics.data.gov.uk/id/local-authority/30UE,Corporate Management,1008,Policy & Governance,Miscellaneous Expenses,40200,Miscellaneous Expenses,5034,Comedy marshal for town centre to mark the reopening of non-essential retail businesses. 2 days,21/04/2021,0155438,800.00,Revenue,Reckless Invention,18573,,
Chorley Borough Council,http://statistics.data.gov.uk/id/local-authority/30UE,Capital,Capital,Communities,Main Contractor,03007,Capital Expenditure,Capital,Project Management salary costs for the delivery of the River Lostock and Carr Brook Enhancement Project WEG 193-2018-4483,21/04/2021,0155269,"1,997.67",Capital,Ribble Catchment Conservation Trust Ltd,78525,,
Chorley Borough Council,http://statistics.data.gov.uk/id/local-authority/30UE,Central Support Services,1009,Commercial & Property,Consultants` Fees,40077,Services,5027,Provision of Project Management & Quantity Surveying Services on the Tatton Regeneration scheme from appointment to RIBA,30/04/2021,0155470,"10,710.00",Revenue,Rider Levett Bucknall,67527,,
Chorley Borough Council,http://statistics.data.gov.uk/id/local-authority/30UE,Service Management & Support,1009,Customer & Digital,Supplies-Grounds Maintenance,40025,"Equipment, Furniture & Materia",5023,Supply 3kg Euroflor Rainbow Annuals & 1kg Rainbow Perennials. Deliver to Bengal St,16/04/2021,0154644,755.00,Revenue,Rigby Taylor Ltd,16299,,
Chorley Borough Council,http://statistics.data.gov.uk/id/local-authority/30UE,Service Management & Support,1009,Customer & Digital,Supplies-Grounds Maintenance,40025,"Equipment, Furniture & Materia",5023,16x Trustee amenity @27.00 each,16/04/2021,0155053,432.00,Revenue,Rigby Taylor Ltd,16299,,
Chorley Borough Council,http://statistics.data.gov.uk/id/local-authority/30UE,Service Management & Support,1009,Customer & Digital,Supplies-Grounds Maintenance,40025,"Equipment, Furniture & Materia",5023,2x Icade 1L @ 45.00each,16/04/2021,0155053,90.00,Revenue,Rigby Taylor Ltd,16299,,
Chorley Borough Council,http://statistics.data.gov.uk/id/local-authority/30UE,Service Management & Support,1009,Customer & Digital,Supplies-Grounds Maintenance,40025,"Equipment, Furniture & Materia",5023,1x R14 Grass seed (20kg) @ 78.00each,16/04/2021,0155053,78.00,Revenue,Rigby Taylor Ltd,16299,,
Chorley Borough Council,http://statistics.data.gov.uk/id/local-authority/30UE,Service Management & Support,1009,Customer & Digital,Supplies-Grounds Maintenance,40025,"Equipment, Furniture & Materia",5023,20 x 10l  tubs of Impact Standard line marking paint. Deliver to Bengal St,21/04/2021,0155351,545.00,Revenue,Rigby Taylor Ltd,16299,,
Chorley Borough Council,http://statistics.data.gov.uk/id/local-authority/30UE,Central Support Services,1009,Commercial & Property,Professional Fees,40063,Services,5027,"Rightmove advertising for 12 months - 7-18 properties band, 6 months at 235pm, 6 months at 570pm",28/04/2021,0155786,285.00,Revenue,Rightmove Group Ltd,77717,,
Chorley Borough Council,http://statistics.data.gov.uk/id/local-authority/30UE,Corporate Management,1008,Customer & Digital,Contributions Parish Councils,40144,Grants and Subscriptions,5031,Parish contributions,09/04/2021,0155127,169.00,Revenue,Rivington Parish Council,16209,,
Chorley Borough Council,http://statistics.data.gov.uk/id/local-authority/30UE,Payments of Precepts to Parish,1018,Customer & Digital,Parish Council Tax,04500,Revenue Account Transfers,Balance,Parish precepts,09/04/2021,0155127,"2,331.00",Revenue,Rivington Parish Council,16209,,
Chorley Borough Council,http://statistics.data.gov.uk/id/local-authority/30UE,Economic Development,1096,Commercial & Property,Professional Fees,40063,Services,5027,internal roof soffits & roof trusses,09/04/2021,0154935,"11,318.48",Revenue,RJ Clarke Painting Contractor Limited,80959,,
Chorley Borough Council,http://statistics.data.gov.uk/id/local-authority/30UE,Economic Development,1096,Commercial & Property,Professional Fees,40063,Services,5027,Access hire,09/04/2021,0154935,634.70,Revenue,RJ Clarke Painting Contractor Limited,80959,,
Chorley Borough Council,http://statistics.data.gov.uk/id/local-authority/30UE,Capital,Capital,Commercial & Property,Other Capital Related Fees,03024,Capital Expenditure,Capital,Internal roller shutters door and frames,09/04/2021,0154935,"7,997.88",Capital,RJ Clarke Painting Contractor Limited,80959,,
Chorley Borough Council,http://statistics.data.gov.uk/id/local-authority/30UE,Capital,Capital,Commercial & Property,Other Capital Related Fees,03024,Capital Expenditure,Capital,Internal lobbies,09/04/2021,0154935,212.60,Capital,RJ Clarke Painting Contractor Limited,80959,,
Chorley Borough Council,http://statistics.data.gov.uk/id/local-authority/30UE,Capital,Capital,Commercial & Property,Other Capital Related Fees,03024,Capital Expenditure,Capital,Overtime working,09/04/2021,0154935,336.00,Capital,RJ Clarke Painting Contractor Limited,80959,,
Chorley Borough Council,http://statistics.data.gov.uk/id/local-authority/30UE,Recreation & Sport,1037,Communities,Miscellaneous Expenses,40200,Miscellaneous Expenses,5034,"3 x manikins, 3 x training AED�s for 1 throw bag, 5 x NPLQ RENEWAL/REASSESSMENT Standard Candidate Pack",30/04/2021,0155468,"2,193.00",Revenue,RLSS Direct,80891,,
Chorley Borough Council,http://statistics.data.gov.uk/id/local-authority/30UE,Capital,Capital,Commercial & Property,Main Contractor,03007,Capital Expenditure,Capital,"Delivery of the Tatton regeneration scheme, All in accordance with the executed NEC Engineering & Construct Contract",21/04/2021,0155084,"744,583.08",Capital,Robertson CE Limited,81176,,
Chorley Borough Council,http://statistics.data.gov.uk/id/local-authority/30UE,Central Support Services,1009,Policy & Governance,HR Approved Occ Health Fees,15201,Indirect Employee Expenses,5002,Counselling sessions for staff in March 2020,21/04/2021,0155033,315.00,Revenue,Sarah Walsh,78412,,
Chorley Borough Council,http://statistics.data.gov.uk/id/local-authority/30UE,Service Management & Support,1009,Customer & Digital,Tools & Equipment - Hire,40004,"Equipment, Furniture & Materia",5023,Hire of a mini digger for 1 week. Drop off/Pick Up,28/04/2021,0155031,325.00,Revenue,Scambler Plant Hire Ltd,16710,,
Chorley Borough Council,http://statistics.data.gov.uk/id/local-authority/30UE,Business Support,1095,Commercial & Property,External Contractor,40198,Miscellaneous Expenses,5034,In respect of concierge services for PRIMROSE GARDENS for period  01/04/2020 to 31/03/2020,21/04/2021,0153975,"6,039.54",Revenue,Sector Security Services,19269,,
Chorley Borough Council,http://statistics.data.gov.uk/id/local-authority/30UE,Homelessness,1075,Commercial & Property,External Contractor,40198,Miscellaneous Expenses,5034,In respect of Concierge services for the period 01/04/2020 - 31/03/2021,21/04/2021,0153976,"6,155.24",Revenue,Sector Security Services,19269,,
Chorley Borough Council,http://statistics.data.gov.uk/id/local-authority/30UE,Homelessness,1075,Commercial & Property,External Contractor,40198,Miscellaneous Expenses,5034,In respect of Concierge services for the period 01/04/2020 - 31/03/2021,21/04/2021,0155349,"6,745.31",Revenue,Sector Security Services,19269,,
Chorley Borough Council,http://statistics.data.gov.uk/id/local-authority/30UE,Business Support,1095,Commercial & Property,External Contractor,40198,Miscellaneous Expenses,5034,In respect of concierge services for PRIMROSE GARDENS for period  01/04/2020 to 31/03/2020,21/04/2021,0155350,"6,612.26",Revenue,Sector Security Services,19269,,
Chorley Borough Council,http://statistics.data.gov.uk/id/local-authority/30UE,Unapportionable Central OHeads,1009,Commercial & Property,General Repairs - Reactive,20004,Repairs Maintenance & Alts,5005,"Call out at Primrose Gardens, Fleet Street, Chorley, PR7 2EE, Repair and replacement of nozzle in ADDRESS REDACTED",30/04/2021,0155858,398.99,Revenue,Sentinel Fire Services,81153,,
Chorley Borough Council,http://statistics.data.gov.uk/id/local-authority/30UE,Central Support Services,1009,Commercial & Property,General Repairs - Reactive,20004,Repairs Maintenance & Alts,5005,"Call out at Primrose Gardens, PR7 2EE, 14.04.21, Repair and replacement of Nozzles in ADDRESS REDACTED & Corridor Area",30/04/2021,0155859,447.00,Revenue,Sentinel Fire Services,81153,,
Chorley Borough Council,http://statistics.data.gov.uk/id/local-authority/30UE,Recreation & Sport,1037,Communities,Miscellaneous Expenses,40200,Miscellaneous Expenses,5034,April 2021 Maintenance Service Quote,16/04/2021,0155443,"1,010.17",Revenue,Service Sport Ltd,65601,,
Chorley Borough Council,http://statistics.data.gov.uk/id/local-authority/30UE,Elections,1012,Policy & Governance,Stationery,40050,"Printing, Stationery & General",5026,"Guidance to voters 2021, polling booth notices 2021 , details as per email",09/04/2021,0155072,388.10,Revenue,Shaw & Sons Ltd,18092,,
Chorley Borough Council,http://statistics.data.gov.uk/id/local-authority/30UE,Open Spaces,1038,Communities,Supplies-Grounds Maintenance,40025,"Equipment, Furniture & Materia",5023,Refurbishment of the paths at Hurst Brook Coppull as per drawing and spec agreed,23/04/2021,0155113,"5,189.56",Revenue,Shiloh Surfacing,61457,,
Chorley Borough Council,http://statistics.data.gov.uk/id/local-authority/30UE,Capital,Capital,Commercial & Property,Main Contractor,03007,Capital Expenditure,Capital,"All Seasons, Retro fit new IQ4E Controllers to below Control Panels, Gym AHU Panel, Supply, fit and commission IQVISION PC",07/04/2021,0154153,"4,858.00",Capital,Smart Control Systems Ltd,81175,,
Chorley Borough Council,http://statistics.data.gov.uk/id/local-authority/30UE,Service Management & Support,1009,Customer & Digital,Protective Clothing,40040,"Clothing, Uniforms and Laundry",5025,"Heavy Weight Red Jacket Streetscene c/w Chorley Council logo embroidered on front, Medium x5, Large x5, XLarge x5",09/04/2021,0154500,126.75,Revenue,SMI Int Group Ltd,80945,,
Chorley Borough Council,http://statistics.data.gov.uk/id/local-authority/30UE,Service Management & Support,1009,Customer & Digital,Protective Clothing,40040,"Clothing, Uniforms and Laundry",5025,"HI-Vis Yellow Waistcoat, 100% polyester, EN471, Class 2 c/w Chorley Council logo, to be screen-printed on front and back ",09/04/2021,0154500,70.50,Revenue,SMI Int Group Ltd,80945,,
Chorley Borough Council,http://statistics.data.gov.uk/id/local-authority/30UE,Service Management & Support,1009,Customer & Digital,Protective Clothing,40040,"Clothing, Uniforms and Laundry",5025,"High-Vis Yellow, outer jacket, EN343 class 3, EN471 Class 2, Oil resistant, waterproof, wind resistant, breathable, anti-fungal",09/04/2021,0154500,134.55,Revenue,SMI Int Group Ltd,80945,,
Chorley Borough Council,http://statistics.data.gov.uk/id/local-authority/30UE,Recreation & Sport,1037,Customer & Digital,Other Fees,40212,Miscellaneous Expenses,5034,"Heavy Weight Fleece Jacket in BLACK c/w Chorley Council logo embroidered, small x 20, medium x 33, Large x 18, X Large x 10",16/04/2021,0155063,684.45,Revenue,SMI Int Group Ltd,80945,,
Chorley Borough Council,http://statistics.data.gov.uk/id/local-authority/30UE,Unapportionable Central OHeads,1009,Policy & Governance,Publications,40054,"Printing, Stationery & General",5026,CIPFA Publications 1st April 2020 - 31st March 2021,21/04/2021,0155541,"2,775.00",Revenue,South Ribble Borough Council,17889,,
Chorley Borough Council,http://statistics.data.gov.uk/id/local-authority/30UE,Central Support Services,1009,Policy & Governance,IT Software - Annual Licences,40101,Communication and Computing,5028,Civica Financials 1st April 2020 - 31st March 2021,21/04/2021,0155541,"15,288.63",Revenue,South Ribble Borough Council,17889,,
Chorley Borough Council,http://statistics.data.gov.uk/id/local-authority/30UE,Unapportionable Central OHeads,1009,Policy & Governance,Service Fees to other Local Authorities,40076,Services,5027,Qtr 3 Forecasts for the Shared Services Recharges to CBC for 2020/21,28/04/2021,0155753,"1,594,560.00",Revenue,South Ribble Borough Council,17889,,
Chorley Borough Council,http://statistics.data.gov.uk/id/local-authority/30UE,Service Management & Support,1009,Customer & Digital,Tools & Equipment - Purchase,40003,"Equipment, Furniture & Materia",5023,as per quotation SQ-2204345 1x CUTMAKER 550 DUAL PLASMA CUTTER (16995),21/04/2021,0155579,"1,470.00",Revenue,Spalding (UK) Limited,20264,,
Chorley Borough Council,http://statistics.data.gov.uk/id/local-authority/30UE,Business Support,1095,Commercial & Property,Window Cleaning,20034,Cleaning and Domestic Supplies,5012,12 months window cleaning,30/04/2021,0155574,477.95,Revenue,Sparkle Window Cleaning (Michael Jennings),77989,,
Chorley Borough Council,http://statistics.data.gov.uk/id/local-authority/30UE,Unapportionable Central OHeads,1009,Commercial & Property,General Repairs - Reactive,20004,Repairs Maintenance & Alts,5005,"All Seasons, High-level internal window cleaning, Agreed with NAME REDACTED, Approved by NAME REDACTED",30/04/2021,0155715,298.50,Revenue,Sparkle Window Cleaning (Michael Jennings),77989,,
Chorley Borough Council,http://statistics.data.gov.uk/id/local-authority/30UE,Control Accounts,Control,Policy & Governance,General Balances,00100,Balance Sheet,Balance,Monthly deds from payroll,21/04/2021,0155620,416.64,Revenue,St Catherines Hospice Promotions,72375,,
Chorley Borough Council,http://statistics.data.gov.uk/id/local-authority/30UE,Capital,Capital,Communities,Grants,03002,Capital Expenditure,Capital,ADDRESS REDACTED,14/04/2021,0155198,"4,320.00",Capital,Stannah Lift Services Ltd,80943,,
Chorley Borough Council,http://statistics.data.gov.uk/id/local-authority/30UE,Capital,Capital,Communities,Grants,03002,Capital Expenditure,Capital,20/00201/DFG,21/04/2021,0155531,"2,754.00",Capital,Stannah Lift Services Ltd,80943,,
Chorley Borough Council,http://statistics.data.gov.uk/id/local-authority/30UE,Capital,Capital,Communities,Grants,03002,Capital Expenditure,Capital,21/00004/CAG,21/04/2021,0155612,"3,082.00",Capital,Stannah Lift Services Ltd,80943,,
Chorley Borough Council,http://statistics.data.gov.uk/id/local-authority/30UE,Capital,Capital,Communities,Grants,03002,Capital Expenditure,Capital,ADDRESS REDACTED,28/04/2021,0155700,"3,004.00",Capital,Stannah Lift Services Ltd,80943,,
Chorley Borough Council,http://statistics.data.gov.uk/id/local-authority/30UE,Capital,Capital,Communities,Grants,03002,Capital Expenditure,Capital,ADDRESS REDACTED,28/04/2021,0155701,"5,108.00",Capital,Stannah Lift Services Ltd,80943,,
Chorley Borough Council,http://statistics.data.gov.uk/id/local-authority/30UE,Central Support Services,1009,Customer & Digital,Computer Equipment-Purchase,40098,Communication and Computing,5028,"Konftel 931201001 CAM20 Manu. Part, 1 x Logitech BRIO 4K Ultra HD webcam Manu. Part, 1 x Delivery Sale",28/04/2021,0155079,408.50,Revenue,Starcom Technologies Limited,20541,,
Chorley Borough Council,http://statistics.data.gov.uk/id/local-authority/30UE,Central Support Services,1009,Customer & Digital,Computer Equipment-Purchase,40098,Communication and Computing,5028,mac mini - for putting devices into endpoint manager,28/04/2021,0155304,678.00,Revenue,Starcom Technologies Limited,20541,,
Chorley Borough Council,http://statistics.data.gov.uk/id/local-authority/30UE,Central Support Services,1009,Commercial & Property,Professional Fees,40063,Services,5027,Building Consultancy � M&E Design & Consultancy,23/04/2021,0153781,"1,214.69",Revenue,Steven A Hunt & Associates Ltd,80511,,
Chorley Borough Council,http://statistics.data.gov.uk/id/local-authority/30UE,Central Support Services,1009,Commercial & Property,Professional Fees,40063,Services,5027,Building Consultancy � M&E Design & Consultancy,23/04/2021,0155094,"1,214.69",Revenue,Steven A Hunt & Associates Ltd,80511,,
Chorley Borough Council,http://statistics.data.gov.uk/id/local-authority/30UE,Parking Services,1066,Commercial & Property,Consultants` Fees,40077,Services,5027,additional costs,21/04/2021,0155415,"3,979.53",Revenue,Street Civil Engineering Limited,76750,,
Chorley Borough Council,http://statistics.data.gov.uk/id/local-authority/30UE,Capital,Capital,Communities,Grants,03002,Capital Expenditure,Capital,ADDRESS REDACTED,07/04/2021,0154946,"16,270.00",Capital,Stringfellow Bldg Cntrctrs Ltd,17893,,
Chorley Borough Council,http://statistics.data.gov.uk/id/local-authority/30UE,Capital,Capital,Communities,Grants,03002,Capital Expenditure,Capital,20/00110/CAG ADDRESS REDACTED,14/04/2021,0155341,"1,327.00",Capital,Stringfellow Bldg Cntrctrs Ltd,17893,,
Chorley Borough Council,http://statistics.data.gov.uk/id/local-authority/30UE,Capital,Capital,Communities,Grants,03002,Capital Expenditure,Capital,ADDRESS REDACTED,14/04/2021,0155360,"4,778.00",Capital,Stringfellow Bldg Cntrctrs Ltd,17893,,
Chorley Borough Council,http://statistics.data.gov.uk/id/local-authority/30UE,Service Management Support,1009,Commercial & Property,Asset Maintenance Fund,20012,Repairs Maintenance & Alts,5005,Scaffold hire at Astley cottage 29-1-21 to 02-04-21,28/04/2021,0155714,608.85,Revenue,Stringfellow Bldg Cntrctrs Ltd,17893,,
Chorley Borough Council,http://statistics.data.gov.uk/id/local-authority/30UE,Business Support,1095,Commercial & Property,Refuse Collection,20037,Cleaning and Domestic Supplies,5012,"Market Walk Extension - General Waste, 8 x 1100L bins, (65kg weight allowance and 14p per kilo thereafter) x 52 weeks",28/04/2021,0154205,170.65,Revenue,SUEZ R&R UK LTD,17615,,
Chorley Borough Council,http://statistics.data.gov.uk/id/local-authority/30UE,Business Support,1095,Commercial & Property,Refuse Collection,20037,Cleaning and Domestic Supplies,5012,"Market Walk Extension - Mixed Recycling,  8 x 1100L bins, (35kg weight allowance and 10p per kilo thereafter) x 52 weeks",28/04/2021,0154205,140.44,Revenue,SUEZ R&R UK LTD,17615,,
Chorley Borough Council,http://statistics.data.gov.uk/id/local-authority/30UE,Business Support,1095,Commercial & Property,Refuse Collection,20037,Cleaning and Domestic Supplies,5012,"Market Walk Extension - Glass Waste, 6 x 240L bins, 3.84 +VAT per bin per lift x 52 weeks � Total 1198.08",28/04/2021,0154205,97.88,Revenue,SUEZ R&R UK LTD,17615,,
Chorley Borough Council,http://statistics.data.gov.uk/id/local-authority/30UE,Central Support Services,1009,Customer & Digital,Refuse Collection,20037,Cleaning and Domestic Supplies,5012,"Trade waste collection & disposal from Chorley Council Buildings (1/4/2020-31/3/2021), Civic Offices Union Street General Waste",21/04/2021,0154206,256.56,Revenue,SUEZ R&R UK LTD,17615,,
Chorley Borough Council,http://statistics.data.gov.uk/id/local-authority/30UE,Unapportionable Central OHeads,1009,Customer & Digital,Refuse Collection,20037,Cleaning and Domestic Supplies,5012,"Trade waste collection & disposal from Chorley Council Buildings (1/4/2020-31/3/2021), Civic Offices Union Street General Waste",21/04/2021,0154206,35.19,Revenue,SUEZ R&R UK LTD,17615,,
Chorley Borough Council,http://statistics.data.gov.uk/id/local-authority/30UE,Central Support Services,1009,Customer & Digital,Refuse Collection,20037,Cleaning and Domestic Supplies,5012,Trade waste collection & disposal from Chorley Council Buildings (1 April 2020 - 31 March 2021)  Town Hall GENERAL WASTE,21/04/2021,0154206,128.28,Revenue,SUEZ R&R UK LTD,17615,,
Chorley Borough Council,http://statistics.data.gov.uk/id/local-authority/30UE,Unapportionable Central OHeads,1009,Customer & Digital,Refuse Collection,20037,Cleaning and Domestic Supplies,5012,Trade waste collection & disposal from Chorley Council Buildings (1 April 2020 - 31 March 2021) Town Hall RECYCLING,21/04/2021,0154206,35.19,Revenue,SUEZ R&R UK LTD,17615,,
Chorley Borough Council,http://statistics.data.gov.uk/id/local-authority/30UE,Business Support,1095,Customer & Digital,Refuse Collection,20037,Cleaning and Domestic Supplies,5012,Trade waste collection & disposal from Chorley Council Buildings 1/4/2020-31/3/2021 Strawberry fields Digital Park GENERAL,21/04/2021,0154206,128.28,Revenue,SUEZ R&R UK LTD,17615,,
Chorley Borough Council,http://statistics.data.gov.uk/id/local-authority/30UE,Business Support,1095,Customer & Digital,Refuse Collection,20037,Cleaning and Domestic Supplies,5012,Trade waste collection & disposal from Chorley Council Buildings (1/4/2020-31/3/2021) Strawberry Fields digital park RECYCLING,21/04/2021,0154206,105.57,Revenue,SUEZ R&R UK LTD,17615,,
Chorley Borough Council,http://statistics.data.gov.uk/id/local-authority/30UE,Community Development,1097,Customer & Digital,Refuse Collection,20037,Cleaning and Domestic Supplies,5012,Trade waste collection & disposal from Chorley Council Buildings (1/4/2020-31/3/2021) MP`s Office,21/04/2021,0154206,42.76,Revenue,SUEZ R&R UK LTD,17615,,
Chorley Borough Council,http://statistics.data.gov.uk/id/local-authority/30UE,Democratic Represent and  Mgnt,1007,Customer & Digital,Refuse Collection,20037,Cleaning and Domestic Supplies,5012,Trade waste collection & disposal from Chorley Council Buildings (1 April 2020 - 31 March 2021) Tatton CC Silverdale Road,21/04/2021,0154206,21.19,Revenue,SUEZ R&R UK LTD,17615,,
Chorley Borough Council,http://statistics.data.gov.uk/id/local-authority/30UE,Recreation & Sport,1037,Customer & Digital,Refuse Collection,20037,Cleaning and Domestic Supplies,5012,Trade waste collection & disposal from Chorley Council Buildings (1 April 2020 - 31 March 2021) Eaves Green CC,21/04/2021,0154206,29.49,Revenue,SUEZ R&R UK LTD,17615,,
Chorley Borough Council,http://statistics.data.gov.uk/id/local-authority/30UE,Democratic Represent and  Mgnt,1007,Customer & Digital,Refuse Collection,20037,Cleaning and Domestic Supplies,5012,Trade waste collection & disposal from Chorley Council Buildings (1 April 2020 - 31 March 2021) Astley Hall 1 X 1100L bin,21/04/2021,0154206,42.76,Revenue,SUEZ R&R UK LTD,17615,,
Chorley Borough Council,http://statistics.data.gov.uk/id/local-authority/30UE,Recreation & Sport,1037,Customer & Digital,Miscellaneous Expenses,40200,Miscellaneous Expenses,5034,Trade waste collection & disposal from Chorley Council Buildings (1/4/2020 - 31/3/2021) Lancaster Way CC at Buckshaw Village,21/04/2021,0154206,29.49,Revenue,SUEZ R&R UK LTD,17615,,
Chorley Borough Council,http://statistics.data.gov.uk/id/local-authority/30UE,Recreation & Sport,1037,Customer & Digital,Miscellaneous Expenses,40200,Miscellaneous Expenses,5034,Trade waste collection & disposal from Chorley Council Buildings (1 April 2020 - 31 March 2021) Buttermere Green CC,21/04/2021,0154206,29.49,Revenue,SUEZ R&R UK LTD,17615,,
Chorley Borough Council,http://statistics.data.gov.uk/id/local-authority/30UE,Democratic Represent and  Mgnt,1007,Customer & Digital,Refuse Collection,20037,Cleaning and Domestic Supplies,5012,Trade waste collection & disposal from Chorley Council Buildings (1 April 2020 - 31 March 2021) Clayton Brook Village Hall,21/04/2021,0154206,22.71,Revenue,SUEZ R&R UK LTD,17615,,
Chorley Borough Council,http://statistics.data.gov.uk/id/local-authority/30UE,Recreation & Sport,1037,Customer & Digital,Refuse Collection,20037,Cleaning and Domestic Supplies,5012,Trade waste collection & disposal from Chorley Council Buildings (1 April 2020 - 31 March 2021) Astley Village CC,21/04/2021,0154206,29.49,Revenue,SUEZ R&R UK LTD,17615,,
Chorley Borough Council,http://statistics.data.gov.uk/id/local-authority/30UE,Business Support,1095,Commercial & Property,Refuse Collection,20037,Cleaning and Domestic Supplies,5012,"20/21 Provide a bakkie cage for cardboard in Service Yard 3 @ Market Walk Shopping Centre, Chorley. 04/20  03/2021",28/04/2021,0154207,12.00,Revenue,SUEZ R&R UK LTD,17615,,
Chorley Borough Council,http://statistics.data.gov.uk/id/local-authority/30UE,Business Support,1095,Commercial & Property,Refuse Collection,20037,Cleaning and Domestic Supplies,5012,2020/21 - Market Walk Yard 1 - 35 yard roll on/roll off cardboard skip @25 rental per month - no haulage or disposal costs,28/04/2021,0154207,25.00,Revenue,SUEZ R&R UK LTD,17615,,
Chorley Borough Council,http://statistics.data.gov.uk/id/local-authority/30UE,Business Support,1095,Commercial & Property,Refuse Collection,20037,Cleaning and Domestic Supplies,5012,2020/21 - Market Walk Yard 2 - 35 yard roll on/roll off cardboard skip @25 rental per month - no haulage or disposal costs,28/04/2021,0154207,25.00,Revenue,SUEZ R&R UK LTD,17615,,
Chorley Borough Council,http://statistics.data.gov.uk/id/local-authority/30UE,Business Support,1095,Commercial & Property,Refuse Collection,20037,Cleaning and Domestic Supplies,5012,2020/21 - Market Walk Yard 3 - 35 yard roll on/roll off plastic skip @25 rental per month - no haulage or disposal costs,28/04/2021,0154207,50.00,Revenue,SUEZ R&R UK LTD,17615,,
Chorley Borough Council,http://statistics.data.gov.uk/id/local-authority/30UE,Business Support,1095,Commercial & Property,Refuse Collection,20037,Cleaning and Domestic Supplies,5012,Any excess weight charges for Market Walk Skips and FEL`s 3000,28/04/2021,0154207,18.00,Revenue,SUEZ R&R UK LTD,17615,,
Chorley Borough Council,http://statistics.data.gov.uk/id/local-authority/30UE,Economic Development,1096,Commercial & Property,Refuse Collection,20037,Cleaning and Domestic Supplies,5012,60 x 1100L bins per week (20 bins emptied 3 times a week Mon/Weds/Fri). Weekly costs 589.80. 12.10.20  31.03.21,28/04/2021,0154207,"2,565.63",Revenue,SUEZ R&R UK LTD,17615,,
Chorley Borough Council,http://statistics.data.gov.uk/id/local-authority/30UE,Business Support,1095,Commercial & Property,Refuse Collection,20037,Cleaning and Domestic Supplies,5012,"Waste removal arrangements for Service Yard 1, Market Walk, Chorley FEL waste removal, 12.10.20-31.03.21",28/04/2021,0154207,214.32,Revenue,SUEZ R&R UK LTD,17615,,
Chorley Borough Council,http://statistics.data.gov.uk/id/local-authority/30UE,Business Support,1095,Commercial & Property,Refuse Collection,20037,Cleaning and Domestic Supplies,5012,2020/21 - Market Walk Yard 3 - 2 x 8 yard FEL general waste @49.27 per lift (per FEL) - Total 5124.08,28/04/2021,0154212,428.65,Revenue,SUEZ R&R UK LTD,17615,,
Chorley Borough Council,http://statistics.data.gov.uk/id/local-authority/30UE,Central Support Services,1009,Customer & Digital,Refuse Collection,20037,Cleaning and Domestic Supplies,5012,Trade waste collection & disposal from Chorley Council Buildings (1/4/2020-31/3/2021) Civic Offices Union Street General Waste,30/04/2021,0155388,256.56,Revenue,SUEZ R&R UK LTD,17615,,
Chorley Borough Council,http://statistics.data.gov.uk/id/local-authority/30UE,Unapportionable Central OHeads,1009,Customer & Digital,Refuse Collection,20037,Cleaning and Domestic Supplies,5012,Trade waste collection & disposal from Chorley Council Buildings (1/4/2020-31/3/2021) Civic Offices Union Street RECYCLING,30/04/2021,0155388,35.19,Revenue,SUEZ R&R UK LTD,17615,,
Chorley Borough Council,http://statistics.data.gov.uk/id/local-authority/30UE,Central Support Services,1009,Customer & Digital,Refuse Collection,20037,Cleaning and Domestic Supplies,5012,Trade waste collection & disposal from Chorley Council Buildings (1 April 2020 - 31 March 2021)  Town Hall GENERAL WASTE,30/04/2021,0155388,128.28,Revenue,SUEZ R&R UK LTD,17615,,
Chorley Borough Council,http://statistics.data.gov.uk/id/local-authority/30UE,Unapportionable Central OHeads,1009,Customer & Digital,Refuse Collection,20037,Cleaning and Domestic Supplies,5012,Trade waste collection & disposal from Chorley Council Buildings (1 April 2020 - 31 March 2021) Town Hall RECYCLING,30/04/2021,0155388,35.19,Revenue,SUEZ R&R UK LTD,17615,,
Chorley Borough Council,http://statistics.data.gov.uk/id/local-authority/30UE,Business Support,1095,Customer & Digital,Refuse Collection,20037,Cleaning and Domestic Supplies,5012,Trade waste collection & disposal from Chorley Council Buildings (1/4/2020-31/3/2021) Strawberry fields Digital Park GENERAL,30/04/2021,0155388,128.28,Revenue,SUEZ R&R UK LTD,17615,,
Chorley Borough Council,http://statistics.data.gov.uk/id/local-authority/30UE,Business Support,1095,Customer & Digital,Refuse Collection,20037,Cleaning and Domestic Supplies,5012,Trade waste collection & disposal from Chorley Council Buildings (1/4/20-31/3/21) Strawberry Fields digital park RECYCLING,30/04/2021,0155388,105.57,Revenue,SUEZ R&R UK LTD,17615,,
Chorley Borough Council,http://statistics.data.gov.uk/id/local-authority/30UE,Community Development,1097,Customer & Digital,Refuse Collection,20037,Cleaning and Domestic Supplies,5012,Trade waste collection & disposal from Chorley Council Buildings (1 April 2020 - 31 March 2021) MP`s Office Market Street,30/04/2021,0155388,42.76,Revenue,SUEZ R&R UK LTD,17615,,
Chorley Borough Council,http://statistics.data.gov.uk/id/local-authority/30UE,Democratic Represent and  Mgnt,1007,Customer & Digital,Refuse Collection,20037,Cleaning and Domestic Supplies,5012,Trade waste collection & disposal from Chorley Council Buildings (1 April 2020 - 31 March 2021) Tatton CC Silverdale Road,30/04/2021,0155388,29.49,Revenue,SUEZ R&R UK LTD,17615,,
Chorley Borough Council,http://statistics.data.gov.uk/id/local-authority/30UE,Recreation & Sport,1037,Customer & Digital,Refuse Collection,20037,Cleaning and Domestic Supplies,5012,Trade waste collection & disposal from Chorley Council Buildings (1 April 2020 - 31 March 2021) Eaves Green CC,30/04/2021,0155388,29.49,Revenue,SUEZ R&R UK LTD,17615,,
Chorley Borough Council,http://statistics.data.gov.uk/id/local-authority/30UE,Democratic Represent and  Mgnt,1007,Customer & Digital,Refuse Collection,20037,Cleaning and Domestic Supplies,5012,Trade waste collection & disposal from Chorley Council Buildings (1 April 2020 - 31 March 2021) Astley Hall,30/04/2021,0155388,42.76,Revenue,SUEZ R&R UK LTD,17615,,
Chorley Borough Council,http://statistics.data.gov.uk/id/local-authority/30UE,Recreation & Sport,1037,Customer & Digital,Miscellaneous Expenses,40200,Miscellaneous Expenses,5034,Trade waste collection & disposal from Chorley Council Buildings (1/4/20 - 31/3/21) Lancaster Way CC at Buckshaw Village,30/04/2021,0155388,29.49,Revenue,SUEZ R&R UK LTD,17615,,
Chorley Borough Council,http://statistics.data.gov.uk/id/local-authority/30UE,Recreation & Sport,1037,Customer & Digital,Miscellaneous Expenses,40200,Miscellaneous Expenses,5034,Trade waste collection & disposal from Chorley Council Buildings (1 April 2020 - 31 March 2021) Buttermere Green CC,30/04/2021,0155388,29.49,Revenue,SUEZ R&R UK LTD,17615,,
Chorley Borough Council,http://statistics.data.gov.uk/id/local-authority/30UE,Democratic Represent and  Mgnt,1007,Customer & Digital,Refuse Collection,20037,Cleaning and Domestic Supplies,5012,Trade waste collection & disposal from Chorley Council Buildings (1 April 2020 - 31 March 2021) Clayton Brook Village Hall,30/04/2021,0155388,22.71,Revenue,SUEZ R&R UK LTD,17615,,
Chorley Borough Council,http://statistics.data.gov.uk/id/local-authority/30UE,Recreation & Sport,1037,Customer & Digital,Refuse Collection,20037,Cleaning and Domestic Supplies,5012,Trade waste collection & disposal from Chorley Council Buildings (1 April 2020 - 31 March 2021) Astley Village CC,30/04/2021,0155388,29.49,Revenue,SUEZ R&R UK LTD,17615,,
Chorley Borough Council,http://statistics.data.gov.uk/id/local-authority/30UE,Business Support,1095,Commercial & Property,Refuse Collection,20037,Cleaning and Domestic Supplies,5012,"Market Walk Extension  - General Waste, 8 x 1100L bins, (65kg weight allowance and 14p per kilo thereafter) 52 weeks",21/04/2021,0155389,170.65,Revenue,SUEZ R&R UK LTD,17615,,
Chorley Borough Council,http://statistics.data.gov.uk/id/local-authority/30UE,Business Support,1095,Commercial & Property,Refuse Collection,20037,Cleaning and Domestic Supplies,5012,"Market Walk Extension - Mixed Recycling,  8 x 1100L bins, . (35kg weight allowance and 10p per kilo thereafter) 52 weeks",21/04/2021,0155389,140.44,Revenue,SUEZ R&R UK LTD,17615,,
Chorley Borough Council,http://statistics.data.gov.uk/id/local-authority/30UE,Business Support,1095,Commercial & Property,Refuse Collection,20037,Cleaning and Domestic Supplies,5012,"Market Walk Extension - Glass Waste, 6 x 240L bins, 3.84 +VAT per bin per lift x 52 weeks � Total 1198.08",21/04/2021,0155389,97.88,Revenue,SUEZ R&R UK LTD,17615,,
Chorley Borough Council,http://statistics.data.gov.uk/id/local-authority/30UE,Business Support,1095,Commercial & Property,Refuse Collection,20037,Cleaning and Domestic Supplies,5012,2020/21 - Market Walk Yard 3 - 2 x 8 yard FEL general waste @49.27 per lift (per FEL) - Total 5124.08,23/04/2021,0155433,428.65,Revenue,SUEZ R&R UK LTD,17615,,
Chorley Borough Council,http://statistics.data.gov.uk/id/local-authority/30UE,Business Support,1095,Commercial & Property,Refuse Collection,20037,Cleaning and Domestic Supplies,5012,"Provide a bakkie cage for cardboard in Service Yard 3 @ Market Walk Shopping Centre, Chorley. Apr 2020 - Mar 2021, 52 weeks",21/04/2021,0155434,12.00,Revenue,SUEZ R&R UK LTD,17615,,
Chorley Borough Council,http://statistics.data.gov.uk/id/local-authority/30UE,Business Support,1095,Commercial & Property,Refuse Collection,20037,Cleaning and Domestic Supplies,5012,2020/21 - Market Walk Yard 1 - 35 yard roll on/roll off cardboard skip @25 rental per month - no haulage or disposal costs,21/04/2021,0155434,24.19,Revenue,SUEZ R&R UK LTD,17615,,
Chorley Borough Council,http://statistics.data.gov.uk/id/local-authority/30UE,Business Support,1095,Commercial & Property,Refuse Collection,20037,Cleaning and Domestic Supplies,5012,2020/21 - Market Walk Yard 2 - 35 yard roll on/roll off cardboard skip @25 rental per month - no haulage or disposal costs,21/04/2021,0155434,25.00,Revenue,SUEZ R&R UK LTD,17615,,
Chorley Borough Council,http://statistics.data.gov.uk/id/local-authority/30UE,Business Support,1095,Commercial & Property,Refuse Collection,20037,Cleaning and Domestic Supplies,5012,2020/21 - Market Walk Yard 2 - 8 yard FEL for general waste @49.27 per lift - Total 2562.04,21/04/2021,0155434,214.32,Revenue,SUEZ R&R UK LTD,17615,,
Chorley Borough Council,http://statistics.data.gov.uk/id/local-authority/30UE,Business Support,1095,Commercial & Property,Refuse Collection,20037,Cleaning and Domestic Supplies,5012,2020/21 - Market Walk Yard 3 - 35 yard roll on/roll off cardboard skip @25 rental per month - no haulage or disposal costs,21/04/2021,0155434,50.00,Revenue,SUEZ R&R UK LTD,17615,,
Chorley Borough Council,http://statistics.data.gov.uk/id/local-authority/30UE,Business Support,1095,Commercial & Property,Refuse Collection,20037,Cleaning and Domestic Supplies,5012,Any excess weight charges for Market Walk Skips and FEL`s 3000,21/04/2021,0155434,45.15,Revenue,SUEZ R&R UK LTD,17615,,
Chorley Borough Council,http://statistics.data.gov.uk/id/local-authority/30UE,Economic Development,1096,Commercial & Property,Refuse Collection,20037,Cleaning and Domestic Supplies,5012,60 x 1100L bins per week (20 bins emptied 3 times a week Mon/Weds/Fri) Weekly costs 12.10.20  31.03.21 (25 weeks),21/04/2021,0155434,"2,565.63",Revenue,SUEZ R&R UK LTD,17615,,
Chorley Borough Council,http://statistics.data.gov.uk/id/local-authority/30UE,Economic Development,1096,Commercial & Property,Refuse Collection,20037,Cleaning and Domestic Supplies,5012,60 x 1100L bins per week (20 bins emptied 3 times a week Mon/Weds/Fri) Weekly costs 12.10.20 - 31.03.21 (25 weeks),30/04/2021,0155843,"3,042.66",Revenue,SUEZ R&R UK LTD,17615,,
Chorley Borough Council,http://statistics.data.gov.uk/id/local-authority/30UE,Business Support,1095,Commercial & Property,Refuse Collection,20037,Cleaning and Domestic Supplies,5012,"Provide a bakkie cage for cardboard in Service Yard 3 @ Market Walk Shopping Centre, Chorley. Apr 2020 - Mar 2021, 52 weeks",30/04/2021,0155843,12.00,Revenue,SUEZ R&R UK LTD,17615,,
Chorley Borough Council,http://statistics.data.gov.uk/id/local-authority/30UE,Business Support,1095,Commercial & Property,Refuse Collection,20037,Cleaning and Domestic Supplies,5012,2020/21 - Market Walk Yard 1 - 35 yard roll on/roll off cardboard skip @25 rental per month - no haulage or disposal costs,30/04/2021,0155843,25.00,Revenue,SUEZ R&R UK LTD,17615,,
Chorley Borough Council,http://statistics.data.gov.uk/id/local-authority/30UE,Business Support,1095,Commercial & Property,Refuse Collection,20037,Cleaning and Domestic Supplies,5012,2020/21 - Market Walk Yard 2 - 35 yard roll on/roll off cardboard skip @25 rental per month - no haulage or disposal costs,30/04/2021,0155843,25.00,Revenue,SUEZ R&R UK LTD,17615,,
Chorley Borough Council,http://statistics.data.gov.uk/id/local-authority/30UE,Business Support,1095,Commercial & Property,Refuse Collection,20037,Cleaning and Domestic Supplies,5012,2020/21 - Market Walk Yard 3 - 35 yard roll on/roll off plastic skip @25 rental per month - no haulage or disposal costs,30/04/2021,0155843,50.00,Revenue,SUEZ R&R UK LTD,17615,,
Chorley Borough Council,http://statistics.data.gov.uk/id/local-authority/30UE,Business Support,1095,Commercial & Property,Refuse Collection,20037,Cleaning and Domestic Supplies,5012,2020/21 - Market Walk Yard 3 - 2 x 8 yard FEL general waste @49.27 per lift (per FEL) - Total 5124.08,30/04/2021,0155843,-160.71,Revenue,SUEZ R&R UK LTD,17615,,
Chorley Borough Council,http://statistics.data.gov.uk/id/local-authority/30UE,Business Support,1095,Commercial & Property,Refuse Collection,20037,Cleaning and Domestic Supplies,5012,Any excess weight charges for Market Walk Skips and FEL`s 3000,30/04/2021,0155843,24.38,Revenue,SUEZ R&R UK LTD,17615,,
Chorley Borough Council,http://statistics.data.gov.uk/id/local-authority/30UE,Business Support,1095,Commercial & Property,Refuse Collection,20037,Cleaning and Domestic Supplies,5012,2020/21 - Market Walk Yard 3 - 2 x 8 yard FEL general waste @49.27 per lift (per FEL) - Total 5124.08,30/04/2021,0155844,428.65,Revenue,SUEZ R&R UK LTD,17615,,
Chorley Borough Council,http://statistics.data.gov.uk/id/local-authority/30UE,Business Support,1095,Commercial & Property,Refuse Collection,20037,Cleaning and Domestic Supplies,5012,Any excess weight charges for Market Walk Skips and FEL`s 3000,30/04/2021,0155844,6.00,Revenue,SUEZ R&R UK LTD,17615,,
Chorley Borough Council,http://statistics.data.gov.uk/id/local-authority/30UE,Business Support,1095,Commercial & Property,Refuse Collection,20037,Cleaning and Domestic Supplies,5012,"Market Walk Extension - Mixed Recycling,  8 x 1100L bins, . (35kg weight allowance and 10p per kilo thereafter) 52 weeks",30/04/2021,0155934,140.44,Revenue,SUEZ R&R UK LTD,17615,,
Chorley Borough Council,http://statistics.data.gov.uk/id/local-authority/30UE,Business Support,1095,Commercial & Property,Refuse Collection,20037,Cleaning and Domestic Supplies,5012,"Market Walk Extension - Food Waste, 8 x 240L bins, 9.43 +VAT per bin per lift x 52 lifts � Total 3922.88",30/04/2021,0155934,81.56,Revenue,SUEZ R&R UK LTD,17615,,
Chorley Borough Council,http://statistics.data.gov.uk/id/local-authority/30UE,Business Support,1095,Commercial & Property,Refuse Collection,20037,Cleaning and Domestic Supplies,5012,"Market Walk Extension - Glass Waste, 6 x 240L bins, 3.84 +VAT per bin per lift x 52 weeks � Total 1198.08",30/04/2021,0155934,170.65,Revenue,SUEZ R&R UK LTD,17615,,
Chorley Borough Council,http://statistics.data.gov.uk/id/local-authority/30UE,Capital,Capital,Commercial & Property,Main Contractor,03007,Capital Expenditure,Capital,"Supply a GPR equipped survey team to investigate the area highlighted and described in your email/survey brief, at the location",09/04/2021,0155316,750.00,Capital,Survey Operations Ltd,55910,,
Chorley Borough Council,http://statistics.data.gov.uk/id/local-authority/30UE,Capital,Capital,Communities,Main Contractor,03007,Capital Expenditure,Capital,Supply Only Quote No 5300495A - Longfield Avenue Play Area - Option 1. Delivery to  - LANDSCAPE ENGINEERING LTD,21/04/2021,0155469,"24,645.10",Capital,Sutcliffe Play,78506,,
Chorley Borough Council,http://statistics.data.gov.uk/id/local-authority/30UE,Central Support Services,1009,Customer & Digital,CCTV Camera Maintenance,40007,"Equipment, Furniture & Materia",5023,cage and cameras,21/04/2021,0151322,"1,796.29",Revenue,Technology Solutions,72376,,
Chorley Borough Council,http://statistics.data.gov.uk/id/local-authority/30UE,Capital,Capital,Customer & Digital,Main Contractor,03007,Capital Expenditure,Capital,Redvision PTZ Camera 12 Repair,28/04/2021,0154164,694.00,Capital,Technology Solutions,72376,,
Chorley Borough Council,http://statistics.data.gov.uk/id/local-authority/30UE,Central Support Services,1009,Customer & Digital,CCTV Camera Maintenance,40007,"Equipment, Furniture & Materia",5023,CCTV ongoing maintenance and repair,09/04/2021,0155126,"1,666.25",Revenue,Technology Solutions,72376,,
Chorley Borough Council,http://statistics.data.gov.uk/id/local-authority/30UE,Central Support Services,1009,Customer & Digital,CCTV Camera Maintenance,40007,"Equipment, Furniture & Materia",5023,CCTV ongoing maintenance and repair,14/04/2021,0155177,"1,221.50",Revenue,Technology Solutions,72376,,
Chorley Borough Council,http://statistics.data.gov.uk/id/local-authority/30UE,Central Support Services,1009,Customer & Digital,CCTV Camera Maintenance,40007,"Equipment, Furniture & Materia",5023,CCTV ongoing maintenance and repair,14/04/2021,0155184,"1,230.00",Revenue,Technology Solutions,72376,,
Chorley Borough Council,http://statistics.data.gov.uk/id/local-authority/30UE,Central Support Services,1009,Customer & Digital,CCTV Camera Maintenance,40007,"Equipment, Furniture & Materia",5023,CCTV ongoing maintenance and repair,14/04/2021,0155185,792.50,Revenue,Technology Solutions,72376,,
Chorley Borough Council,http://statistics.data.gov.uk/id/local-authority/30UE,Planning Policy,1092,Communities,Professional Fees,40063,Services,5027,�Evidence regarding infrastructure impacts to support spatial planning response to planning applications�,14/04/2021,0155178,"20,950.00",Revenue,Tetra Tech Environment Planning Transport Limited,76236,,
Chorley Borough Council,http://statistics.data.gov.uk/id/local-authority/30UE,Democratic Represent and  Mgnt,1007,Policy & Governance,Conservation Of Exhibits,40059,Services,5027,As per quote for treatment of four tapestries at Astley Hall Museum and Art Gallery. Take down 29th/30th Oct 2020,28/04/2021,0155712,"3,100.00",Revenue,Textile Conservation Limited,78026,,
Chorley Borough Council,http://statistics.data.gov.uk/id/local-authority/30UE,Business Support,1095,Commercial & Property,Security Service,40062,Services,5027,Security cover at DOP for March 2021,14/04/2021,0155134,"6,571.28",Revenue,The ExcluSec Group Ltd,78056,,
Chorley Borough Council,http://statistics.data.gov.uk/id/local-authority/30UE,Central Support Services,1009,Customer & Digital,Miscellaneous Expenses,40200,Miscellaneous Expenses,5034,40x LP1033 Community litter picker @ 6.63each,21/04/2021,0155064,265.20,Revenue,The Helping Hand Company,17779,,
Chorley Borough Council,http://statistics.data.gov.uk/id/local-authority/30UE,Central Support Services,1009,Customer & Digital,Miscellaneous Expenses,40200,Miscellaneous Expenses,5034,60x LP1033 Community litter picker @ 6.63each,21/04/2021,0155065,397.80,Revenue,The Helping Hand Company,17779,,
Chorley Borough Council,http://statistics.data.gov.uk/id/local-authority/30UE,Democratic Represent and  Mgnt,1007,Customer & Digital,Computer Equipment-Purchase,40098,Communication and Computing,5028,"Supply and fit out of network switching and Wireless infrastructure at 3 x Leisure Centre sites: All Seasons, Brinscall Pool, Clayton Green",23/04/2021,0152206,"33,170.32",Revenue,The Networking People (NorthWest) Ltd T/a TNP Ltd,73446,,
Chorley Borough Council,http://statistics.data.gov.uk/id/local-authority/30UE,Central Support Services,1009,Commercial & Property,Agency Staff,13000,Direct Employee Expenses,5001,NAME REDACTED - estates surveyor fees,30/04/2021,0155784,416.53,Revenue,The Oyster Partnership Ltd,81409,,
Chorley Borough Council,http://statistics.data.gov.uk/id/local-authority/30UE,Central Support Services,1009,Commercial & Property,Agency Staff,13000,Direct Employee Expenses,5001,NAME REDACTED - estates surveyor fees,30/04/2021,0155789,"1,585.94",Revenue,The Oyster Partnership Ltd,81409,,
Chorley Borough Council,http://statistics.data.gov.uk/id/local-authority/30UE,Central Support Services,1009,Commercial & Property,Agency Staff,13000,Direct Employee Expenses,5001,NAME REDACTED - estates surveyor fees,30/04/2021,0155790,"1,279.69",Revenue,The Oyster Partnership Ltd,81409,,
Chorley Borough Council,http://statistics.data.gov.uk/id/local-authority/30UE,Central Support Services,1009,Commercial & Property,Agency Staff,13000,Direct Employee Expenses,5001,NAME REDACTED - estates surveyor fees,30/04/2021,0155791,"2,035.28",Revenue,The Oyster Partnership Ltd,81409,,
Chorley Borough Council,http://statistics.data.gov.uk/id/local-authority/30UE,Central Support Services,1009,Commercial & Property,Agency Staff,13000,Direct Employee Expenses,5001,NAME REDACTED - estates surveyor fees,30/04/2021,0155792,"1,797.35",Revenue,The Oyster Partnership Ltd,81409,,
Chorley Borough Council,http://statistics.data.gov.uk/id/local-authority/30UE,Central Support Services,1009,Commercial & Property,Agency Staff,13000,Direct Employee Expenses,5001,NAME REDACTED - estates surveyor fees,30/04/2021,0155921,"1,838.40",Revenue,The Oyster Partnership Ltd,81409,,
Chorley Borough Council,http://statistics.data.gov.uk/id/local-authority/30UE,Corporate Management,1008,Policy & Governance,Miscellaneous Expenses,40200,Miscellaneous Expenses,5034,1000 Vinyl floor markers for social distancing in businesses,16/04/2021,0155139,"2,240.00",Revenue,The Print Quarter,17987,,
Chorley Borough Council,http://statistics.data.gov.uk/id/local-authority/30UE,Corporate Management,1008,Policy & Governance,Miscellaneous Expenses,40200,Miscellaneous Expenses,5034,500 x A4 laminates - Hands Face Space messaging for COVID packs (for businesses),14/04/2021,0155338,293.60,Revenue,The Print Quarter,17987,,
Chorley Borough Council,http://statistics.data.gov.uk/id/local-authority/30UE,Service Management & Support,1009,Customer & Digital,Grounds Maintenance Contractor,20043,Grounds Maintenance Costs,5013,Coronation Rec. Reduction of Large Poplar to previous pruning points.,07/04/2021,0155021,995.00,Revenue,Treescape North West Ltd,17688,,
Chorley Borough Council,http://statistics.data.gov.uk/id/local-authority/30UE,Service Management & Support,1009,Customer & Digital,Grounds Maintenance Contractor,20043,Grounds Maintenance Costs,5013,Harpers Rec. Pollard Willows.,07/04/2021,0155022,820.00,Revenue,Treescape North West Ltd,17688,,
Chorley Borough Council,http://statistics.data.gov.uk/id/local-authority/30UE,Service Management & Support,1009,Customer & Digital,Grounds Maintenance Contractor,20043,Grounds Maintenance Costs,5013,Jubilee Rec Adlington. Reduction of Poplar and Ash.,07/04/2021,0155023,820.00,Revenue,Treescape North West Ltd,17688,,
Chorley Borough Council,http://statistics.data.gov.uk/id/local-authority/30UE,Service Management & Support,1009,Customer & Digital,Grounds Maintenance Contractor,20043,Grounds Maintenance Costs,5013,Johns Wood Close. Sycamore. Monolith.,07/04/2021,0155024,820.00,Revenue,Treescape North West Ltd,17688,,
Chorley Borough Council,http://statistics.data.gov.uk/id/local-authority/30UE,Service Management & Support,1009,Customer & Digital,Grounds Maintenance Contractor,20043,Grounds Maintenance Costs,5013,Part failed Beech in Ransnap Woods,21/04/2021,0155532,820.00,Revenue,Treescape North West Ltd,17688,,
Chorley Borough Council,http://statistics.data.gov.uk/id/local-authority/30UE,Service Management & Support,1009,Customer & Digital,Grounds Maintenance Contractor,20043,Grounds Maintenance Costs,5013,Felling of dead Elm trees adjacent A49.,30/04/2021,0155711,820.00,Revenue,Treescape North West Ltd,17688,,
Chorley Borough Council,http://statistics.data.gov.uk/id/local-authority/30UE,Service Management & Support,1009,Customer & Digital,Grounds Maintenance Contractor,20043,Grounds Maintenance Costs,5013,Tree report - 4 Beech,16/04/2021,0155463,400.00,Revenue,TREESTYLE CONSULTANCY,77078,,
Chorley Borough Council,http://statistics.data.gov.uk/id/local-authority/30UE,Service Management & Support,1009,Customer & Digital,Grounds Maintenance Contractor,20043,Grounds Maintenance Costs,5013,Multiple fells - Southport Rd,16/04/2021,0155216,750.00,Revenue,Treexpert Tree Care,78580,,
Chorley Borough Council,http://statistics.data.gov.uk/id/local-authority/30UE,Central Support Services,1009,Customer & Digital,Miscellaneous Expenses,40200,Miscellaneous Expenses,5034,Tree work for neighbourhood project in Whittle.,30/04/2021,0155871,900.00,Revenue,Treexpert Tree Care,78580,,
Chorley Borough Council,http://statistics.data.gov.uk/id/local-authority/30UE,Unapportionable Central OHeads,1009,Policy & Governance,Miscellaneous Expenses,40200,Miscellaneous Expenses,5034,1 feb 2021,21/04/2021,0155182,"1,591.33",Revenue,UK Healthcare (BDHSC),17241,,
Chorley Borough Council,http://statistics.data.gov.uk/id/local-authority/30UE,Central Support Services,1009,Policy & Governance,Miscellaneous Expenses,40200,Miscellaneous Expenses,5034,1 apr 21,21/04/2021,0155183,"1,637.33",Revenue,UK Healthcare (BDHSC),17241,,
Chorley Borough Council,http://statistics.data.gov.uk/id/local-authority/30UE,Unapportionable Central OHeads,1009,Customer & Digital,Service Fees,40056,Services,5027,Daily Hybrid Mail & Annual Billing,09/04/2021,0154173,960.77,Revenue,UKMAIL Ltd (Mail),57758,,
Chorley Borough Council,http://statistics.data.gov.uk/id/local-authority/30UE,Central Support Services,1009,Customer & Digital,Service Fees,40056,Services,5027,Daily Hybrid Mail & Annual Billing,21/04/2021,0154518,671.71,Revenue,UKMAIL Ltd (Mail),57758,,
Chorley Borough Council,http://statistics.data.gov.uk/id/local-authority/30UE,Unapportionable Central OHeads,1009,Customer & Digital,Service Fees,40056,Services,5027,Daily Hybrid Mail & Annual Billing,21/04/2021,0154932,904.01,Revenue,UKMAIL Ltd (Mail),57758,,
Chorley Borough Council,http://statistics.data.gov.uk/id/local-authority/30UE,Central Support Services,1009,Customer & Digital,Service Fees,40056,Services,5027,Daily Hybrid Mail & Annual Billing,21/04/2021,0155108,881.62,Revenue,UKMAIL Ltd (Mail),57758,,
Chorley Borough Council,http://statistics.data.gov.uk/id/local-authority/30UE,Corporate Management,1008,Customer & Digital,Contributions Parish Councils,40144,Grants and Subscriptions,5031,Parish contributions,09/04/2021,0155128,205.00,Revenue,Ulnes Walton Parish Council,16210,,
Chorley Borough Council,http://statistics.data.gov.uk/id/local-authority/30UE,Payments of Precepts to Parish,1018,Customer & Digital,Parish Council Tax,04500,Revenue Account Transfers,Balance,Parish precepts,09/04/2021,0155128,"6,010.00",Revenue,Ulnes Walton Parish Council,16210,,
Chorley Borough Council,http://statistics.data.gov.uk/id/local-authority/30UE,Control Accounts,Control,Policy & Governance,General Balances,00100,Balance Sheet,Balance,Monthly deds from payroll,21/04/2021,0155619,"1,783.70",Revenue,Unify Credit Union Ltd,55509,,
Chorley Borough Council,http://statistics.data.gov.uk/id/local-authority/30UE,Capital,Capital,Communities,Grants,03002,Capital Expenditure,Capital,ADDRESS REDACTED,07/04/2021,0154646,"4,625.15",Capital,UPS Building and Maintenance Ltd,76235,,
Chorley Borough Council,http://statistics.data.gov.uk/id/local-authority/30UE,Capital,Capital,Communities,Grants,03002,Capital Expenditure,Capital,ADDRESS REDACTED,14/04/2021,0155195,"4,448.75",Capital,UPS Building and Maintenance Ltd,76235,,
Chorley Borough Council,http://statistics.data.gov.uk/id/local-authority/30UE,Capital,Capital,Communities,Grants,03002,Capital Expenditure,Capital,ADDRESS REDACTED,14/04/2021,0155196,"5,372.50",Capital,UPS Building and Maintenance Ltd,76235,,
Chorley Borough Council,http://statistics.data.gov.uk/id/local-authority/30UE,Capital,Capital,Communities,Grants,03002,Capital Expenditure,Capital,20/00220/CAG,28/04/2021,0155747,"5,368.75",Capital,UPS Building and Maintenance Ltd,76235,,
Chorley Borough Council,http://statistics.data.gov.uk/id/local-authority/30UE,Capital,Capital,Communities,Grants,03002,Capital Expenditure,Capital,20/00219/DFG,28/04/2021,0155749,"5,599.40",Capital,UPS Building and Maintenance Ltd,76235,,
Chorley Borough Council,http://statistics.data.gov.uk/id/local-authority/30UE,Capital,Capital,Communities,Grants,03002,Capital Expenditure,Capital,20/00204/DFG,28/04/2021,0155750,"4,133.90",Capital,UPS Building and Maintenance Ltd,76235,,
Chorley Borough Council,http://statistics.data.gov.uk/id/local-authority/30UE,Capital,Capital,Communities,Grants,03002,Capital Expenditure,Capital,20/00214/CAG,28/04/2021,0155751,"4,137.50",Capital,UPS Building and Maintenance Ltd,76235,,
Chorley Borough Council,http://statistics.data.gov.uk/id/local-authority/30UE,Central Support Services,1009,Policy & Governance,Computer Equipment - Security,40106,Communication and Computing,5028,01 Apr 2021,21/04/2021,0155543,"2,086.52",Revenue,Vodafone Ltd,60180,,
Chorley Borough Council,http://statistics.data.gov.uk/id/local-authority/30UE,Central Support Services,1009,Commercial & Property,Consultants` Fees,40077,Services,5027,Procurement Management (Alker Lane),23/04/2021,0155626,"3,250.00",Revenue,Walker Sime Limited,80921,,
Chorley Borough Council,http://statistics.data.gov.uk/id/local-authority/30UE,Capital,Capital,Communities,Main Contractor,03007,Capital Expenditure,Capital,Completion of contract works in 2021 - 2022 Financial Year,28/04/2021,0155693,"57,953.00",Capital,Walter Carefoot Construction (Ltd),80601,,
Chorley Borough Council,http://statistics.data.gov.uk/id/local-authority/30UE,Central Support Services,1009,Commercial & Property,Professional Fees,40063,Services,5027,various technical discussions regarding contamination and remediation strategy at Tatton,30/04/2021,0155966,756.00,Revenue,Wardell Armstrong LLP,77818,,
Chorley Borough Council,http://statistics.data.gov.uk/id/local-authority/30UE,Recreation & Sport,1037,Commercial & Property,Water - Metered Supplies,20022,Water Services,5009,15/2/21 to 14/3/21,14/04/2021,0155375,676.98,Revenue,Water-plus,17926,,
